{"text_format":"1","workbook":"xlsx","n_sheets":2,"sheets":["Poročilo o dodeljenih DP","Kode"],"not_rendered":{"charts":0,"images":0,"macros":1,"external_links":0,"defined_names":0,"comments":1,"pivot_tables":0},"unopened":[],"bounds":{"document_bytes":16777216,"sheet_cells":100000,"rows_first":2000,"rows_last":500,"rows_between":2000,"halvings":0,"cell_chars":16384,"cell_head_chars":4096},"cells_cut":0,"cells_raw":0,"read":"whole","date_system":"1900"}

{"sheet":"Poročilo o dodeljenih DP","index":0,"n_rows":205,"n_cols":25,"rows_kept":205,"cut":false,"hidden":false,"merged":[]}
["Naziv dajalca pomoči","Matična številka dajalca pomoči","Evropska identifikacijska številka sheme državne pomoči","Naziv sheme državne pomoči","Matična številka prejemnika","Ime in priimek prejemnika ali naziv pravne osebe, ki je prejela pomoč","Davčna št.  prejemnika","KMG-MID-številka prejemnika","Naslov prejemnika (ime ulice in hišna številka, poštna številka in naziv pošte)","Šifra občine prejemnika","Datum odobritve pomoči","Datum nakazila pomoči prejemniku","Šifra instrumenta pomoči","Šifra namena pomoči","Opis ukrepa","Naložba\n(da/ne)","Vrednost celotne naložbe (EUR)","Pravna podlaga za odobritev pomoči","Pravni akt","Znesek upravičenih stroškov (EUR)","Bruto znesek pomoči \n(EUR)","Neto znesek \npomoči (EUR)","Število udeležencev","Člen Uredbe EU št. 702/2014","Stopnja intenzivnosti pomoči (%)"]
[null,{"$f":"LOOKUP(A2,Kode!A2:A216,Kode!B2:B216)","v":{"$error":"#N/A"}},{"$f":"LOOKUP(A2,Kode!A2:A216,Kode!C2:C216)","v":{"$error":"#N/A"}},{"$f":"LOOKUP(A2,Kode!A2:A216,Kode!D2:D216)","v":{"$error":"#N/A"}},null,null,null,null,null,null,null,null,null,null,null,null,null,{"$f":"LOOKUP(A2,Kode!A2:A216,Kode!E2:E216)","v":{"$error":"#N/A"}},null,null,null,null,null,null,{"$f":"V2/T2*100","v":{"$error":"#DIV/0!"}}]
[null,{"$f":"LOOKUP(A3,Kode!A2:A216,Kode!B2:B216)","v":{"$error":"#N/A"}},{"$f":"LOOKUP(A3,Kode!A2:A216,Kode!C2:C216)","v":{"$error":"#N/A"}},{"$f":"LOOKUP(A3,Kode!A2:A216,Kode!D2:D216)","v":{"$error":"#N/A"}},null,null,null,null,null,null,null,null,null,null,null,null,null,{"$f":"LOOKUP(A3,Kode!A2:A216,Kode!E2:E216)","v":{"$error":"#N/A"}},null,null,null,null,null,null,{"$f":"V3/T3*100","v":{"$error":"#DIV/0!"}}]
[null,{"$f":"LOOKUP(A4,Kode!A2:A216,Kode!B2:B216)","v":{"$error":"#N/A"}},{"$f":"LOOKUP(A4,Kode!A2:A216,Kode!C2:C216)","v":{"$error":"#N/A"}},{"$f":"LOOKUP(A4,Kode!A2:A216,Kode!D2:D216)","v":{"$error":"#N/A"}},null,null,null,null,null,null,null,null,null,null,null,null,null,{"$f":"LOOKUP(A4,Kode!A2:A216,Kode!E2:E216)","v":{"$error":"#N/A"}},null,null,null,null,null,null,{"$error":"#DIV/0!"}]
[null,{"$f":"LOOKUP(A5,Kode!A2:A216,Kode!B2:B216)","v":{"$error":"#N/A"}},{"$f":"LOOKUP(A5,Kode!A2:A216,Kode!C2:C216)","v":{"$error":"#N/A"}},{"$f":"LOOKUP(A5,Kode!A2:A216,Kode!D2:D216)","v":{"$error":"#N/A"}},null,null,null,null,null,null,null,null,null,null,null,null,null,{"$f":"LOOKUP(A5,Kode!A2:A216,Kode!E2:E216)","v":{"$error":"#N/A"}},null,null,null,null,null,null,{"$error":"#DIV/0!"}]
[null,{"$f":"LOOKUP(A6,Kode!A2:A216,Kode!B2:B216)","v":{"$error":"#N/A"}},{"$f":"LOOKUP(A6,Kode!A2:A216,Kode!C2:C216)","v":{"$error":"#N/A"}},{"$f":"LOOKUP(A6,Kode!A2:A216,Kode!D2:D216)","v":{"$error":"#N/A"}},null,null,null,null,null,null,null,null,null,null,null,null,null,{"$f":"LOOKUP(A6,Kode!A2:A216,Kode!E2:E216)","v":{"$error":"#N/A"}},null,null,null,null,null,null,{"$error":"#DIV/0!"}]
[null,{"$f":"LOOKUP(A7,Kode!A2:A216,Kode!B2:B216)","v":{"$error":"#N/A"}},{"$f":"LOOKUP(A7,Kode!A2:A216,Kode!C2:C216)","v":{"$error":"#N/A"}},{"$f":"LOOKUP(A7,Kode!A2:A216,Kode!D2:D216)","v":{"$error":"#N/A"}},null,null,null,null,null,null,null,null,null,null,null,null,null,{"$f":"LOOKUP(A7,Kode!A2:A216,Kode!E2:E216)","v":{"$error":"#N/A"}},null,null,null,null,null,null,{"$error":"#DIV/0!"}]
[null,{"$f":"LOOKUP(A8,Kode!A2:A216,Kode!B2:B216)","v":{"$error":"#N/A"}},{"$f":"LOOKUP(A8,Kode!A2:A216,Kode!C2:C216)","v":{"$error":"#N/A"}},{"$f":"LOOKUP(A8,Kode!A2:A216,Kode!D2:D216)","v":{"$error":"#N/A"}},null,null,null,null,null,null,null,null,null,null,null,null,null,{"$f":"LOOKUP(A8,Kode!A2:A216,Kode!E2:E216)","v":{"$error":"#N/A"}},null,null,null,null,null,null,{"$error":"#DIV/0!"}]
[null,{"$f":"LOOKUP(A9,Kode!A2:A216,Kode!B2:B216)","v":{"$error":"#N/A"}},{"$f":"LOOKUP(A9,Kode!A2:A216,Kode!C2:C216)","v":{"$error":"#N/A"}},{"$f":"LOOKUP(A9,Kode!A2:A216,Kode!D2:D216)","v":{"$error":"#N/A"}},null,null,null,null,null,null,null,null,null,null,null,null,null,{"$f":"LOOKUP(A9,Kode!A2:A216,Kode!E2:E216)","v":{"$error":"#N/A"}},null,null,null,null,null,null,{"$error":"#DIV/0!"}]
[null,{"$f":"LOOKUP(A10,Kode!A2:A216,Kode!B2:B216)","v":{"$error":"#N/A"}},{"$f":"LOOKUP(A10,Kode!A2:A216,Kode!C2:C216)","v":{"$error":"#N/A"}},{"$f":"LOOKUP(A10,Kode!A2:A216,Kode!D2:D216)","v":{"$error":"#N/A"}},null,null,null,null,null,null,null,null,null,null,null,null,null,{"$f":"LOOKUP(A10,Kode!A2:A216,Kode!E2:E216)","v":{"$error":"#N/A"}},null,null,null,null,null,null,{"$error":"#DIV/0!"}]
[null,{"$f":"LOOKUP(A11,Kode!A2:A216,Kode!B2:B216)","v":{"$error":"#N/A"}},{"$f":"LOOKUP(A11,Kode!A2:A216,Kode!C2:C216)","v":{"$error":"#N/A"}},{"$f":"LOOKUP(A11,Kode!A2:A216,Kode!D2:D216)","v":{"$error":"#N/A"}},null,null,null,null,null,null,null,null,null,null,null,null,null,{"$f":"LOOKUP(A11,Kode!A2:A216,Kode!E2:E216)","v":{"$error":"#N/A"}},null,null,null,null,null,null,{"$error":"#DIV/0!"}]
[null,{"$f":"LOOKUP(A12,Kode!A2:A216,Kode!B2:B216)","v":{"$error":"#N/A"}},{"$f":"LOOKUP(A12,Kode!A2:A216,Kode!C2:C216)","v":{"$error":"#N/A"}},{"$f":"LOOKUP(A12,Kode!A2:A216,Kode!D2:D216)","v":{"$error":"#N/A"}},null,null,null,null,null,null,null,null,null,null,null,null,null,{"$f":"LOOKUP(A12,Kode!A2:A216,Kode!E2:E216)","v":{"$error":"#N/A"}},null,null,null,null,null,null,{"$error":"#DIV/0!"}]
[null,{"$f":"LOOKUP(A13,Kode!A2:A216,Kode!B2:B216)","v":{"$error":"#N/A"}},{"$f":"LOOKUP(A13,Kode!A2:A216,Kode!C2:C216)","v":{"$error":"#N/A"}},{"$f":"LOOKUP(A13,Kode!A2:A216,Kode!D2:D216)","v":{"$error":"#N/A"}},null,null,null,null,null,null,null,null,null,null,null,null,null,{"$f":"LOOKUP(A13,Kode!A2:A216,Kode!E2:E216)","v":{"$error":"#N/A"}},null,null,null,null,null,null,{"$error":"#DIV/0!"}]
[null,{"$f":"LOOKUP(A14,Kode!A2:A216,Kode!B2:B216)","v":{"$error":"#N/A"}},{"$f":"LOOKUP(A14,Kode!A2:A216,Kode!C2:C216)","v":{"$error":"#N/A"}},{"$f":"LOOKUP(A14,Kode!A2:A216,Kode!D2:D216)","v":{"$error":"#N/A"}},null,null,null,null,null,null,null,null,null,null,null,null,null,{"$f":"LOOKUP(A14,Kode!A2:A216,Kode!E2:E216)","v":{"$error":"#N/A"}},null,null,null,null,null,null,{"$error":"#DIV/0!"}]
[null,{"$f":"LOOKUP(A15,Kode!A2:A216,Kode!B2:B216)","v":{"$error":"#N/A"}},{"$f":"LOOKUP(A15,Kode!A2:A216,Kode!C2:C216)","v":{"$error":"#N/A"}},{"$f":"LOOKUP(A15,Kode!A2:A216,Kode!D2:D216)","v":{"$error":"#N/A"}},null,null,null,null,null,null,null,null,null,null,null,null,null,{"$f":"LOOKUP(A15,Kode!A2:A216,Kode!E2:E216)","v":{"$error":"#N/A"}},null,null,null,null,null,null,{"$error":"#DIV/0!"}]
[null,{"$f":"LOOKUP(A16,Kode!A2:A216,Kode!B2:B216)","v":{"$error":"#N/A"}},{"$f":"LOOKUP(A16,Kode!A2:A216,Kode!C2:C216)","v":{"$error":"#N/A"}},{"$f":"LOOKUP(A16,Kode!A2:A216,Kode!D2:D216)","v":{"$error":"#N/A"}},null,null,null,null,null,null,null,null,null,null,null,null,null,{"$f":"LOOKUP(A16,Kode!A2:A216,Kode!E2:E216)","v":{"$error":"#N/A"}},null,null,null,null,null,null,{"$error":"#DIV/0!"}]
[null,{"$f":"LOOKUP(A17,Kode!A2:A216,Kode!B2:B216)","v":{"$error":"#N/A"}},{"$f":"LOOKUP(A17,Kode!A2:A216,Kode!C2:C216)","v":{"$error":"#N/A"}},{"$f":"LOOKUP(A17,Kode!A2:A216,Kode!D2:D216)","v":{"$error":"#N/A"}},null,null,null,null,null,null,null,null,null,null,null,null,null,{"$f":"LOOKUP(A17,Kode!A2:A216,Kode!E2:E216)","v":{"$error":"#N/A"}},null,null,null,null,null,null,{"$error":"#DIV/0!"}]
[null,{"$f":"LOOKUP(A18,Kode!A2:A216,Kode!B2:B216)","v":{"$error":"#N/A"}},{"$f":"LOOKUP(A18,Kode!A2:A216,Kode!C2:C216)","v":{"$error":"#N/A"}},{"$f":"LOOKUP(A18,Kode!A2:A216,Kode!D2:D216)","v":{"$error":"#N/A"}},null,null,null,null,null,null,null,null,null,null,null,null,null,{"$f":"LOOKUP(A18,Kode!A2:A216,Kode!E2:E216)","v":{"$error":"#N/A"}},null,null,null,null,null,null,{"$error":"#DIV/0!"}]
[null,{"$f":"LOOKUP(A19,Kode!A2:A216,Kode!B2:B216)","v":{"$error":"#N/A"}},{"$f":"LOOKUP(A19,Kode!A2:A216,Kode!C2:C216)","v":{"$error":"#N/A"}},{"$f":"LOOKUP(A19,Kode!A2:A216,Kode!D2:D216)","v":{"$error":"#N/A"}},null,null,null,null,null,null,null,null,null,null,null,null,null,{"$f":"LOOKUP(A19,Kode!A2:A216,Kode!E2:E216)","v":{"$error":"#N/A"}},null,null,null,null,null,null,{"$error":"#DIV/0!"}]
[null,{"$f":"LOOKUP(A20,Kode!A2:A216,Kode!B2:B216)","v":{"$error":"#N/A"}},{"$f":"LOOKUP(A20,Kode!A2:A216,Kode!C2:C216)","v":{"$error":"#N/A"}},{"$f":"LOOKUP(A20,Kode!A2:A216,Kode!D2:D216)","v":{"$error":"#N/A"}},null,null,null,null,null,null,null,null,null,null,null,null,null,{"$f":"LOOKUP(A20,Kode!A2:A216,Kode!E2:E216)","v":{"$error":"#N/A"}},null,null,null,null,null,null,{"$error":"#DIV/0!"}]
[null,{"$f":"LOOKUP(A21,Kode!A2:A216,Kode!B2:B216)","v":{"$error":"#N/A"}},{"$f":"LOOKUP(A21,Kode!A2:A216,Kode!C2:C216)","v":{"$error":"#N/A"}},{"$f":"LOOKUP(A21,Kode!A2:A216,Kode!D2:D216)","v":{"$error":"#N/A"}},null,null,null,null,null,null,null,null,null,null,null,null,null,{"$f":"LOOKUP(A21,Kode!A2:A216,Kode!E2:E216)","v":{"$error":"#N/A"}},null,null,null,null,null,null,{"$error":"#DIV/0!"}]
[null,{"$f":"LOOKUP(A22,Kode!A2:A216,Kode!B2:B216)","v":{"$error":"#N/A"}},{"$f":"LOOKUP(A22,Kode!A2:A216,Kode!C2:C216)","v":{"$error":"#N/A"}},{"$f":"LOOKUP(A22,Kode!A2:A216,Kode!D2:D216)","v":{"$error":"#N/A"}},null,null,null,null,null,null,null,null,null,null,null,null,null,{"$f":"LOOKUP(A22,Kode!A2:A216,Kode!E2:E216)","v":{"$error":"#N/A"}},null,null,null,null,null,null,{"$error":"#DIV/0!"}]
[null,{"$f":"LOOKUP(A23,Kode!A2:A216,Kode!B2:B216)","v":{"$error":"#N/A"}},{"$f":"LOOKUP(A23,Kode!A2:A216,Kode!C2:C216)","v":{"$error":"#N/A"}},{"$f":"LOOKUP(A23,Kode!A2:A216,Kode!D2:D216)","v":{"$error":"#N/A"}},null,null,null,null,null,null,null,null,null,null,null,null,null,{"$f":"LOOKUP(A23,Kode!A2:A216,Kode!E2:E216)","v":{"$error":"#N/A"}},null,null,null,null,null,null,{"$error":"#DIV/0!"}]
[null,{"$f":"LOOKUP(A24,Kode!A2:A216,Kode!B2:B216)","v":{"$error":"#N/A"}},{"$f":"LOOKUP(A24,Kode!A2:A216,Kode!C2:C216)","v":{"$error":"#N/A"}},{"$f":"LOOKUP(A24,Kode!A2:A216,Kode!D2:D216)","v":{"$error":"#N/A"}},null,null,null,null,null,null,null,null,null,null,null,null,null,{"$f":"LOOKUP(A24,Kode!A2:A216,Kode!E2:E216)","v":{"$error":"#N/A"}},null,null,null,null,null,null,{"$error":"#DIV/0!"}]
[null,{"$f":"LOOKUP(A25,Kode!A2:A216,Kode!B2:B216)","v":{"$error":"#N/A"}},{"$f":"LOOKUP(A25,Kode!A2:A216,Kode!C2:C216)","v":{"$error":"#N/A"}},{"$f":"LOOKUP(A25,Kode!A2:A216,Kode!D2:D216)","v":{"$error":"#N/A"}},null,null,null,null,null,null,null,null,null,null,null,null,null,{"$f":"LOOKUP(A25,Kode!A2:A216,Kode!E2:E216)","v":{"$error":"#N/A"}},null,null,null,null,null,null,{"$error":"#DIV/0!"}]
[null,{"$f":"LOOKUP(A26,Kode!A2:A216,Kode!B2:B216)","v":{"$error":"#N/A"}},{"$f":"LOOKUP(A26,Kode!A2:A216,Kode!C2:C216)","v":{"$error":"#N/A"}},{"$f":"LOOKUP(A26,Kode!A2:A216,Kode!D2:D216)","v":{"$error":"#N/A"}},null,null,null,null,null,null,null,null,null,null,null,null,null,{"$f":"LOOKUP(A26,Kode!A2:A216,Kode!E2:E216)","v":{"$error":"#N/A"}},null,null,null,null,null,null,{"$error":"#DIV/0!"}]
[null,{"$f":"LOOKUP(A27,Kode!A2:A216,Kode!B2:B216)","v":{"$error":"#N/A"}},{"$f":"LOOKUP(A27,Kode!A2:A216,Kode!C2:C216)","v":{"$error":"#N/A"}},{"$f":"LOOKUP(A27,Kode!A2:A216,Kode!D2:D216)","v":{"$error":"#N/A"}},null,null,null,null,null,null,null,null,null,null,null,null,null,{"$f":"LOOKUP(A27,Kode!A2:A216,Kode!E2:E216)","v":{"$error":"#N/A"}},null,null,null,null,null,null,{"$error":"#DIV/0!"}]
[null,{"$f":"LOOKUP(A28,Kode!A2:A216,Kode!B2:B216)","v":{"$error":"#N/A"}},{"$f":"LOOKUP(A28,Kode!A2:A216,Kode!C2:C216)","v":{"$error":"#N/A"}},{"$f":"LOOKUP(A28,Kode!A2:A216,Kode!D2:D216)","v":{"$error":"#N/A"}},null,null,null,null,null,null,null,null,null,null,null,null,null,{"$f":"LOOKUP(A28,Kode!A2:A216,Kode!E2:E216)","v":{"$error":"#N/A"}},null,null,null,null,null,null,{"$error":"#DIV/0!"}]
[null,{"$f":"LOOKUP(A29,Kode!A2:A216,Kode!B2:B216)","v":{"$error":"#N/A"}},{"$f":"LOOKUP(A29,Kode!A2:A216,Kode!C2:C216)","v":{"$error":"#N/A"}},{"$f":"LOOKUP(A29,Kode!A2:A216,Kode!D2:D216)","v":{"$error":"#N/A"}},null,null,null,null,null,null,null,null,null,null,null,null,null,{"$f":"LOOKUP(A29,Kode!A2:A216,Kode!E2:E216)","v":{"$error":"#N/A"}},null,null,null,null,null,null,{"$error":"#DIV/0!"}]
[null,{"$f":"LOOKUP(A30,Kode!A2:A216,Kode!B2:B216)","v":{"$error":"#N/A"}},{"$f":"LOOKUP(A30,Kode!A2:A216,Kode!C2:C216)","v":{"$error":"#N/A"}},{"$f":"LOOKUP(A30,Kode!A2:A216,Kode!D2:D216)","v":{"$error":"#N/A"}},null,null,null,null,null,null,null,null,null,null,null,null,null,{"$f":"LOOKUP(A30,Kode!A2:A216,Kode!E2:E216)","v":{"$error":"#N/A"}},null,null,null,null,null,null,{"$error":"#DIV/0!"}]
[null,{"$f":"LOOKUP(A31,Kode!A2:A216,Kode!B2:B216)","v":{"$error":"#N/A"}},{"$f":"LOOKUP(A31,Kode!A2:A216,Kode!C2:C216)","v":{"$error":"#N/A"}},{"$f":"LOOKUP(A31,Kode!A2:A216,Kode!D2:D216)","v":{"$error":"#N/A"}},null,null,null,null,null,null,null,null,null,null,null,null,null,{"$f":"LOOKUP(A31,Kode!A2:A216,Kode!E2:E216)","v":{"$error":"#N/A"}},null,null,null,null,null,null,{"$error":"#DIV/0!"}]
[null,{"$f":"LOOKUP(A32,Kode!A2:A216,Kode!B2:B216)","v":{"$error":"#N/A"}},{"$f":"LOOKUP(A32,Kode!A2:A216,Kode!C2:C216)","v":{"$error":"#N/A"}},{"$f":"LOOKUP(A32,Kode!A2:A216,Kode!D2:D216)","v":{"$error":"#N/A"}},null,null,null,null,null,null,null,null,null,null,null,null,null,{"$f":"LOOKUP(A32,Kode!A2:A216,Kode!E2:E216)","v":{"$error":"#N/A"}},null,null,null,null,null,null,{"$error":"#DIV/0!"}]
[null,{"$f":"LOOKUP(A33,Kode!A2:A216,Kode!B2:B216)","v":{"$error":"#N/A"}},{"$f":"LOOKUP(A33,Kode!A2:A216,Kode!C2:C216)","v":{"$error":"#N/A"}},{"$f":"LOOKUP(A33,Kode!A2:A216,Kode!D2:D216)","v":{"$error":"#N/A"}},null,null,null,null,null,null,null,null,null,null,null,null,null,{"$f":"LOOKUP(A33,Kode!A2:A216,Kode!E2:E216)","v":{"$error":"#N/A"}},null,null,null,null,null,null,{"$error":"#DIV/0!"}]
[null,{"$f":"LOOKUP(A34,Kode!A2:A216,Kode!B2:B216)","v":{"$error":"#N/A"}},{"$f":"LOOKUP(A34,Kode!A2:A216,Kode!C2:C216)","v":{"$error":"#N/A"}},{"$f":"LOOKUP(A34,Kode!A2:A216,Kode!D2:D216)","v":{"$error":"#N/A"}},null,null,null,null,null,null,null,null,null,null,null,null,null,{"$f":"LOOKUP(A34,Kode!A2:A216,Kode!E2:E216)","v":{"$error":"#N/A"}},null,null,null,null,null,null,{"$error":"#DIV/0!"}]
[null,{"$f":"LOOKUP(A35,Kode!A2:A216,Kode!B2:B216)","v":{"$error":"#N/A"}},{"$f":"LOOKUP(A35,Kode!A2:A216,Kode!C2:C216)","v":{"$error":"#N/A"}},{"$f":"LOOKUP(A35,Kode!A2:A216,Kode!D2:D216)","v":{"$error":"#N/A"}},null,null,null,null,null,null,null,null,null,null,null,null,null,{"$f":"LOOKUP(A35,Kode!A2:A216,Kode!E2:E216)","v":{"$error":"#N/A"}},null,null,null,null,null,null,{"$error":"#DIV/0!"}]
[null,{"$f":"LOOKUP(A36,Kode!A2:A216,Kode!B2:B216)","v":{"$error":"#N/A"}},{"$f":"LOOKUP(A36,Kode!A2:A216,Kode!C2:C216)","v":{"$error":"#N/A"}},{"$f":"LOOKUP(A36,Kode!A2:A216,Kode!D2:D216)","v":{"$error":"#N/A"}},null,null,null,null,null,null,null,null,null,null,null,null,null,{"$f":"LOOKUP(A36,Kode!A2:A216,Kode!E2:E216)","v":{"$error":"#N/A"}},null,null,null,null,null,null,{"$error":"#DIV/0!"}]
[null,{"$f":"LOOKUP(A37,Kode!A2:A216,Kode!B2:B216)","v":{"$error":"#N/A"}},{"$f":"LOOKUP(A37,Kode!A2:A216,Kode!C2:C216)","v":{"$error":"#N/A"}},{"$f":"LOOKUP(A37,Kode!A2:A216,Kode!D2:D216)","v":{"$error":"#N/A"}},null,null,null,null,null,null,null,null,null,null,null,null,null,{"$f":"LOOKUP(A37,Kode!A2:A216,Kode!E2:E216)","v":{"$error":"#N/A"}},null,null,null,null,null,null,{"$error":"#DIV/0!"}]
[null,{"$f":"LOOKUP(A38,Kode!A2:A216,Kode!B2:B216)","v":{"$error":"#N/A"}},{"$f":"LOOKUP(A38,Kode!A2:A216,Kode!C2:C216)","v":{"$error":"#N/A"}},{"$f":"LOOKUP(A38,Kode!A2:A216,Kode!D2:D216)","v":{"$error":"#N/A"}},null,null,null,null,null,null,null,null,null,null,null,null,null,{"$f":"LOOKUP(A38,Kode!A2:A216,Kode!E2:E216)","v":{"$error":"#N/A"}},null,null,null,null,null,null,{"$error":"#DIV/0!"}]
[null,{"$f":"LOOKUP(A39,Kode!A2:A216,Kode!B2:B216)","v":{"$error":"#N/A"}},{"$f":"LOOKUP(A39,Kode!A2:A216,Kode!C2:C216)","v":{"$error":"#N/A"}},{"$f":"LOOKUP(A39,Kode!A2:A216,Kode!D2:D216)","v":{"$error":"#N/A"}},null,null,null,null,null,null,null,null,null,null,null,null,null,{"$f":"LOOKUP(A39,Kode!A2:A216,Kode!E2:E216)","v":{"$error":"#N/A"}},null,null,null,null,null,null,{"$error":"#DIV/0!"}]
[null,{"$f":"LOOKUP(A40,Kode!A2:A216,Kode!B2:B216)","v":{"$error":"#N/A"}},{"$f":"LOOKUP(A40,Kode!A2:A216,Kode!C2:C216)","v":{"$error":"#N/A"}},{"$f":"LOOKUP(A40,Kode!A2:A216,Kode!D2:D216)","v":{"$error":"#N/A"}},null,null,null,null,null,null,null,null,null,null,null,null,null,{"$f":"LOOKUP(A40,Kode!A2:A216,Kode!E2:E216)","v":{"$error":"#N/A"}},null,null,null,null,null,null,{"$error":"#DIV/0!"}]
[null,{"$f":"LOOKUP(A41,Kode!A2:A216,Kode!B2:B216)","v":{"$error":"#N/A"}},{"$f":"LOOKUP(A41,Kode!A2:A216,Kode!C2:C216)","v":{"$error":"#N/A"}},{"$f":"LOOKUP(A41,Kode!A2:A216,Kode!D2:D216)","v":{"$error":"#N/A"}},null,null,null,null,null,null,null,null,null,null,null,null,null,{"$f":"LOOKUP(A41,Kode!A2:A216,Kode!E2:E216)","v":{"$error":"#N/A"}},null,null,null,null,null,null,{"$error":"#DIV/0!"}]
[null,{"$f":"LOOKUP(A42,Kode!A2:A216,Kode!B2:B216)","v":{"$error":"#N/A"}},{"$f":"LOOKUP(A42,Kode!A2:A216,Kode!C2:C216)","v":{"$error":"#N/A"}},{"$f":"LOOKUP(A42,Kode!A2:A216,Kode!D2:D216)","v":{"$error":"#N/A"}},null,null,null,null,null,null,null,null,null,null,null,null,null,{"$f":"LOOKUP(A42,Kode!A2:A216,Kode!E2:E216)","v":{"$error":"#N/A"}},null,null,null,null,null,null,{"$error":"#DIV/0!"}]
[null,{"$f":"LOOKUP(A43,Kode!A2:A216,Kode!B2:B216)","v":{"$error":"#N/A"}},{"$f":"LOOKUP(A43,Kode!A2:A216,Kode!C2:C216)","v":{"$error":"#N/A"}},{"$f":"LOOKUP(A43,Kode!A2:A216,Kode!D2:D216)","v":{"$error":"#N/A"}},null,null,null,null,null,null,null,null,null,null,null,null,null,{"$f":"LOOKUP(A43,Kode!A2:A216,Kode!E2:E216)","v":{"$error":"#N/A"}},null,null,null,null,null,null,{"$error":"#DIV/0!"}]
[null,{"$f":"LOOKUP(A44,Kode!A2:A216,Kode!B2:B216)","v":{"$error":"#N/A"}},{"$f":"LOOKUP(A44,Kode!A2:A216,Kode!C2:C216)","v":{"$error":"#N/A"}},{"$f":"LOOKUP(A44,Kode!A2:A216,Kode!D2:D216)","v":{"$error":"#N/A"}},null,null,null,null,null,null,null,null,null,null,null,null,null,{"$f":"LOOKUP(A44,Kode!A2:A216,Kode!E2:E216)","v":{"$error":"#N/A"}},null,null,null,null,null,null,{"$error":"#DIV/0!"}]
[null,{"$f":"LOOKUP(A45,Kode!A2:A216,Kode!B2:B216)","v":{"$error":"#N/A"}},{"$f":"LOOKUP(A45,Kode!A2:A216,Kode!C2:C216)","v":{"$error":"#N/A"}},{"$f":"LOOKUP(A45,Kode!A2:A216,Kode!D2:D216)","v":{"$error":"#N/A"}},null,null,null,null,null,null,null,null,null,null,null,null,null,{"$f":"LOOKUP(A45,Kode!A2:A216,Kode!E2:E216)","v":{"$error":"#N/A"}},null,null,null,null,null,null,{"$error":"#DIV/0!"}]
[null,{"$f":"LOOKUP(A46,Kode!A2:A216,Kode!B2:B216)","v":{"$error":"#N/A"}},{"$f":"LOOKUP(A46,Kode!A2:A216,Kode!C2:C216)","v":{"$error":"#N/A"}},{"$f":"LOOKUP(A46,Kode!A2:A216,Kode!D2:D216)","v":{"$error":"#N/A"}},null,null,null,null,null,null,null,null,null,null,null,null,null,{"$f":"LOOKUP(A46,Kode!A2:A216,Kode!E2:E216)","v":{"$error":"#N/A"}},null,null,null,null,null,null,{"$error":"#DIV/0!"}]
[null,{"$f":"LOOKUP(A47,Kode!A2:A216,Kode!B2:B216)","v":{"$error":"#N/A"}},{"$f":"LOOKUP(A47,Kode!A2:A216,Kode!C2:C216)","v":{"$error":"#N/A"}},{"$f":"LOOKUP(A47,Kode!A2:A216,Kode!D2:D216)","v":{"$error":"#N/A"}},null,null,null,null,null,null,null,null,null,null,null,null,null,{"$f":"LOOKUP(A47,Kode!A2:A216,Kode!E2:E216)","v":{"$error":"#N/A"}},null,null,null,null,null,null,{"$error":"#DIV/0!"}]
[null,{"$f":"LOOKUP(A48,Kode!A2:A216,Kode!B2:B216)","v":{"$error":"#N/A"}},{"$f":"LOOKUP(A48,Kode!A2:A216,Kode!C2:C216)","v":{"$error":"#N/A"}},{"$f":"LOOKUP(A48,Kode!A2:A216,Kode!D2:D216)","v":{"$error":"#N/A"}},null,null,null,null,null,null,null,null,null,null,null,null,null,{"$f":"LOOKUP(A48,Kode!A2:A216,Kode!E2:E216)","v":{"$error":"#N/A"}},null,null,null,null,null,null,{"$error":"#DIV/0!"}]
[null,{"$f":"LOOKUP(A49,Kode!A2:A216,Kode!B2:B216)","v":{"$error":"#N/A"}},{"$f":"LOOKUP(A49,Kode!A2:A216,Kode!C2:C216)","v":{"$error":"#N/A"}},{"$f":"LOOKUP(A49,Kode!A2:A216,Kode!D2:D216)","v":{"$error":"#N/A"}},null,null,null,null,null,null,null,null,null,null,null,null,null,{"$f":"LOOKUP(A49,Kode!A2:A216,Kode!E2:E216)","v":{"$error":"#N/A"}},null,null,null,null,null,null,{"$error":"#DIV/0!"}]
[null,{"$f":"LOOKUP(A50,Kode!A2:A216,Kode!B2:B216)","v":{"$error":"#N/A"}},{"$f":"LOOKUP(A50,Kode!A2:A216,Kode!C2:C216)","v":{"$error":"#N/A"}},{"$f":"LOOKUP(A50,Kode!A2:A216,Kode!D2:D216)","v":{"$error":"#N/A"}},null,null,null,null,null,null,null,null,null,null,null,null,null,{"$f":"LOOKUP(A50,Kode!A2:A216,Kode!E2:E216)","v":{"$error":"#N/A"}},null,null,null,null,null,null,{"$error":"#DIV/0!"}]
[null,{"$f":"LOOKUP(A51,Kode!A2:A216,Kode!B2:B216)","v":{"$error":"#N/A"}},{"$f":"LOOKUP(A51,Kode!A2:A216,Kode!C2:C216)","v":{"$error":"#N/A"}},{"$f":"LOOKUP(A51,Kode!A2:A216,Kode!D2:D216)","v":{"$error":"#N/A"}},null,null,null,null,null,null,null,null,null,null,null,null,null,{"$f":"LOOKUP(A51,Kode!A2:A216,Kode!E2:E216)","v":{"$error":"#N/A"}},null,null,null,null,null,null,{"$error":"#DIV/0!"}]
[null,{"$f":"LOOKUP(A52,Kode!A2:A216,Kode!B2:B216)","v":{"$error":"#N/A"}},{"$f":"LOOKUP(A52,Kode!A2:A216,Kode!C2:C216)","v":{"$error":"#N/A"}},{"$f":"LOOKUP(A52,Kode!A2:A216,Kode!D2:D216)","v":{"$error":"#N/A"}},null,null,null,null,null,null,null,null,null,null,null,null,null,{"$f":"LOOKUP(A52,Kode!A2:A216,Kode!E2:E216)","v":{"$error":"#N/A"}},null,null,null,null,null,null,{"$error":"#DIV/0!"}]
[null,{"$f":"LOOKUP(A53,Kode!A2:A216,Kode!B2:B216)","v":{"$error":"#N/A"}},{"$f":"LOOKUP(A53,Kode!A2:A216,Kode!C2:C216)","v":{"$error":"#N/A"}},{"$f":"LOOKUP(A53,Kode!A2:A216,Kode!D2:D216)","v":{"$error":"#N/A"}},null,null,null,null,null,null,null,null,null,null,null,null,null,{"$f":"LOOKUP(A53,Kode!A2:A216,Kode!E2:E216)","v":{"$error":"#N/A"}},null,null,null,null,null,null,{"$error":"#DIV/0!"}]
[null,{"$f":"LOOKUP(A54,Kode!A2:A216,Kode!B2:B216)","v":{"$error":"#N/A"}},{"$f":"LOOKUP(A54,Kode!A2:A216,Kode!C2:C216)","v":{"$error":"#N/A"}},{"$f":"LOOKUP(A54,Kode!A2:A216,Kode!D2:D216)","v":{"$error":"#N/A"}},null,null,null,null,null,null,null,null,null,null,null,null,null,{"$f":"LOOKUP(A54,Kode!A2:A216,Kode!E2:E216)","v":{"$error":"#N/A"}},null,null,null,null,null,null,{"$error":"#DIV/0!"}]
[null,{"$f":"LOOKUP(A55,Kode!A2:A216,Kode!B2:B216)","v":{"$error":"#N/A"}},{"$f":"LOOKUP(A55,Kode!A2:A216,Kode!C2:C216)","v":{"$error":"#N/A"}},{"$f":"LOOKUP(A55,Kode!A2:A216,Kode!D2:D216)","v":{"$error":"#N/A"}},null,null,null,null,null,null,null,null,null,null,null,null,null,{"$f":"LOOKUP(A55,Kode!A2:A216,Kode!E2:E216)","v":{"$error":"#N/A"}},null,null,null,null,null,null,{"$error":"#DIV/0!"}]
[null,{"$f":"LOOKUP(A56,Kode!A2:A216,Kode!B2:B216)","v":{"$error":"#N/A"}},{"$f":"LOOKUP(A56,Kode!A2:A216,Kode!C2:C216)","v":{"$error":"#N/A"}},{"$f":"LOOKUP(A56,Kode!A2:A216,Kode!D2:D216)","v":{"$error":"#N/A"}},null,null,null,null,null,null,null,null,null,null,null,null,null,{"$f":"LOOKUP(A56,Kode!A2:A216,Kode!E2:E216)","v":{"$error":"#N/A"}},null,null,null,null,null,null,{"$error":"#DIV/0!"}]
[null,{"$f":"LOOKUP(A57,Kode!A2:A216,Kode!B2:B216)","v":{"$error":"#N/A"}},{"$f":"LOOKUP(A57,Kode!A2:A216,Kode!C2:C216)","v":{"$error":"#N/A"}},{"$f":"LOOKUP(A57,Kode!A2:A216,Kode!D2:D216)","v":{"$error":"#N/A"}},null,null,null,null,null,null,null,null,null,null,null,null,null,{"$f":"LOOKUP(A57,Kode!A2:A216,Kode!E2:E216)","v":{"$error":"#N/A"}},null,null,null,null,null,null,{"$error":"#DIV/0!"}]
[null,{"$f":"LOOKUP(A58,Kode!A2:A216,Kode!B2:B216)","v":{"$error":"#N/A"}},{"$f":"LOOKUP(A58,Kode!A2:A216,Kode!C2:C216)","v":{"$error":"#N/A"}},{"$f":"LOOKUP(A58,Kode!A2:A216,Kode!D2:D216)","v":{"$error":"#N/A"}},null,null,null,null,null,null,null,null,null,null,null,null,null,{"$f":"LOOKUP(A58,Kode!A2:A216,Kode!E2:E216)","v":{"$error":"#N/A"}},null,null,null,null,null,null,{"$error":"#DIV/0!"}]
[null,{"$f":"LOOKUP(A59,Kode!A2:A216,Kode!B2:B216)","v":{"$error":"#N/A"}},{"$f":"LOOKUP(A59,Kode!A2:A216,Kode!C2:C216)","v":{"$error":"#N/A"}},{"$f":"LOOKUP(A59,Kode!A2:A216,Kode!D2:D216)","v":{"$error":"#N/A"}},null,null,null,null,null,null,null,null,null,null,null,null,null,{"$f":"LOOKUP(A59,Kode!A2:A216,Kode!E2:E216)","v":{"$error":"#N/A"}},null,null,null,null,null,null,{"$error":"#DIV/0!"}]
[null,{"$f":"LOOKUP(A60,Kode!A2:A216,Kode!B2:B216)","v":{"$error":"#N/A"}},{"$f":"LOOKUP(A60,Kode!A2:A216,Kode!C2:C216)","v":{"$error":"#N/A"}},{"$f":"LOOKUP(A60,Kode!A2:A216,Kode!D2:D216)","v":{"$error":"#N/A"}},null,null,null,null,null,null,null,null,null,null,null,null,null,{"$f":"LOOKUP(A60,Kode!A2:A216,Kode!E2:E216)","v":{"$error":"#N/A"}},null,null,null,null,null,null,{"$error":"#DIV/0!"}]
[null,{"$f":"LOOKUP(A61,Kode!A2:A216,Kode!B2:B216)","v":{"$error":"#N/A"}},{"$f":"LOOKUP(A61,Kode!A2:A216,Kode!C2:C216)","v":{"$error":"#N/A"}},{"$f":"LOOKUP(A61,Kode!A2:A216,Kode!D2:D216)","v":{"$error":"#N/A"}},null,null,null,null,null,null,null,null,null,null,null,null,null,{"$f":"LOOKUP(A61,Kode!A2:A216,Kode!E2:E216)","v":{"$error":"#N/A"}},null,null,null,null,null,null,{"$error":"#DIV/0!"}]
[null,{"$f":"LOOKUP(A62,Kode!A2:A216,Kode!B2:B216)","v":{"$error":"#N/A"}},{"$f":"LOOKUP(A62,Kode!A2:A216,Kode!C2:C216)","v":{"$error":"#N/A"}},{"$f":"LOOKUP(A62,Kode!A2:A216,Kode!D2:D216)","v":{"$error":"#N/A"}},null,null,null,null,null,null,null,null,null,null,null,null,null,{"$f":"LOOKUP(A62,Kode!A2:A216,Kode!E2:E216)","v":{"$error":"#N/A"}},null,null,null,null,null,null,{"$error":"#DIV/0!"}]
[null,{"$f":"LOOKUP(A63,Kode!A2:A216,Kode!B2:B216)","v":{"$error":"#N/A"}},{"$f":"LOOKUP(A63,Kode!A2:A216,Kode!C2:C216)","v":{"$error":"#N/A"}},{"$f":"LOOKUP(A63,Kode!A2:A216,Kode!D2:D216)","v":{"$error":"#N/A"}},null,null,null,null,null,null,null,null,null,null,null,null,null,{"$f":"LOOKUP(A63,Kode!A2:A216,Kode!E2:E216)","v":{"$error":"#N/A"}},null,null,null,null,null,null,{"$error":"#DIV/0!"}]
[null,{"$f":"LOOKUP(A64,Kode!A2:A216,Kode!B2:B216)","v":{"$error":"#N/A"}},{"$f":"LOOKUP(A64,Kode!A2:A216,Kode!C2:C216)","v":{"$error":"#N/A"}},{"$f":"LOOKUP(A64,Kode!A2:A216,Kode!D2:D216)","v":{"$error":"#N/A"}},null,null,null,null,null,null,null,null,null,null,null,null,null,{"$f":"LOOKUP(A64,Kode!A2:A216,Kode!E2:E216)","v":{"$error":"#N/A"}},null,null,null,null,null,null,{"$error":"#DIV/0!"}]
[null,{"$f":"LOOKUP(A65,Kode!A2:A216,Kode!B2:B216)","v":{"$error":"#N/A"}},{"$f":"LOOKUP(A65,Kode!A2:A216,Kode!C2:C216)","v":{"$error":"#N/A"}},{"$f":"LOOKUP(A65,Kode!A2:A216,Kode!D2:D216)","v":{"$error":"#N/A"}},null,null,null,null,null,null,null,null,null,null,null,null,null,{"$f":"LOOKUP(A65,Kode!A2:A216,Kode!E2:E216)","v":{"$error":"#N/A"}},null,null,null,null,null,null,{"$error":"#DIV/0!"}]
[null,{"$f":"LOOKUP(A66,Kode!A2:A216,Kode!B2:B216)","v":{"$error":"#N/A"}},{"$f":"LOOKUP(A66,Kode!A2:A216,Kode!C2:C216)","v":{"$error":"#N/A"}},{"$f":"LOOKUP(A66,Kode!A2:A216,Kode!D2:D216)","v":{"$error":"#N/A"}},null,null,null,null,null,null,null,null,null,null,null,null,null,{"$f":"LOOKUP(A66,Kode!A2:A216,Kode!E2:E216)","v":{"$error":"#N/A"}},null,null,null,null,null,null,{"$error":"#DIV/0!"}]
[null,{"$f":"LOOKUP(A67,Kode!A2:A216,Kode!B2:B216)","v":{"$error":"#N/A"}},{"$f":"LOOKUP(A67,Kode!A2:A216,Kode!C2:C216)","v":{"$error":"#N/A"}},{"$f":"LOOKUP(A67,Kode!A2:A216,Kode!D2:D216)","v":{"$error":"#N/A"}},null,null,null,null,null,null,null,null,null,null,null,null,null,{"$f":"LOOKUP(A67,Kode!A2:A216,Kode!E2:E216)","v":{"$error":"#N/A"}},null,null,null,null,null,null,{"$f":"V67/T67*100","v":{"$error":"#DIV/0!"}}]
[null,{"$f":"LOOKUP(A68,Kode!A2:A216,Kode!B2:B216)","v":{"$error":"#N/A"}},{"$f":"LOOKUP(A68,Kode!A2:A216,Kode!C2:C216)","v":{"$error":"#N/A"}},{"$f":"LOOKUP(A68,Kode!A2:A216,Kode!D2:D216)","v":{"$error":"#N/A"}},null,null,null,null,null,null,null,null,null,null,null,null,null,{"$f":"LOOKUP(A68,Kode!A2:A216,Kode!E2:E216)","v":{"$error":"#N/A"}},null,null,null,null,null,null,{"$error":"#DIV/0!"}]
[null,{"$f":"LOOKUP(A69,Kode!A2:A216,Kode!B2:B216)","v":{"$error":"#N/A"}},{"$f":"LOOKUP(A69,Kode!A2:A216,Kode!C2:C216)","v":{"$error":"#N/A"}},{"$f":"LOOKUP(A69,Kode!A2:A216,Kode!D2:D216)","v":{"$error":"#N/A"}},null,null,null,null,null,null,null,null,null,null,null,null,null,{"$f":"LOOKUP(A69,Kode!A2:A216,Kode!E2:E216)","v":{"$error":"#N/A"}},null,null,null,null,null,null,{"$error":"#DIV/0!"}]
[null,{"$f":"LOOKUP(A70,Kode!A2:A216,Kode!B2:B216)","v":{"$error":"#N/A"}},{"$f":"LOOKUP(A70,Kode!A2:A216,Kode!C2:C216)","v":{"$error":"#N/A"}},{"$f":"LOOKUP(A70,Kode!A2:A216,Kode!D2:D216)","v":{"$error":"#N/A"}},null,null,null,null,null,null,null,null,null,null,null,null,null,{"$f":"LOOKUP(A70,Kode!A2:A216,Kode!E2:E216)","v":{"$error":"#N/A"}},null,null,null,null,null,null,{"$error":"#DIV/0!"}]
[null,{"$f":"LOOKUP(A71,Kode!A2:A216,Kode!B2:B216)","v":{"$error":"#N/A"}},{"$f":"LOOKUP(A71,Kode!A2:A216,Kode!C2:C216)","v":{"$error":"#N/A"}},{"$f":"LOOKUP(A71,Kode!A2:A216,Kode!D2:D216)","v":{"$error":"#N/A"}},null,null,null,null,null,null,null,null,null,null,null,null,null,{"$f":"LOOKUP(A71,Kode!A2:A216,Kode!E2:E216)","v":{"$error":"#N/A"}},null,null,null,null,null,null,{"$error":"#DIV/0!"}]
[null,{"$f":"LOOKUP(A72,Kode!A2:A216,Kode!B2:B216)","v":{"$error":"#N/A"}},{"$f":"LOOKUP(A72,Kode!A2:A216,Kode!C2:C216)","v":{"$error":"#N/A"}},{"$f":"LOOKUP(A72,Kode!A2:A216,Kode!D2:D216)","v":{"$error":"#N/A"}},null,null,null,null,null,null,null,null,null,null,null,null,null,{"$f":"LOOKUP(A72,Kode!A2:A216,Kode!E2:E216)","v":{"$error":"#N/A"}},null,null,null,null,null,null,{"$error":"#DIV/0!"}]
[null,{"$f":"LOOKUP(A73,Kode!A2:A216,Kode!B2:B216)","v":{"$error":"#N/A"}},{"$f":"LOOKUP(A73,Kode!A2:A216,Kode!C2:C216)","v":{"$error":"#N/A"}},{"$f":"LOOKUP(A73,Kode!A2:A216,Kode!D2:D216)","v":{"$error":"#N/A"}},null,null,null,null,null,null,null,null,null,null,null,null,null,{"$f":"LOOKUP(A73,Kode!A2:A216,Kode!E2:E216)","v":{"$error":"#N/A"}},null,null,null,null,null,null,{"$error":"#DIV/0!"}]
[null,{"$f":"LOOKUP(A74,Kode!A2:A216,Kode!B2:B216)","v":{"$error":"#N/A"}},{"$f":"LOOKUP(A74,Kode!A2:A216,Kode!C2:C216)","v":{"$error":"#N/A"}},{"$f":"LOOKUP(A74,Kode!A2:A216,Kode!D2:D216)","v":{"$error":"#N/A"}},null,null,null,null,null,null,null,null,null,null,null,null,null,{"$f":"LOOKUP(A74,Kode!A2:A216,Kode!E2:E216)","v":{"$error":"#N/A"}},null,null,null,null,null,null,{"$error":"#DIV/0!"}]
[null,{"$f":"LOOKUP(A75,Kode!A2:A216,Kode!B2:B216)","v":{"$error":"#N/A"}},{"$f":"LOOKUP(A75,Kode!A2:A216,Kode!C2:C216)","v":{"$error":"#N/A"}},{"$f":"LOOKUP(A75,Kode!A2:A216,Kode!D2:D216)","v":{"$error":"#N/A"}},null,null,null,null,null,null,null,null,null,null,null,null,null,{"$f":"LOOKUP(A75,Kode!A2:A216,Kode!E2:E216)","v":{"$error":"#N/A"}},null,null,null,null,null,null,{"$error":"#DIV/0!"}]
[null,{"$f":"LOOKUP(A76,Kode!A2:A216,Kode!B2:B216)","v":{"$error":"#N/A"}},{"$f":"LOOKUP(A76,Kode!A2:A216,Kode!C2:C216)","v":{"$error":"#N/A"}},{"$f":"LOOKUP(A76,Kode!A2:A216,Kode!D2:D216)","v":{"$error":"#N/A"}},null,null,null,null,null,null,null,null,null,null,null,null,null,{"$f":"LOOKUP(A76,Kode!A2:A216,Kode!E2:E216)","v":{"$error":"#N/A"}},null,null,null,null,null,null,{"$error":"#DIV/0!"}]
[null,{"$f":"LOOKUP(A77,Kode!A2:A216,Kode!B2:B216)","v":{"$error":"#N/A"}},{"$f":"LOOKUP(A77,Kode!A2:A216,Kode!C2:C216)","v":{"$error":"#N/A"}},{"$f":"LOOKUP(A77,Kode!A2:A216,Kode!D2:D216)","v":{"$error":"#N/A"}},null,null,null,null,null,null,null,null,null,null,null,null,null,{"$f":"LOOKUP(A77,Kode!A2:A216,Kode!E2:E216)","v":{"$error":"#N/A"}},null,null,null,null,null,null,{"$error":"#DIV/0!"}]
[null,{"$f":"LOOKUP(A78,Kode!A2:A216,Kode!B2:B216)","v":{"$error":"#N/A"}},{"$f":"LOOKUP(A78,Kode!A2:A216,Kode!C2:C216)","v":{"$error":"#N/A"}},{"$f":"LOOKUP(A78,Kode!A2:A216,Kode!D2:D216)","v":{"$error":"#N/A"}},null,null,null,null,null,null,null,null,null,null,null,null,null,{"$f":"LOOKUP(A78,Kode!A2:A216,Kode!E2:E216)","v":{"$error":"#N/A"}},null,null,null,null,null,null,{"$error":"#DIV/0!"}]
[null,{"$f":"LOOKUP(A79,Kode!A2:A216,Kode!B2:B216)","v":{"$error":"#N/A"}},{"$f":"LOOKUP(A79,Kode!A2:A216,Kode!C2:C216)","v":{"$error":"#N/A"}},{"$f":"LOOKUP(A79,Kode!A2:A216,Kode!D2:D216)","v":{"$error":"#N/A"}},null,null,null,null,null,null,null,null,null,null,null,null,null,{"$f":"LOOKUP(A79,Kode!A2:A216,Kode!E2:E216)","v":{"$error":"#N/A"}},null,null,null,null,null,null,{"$error":"#DIV/0!"}]
[null,{"$f":"LOOKUP(A80,Kode!A2:A216,Kode!B2:B216)","v":{"$error":"#N/A"}},{"$f":"LOOKUP(A80,Kode!A2:A216,Kode!C2:C216)","v":{"$error":"#N/A"}},{"$f":"LOOKUP(A80,Kode!A2:A216,Kode!D2:D216)","v":{"$error":"#N/A"}},null,null,null,null,null,null,null,null,null,null,null,null,null,{"$f":"LOOKUP(A80,Kode!A2:A216,Kode!E2:E216)","v":{"$error":"#N/A"}},null,null,null,null,null,null,{"$error":"#DIV/0!"}]
[null,{"$f":"LOOKUP(A81,Kode!A2:A216,Kode!B2:B216)","v":{"$error":"#N/A"}},{"$f":"LOOKUP(A81,Kode!A2:A216,Kode!C2:C216)","v":{"$error":"#N/A"}},{"$f":"LOOKUP(A81,Kode!A2:A216,Kode!D2:D216)","v":{"$error":"#N/A"}},null,null,null,null,null,null,null,null,null,null,null,null,null,{"$f":"LOOKUP(A81,Kode!A2:A216,Kode!E2:E216)","v":{"$error":"#N/A"}},null,null,null,null,null,null,{"$error":"#DIV/0!"}]
[null,{"$f":"LOOKUP(A82,Kode!A2:A216,Kode!B2:B216)","v":{"$error":"#N/A"}},{"$f":"LOOKUP(A82,Kode!A2:A216,Kode!C2:C216)","v":{"$error":"#N/A"}},{"$f":"LOOKUP(A82,Kode!A2:A216,Kode!D2:D216)","v":{"$error":"#N/A"}},null,null,null,null,null,null,null,null,null,null,null,null,null,{"$f":"LOOKUP(A82,Kode!A2:A216,Kode!E2:E216)","v":{"$error":"#N/A"}},null,null,null,null,null,null,{"$error":"#DIV/0!"}]
[null,{"$f":"LOOKUP(A83,Kode!A2:A216,Kode!B2:B216)","v":{"$error":"#N/A"}},{"$f":"LOOKUP(A83,Kode!A2:A216,Kode!C2:C216)","v":{"$error":"#N/A"}},{"$f":"LOOKUP(A83,Kode!A2:A216,Kode!D2:D216)","v":{"$error":"#N/A"}},null,null,null,null,null,null,null,null,null,null,null,null,null,{"$f":"LOOKUP(A83,Kode!A2:A216,Kode!E2:E216)","v":{"$error":"#N/A"}},null,null,null,null,null,null,{"$error":"#DIV/0!"}]
[null,{"$f":"LOOKUP(A84,Kode!A2:A216,Kode!B2:B216)","v":{"$error":"#N/A"}},{"$f":"LOOKUP(A84,Kode!A2:A216,Kode!C2:C216)","v":{"$error":"#N/A"}},{"$f":"LOOKUP(A84,Kode!A2:A216,Kode!D2:D216)","v":{"$error":"#N/A"}},null,null,null,null,null,null,null,null,null,null,null,null,null,{"$f":"LOOKUP(A84,Kode!A2:A216,Kode!E2:E216)","v":{"$error":"#N/A"}},null,null,null,null,null,null,{"$error":"#DIV/0!"}]
[null,{"$f":"LOOKUP(A85,Kode!A2:A216,Kode!B2:B216)","v":{"$error":"#N/A"}},{"$f":"LOOKUP(A85,Kode!A2:A216,Kode!C2:C216)","v":{"$error":"#N/A"}},{"$f":"LOOKUP(A85,Kode!A2:A216,Kode!D2:D216)","v":{"$error":"#N/A"}},null,null,null,null,null,null,null,null,null,null,null,null,null,{"$f":"LOOKUP(A85,Kode!A2:A216,Kode!E2:E216)","v":{"$error":"#N/A"}},null,null,null,null,null,null,{"$error":"#DIV/0!"}]
[null,{"$f":"LOOKUP(A86,Kode!A2:A216,Kode!B2:B216)","v":{"$error":"#N/A"}},{"$f":"LOOKUP(A86,Kode!A2:A216,Kode!C2:C216)","v":{"$error":"#N/A"}},{"$f":"LOOKUP(A86,Kode!A2:A216,Kode!D2:D216)","v":{"$error":"#N/A"}},null,null,null,null,null,null,null,null,null,null,null,null,null,{"$f":"LOOKUP(A86,Kode!A2:A216,Kode!E2:E216)","v":{"$error":"#N/A"}},null,null,null,null,null,null,{"$error":"#DIV/0!"}]
[null,{"$f":"LOOKUP(A87,Kode!A2:A216,Kode!B2:B216)","v":{"$error":"#N/A"}},{"$f":"LOOKUP(A87,Kode!A2:A216,Kode!C2:C216)","v":{"$error":"#N/A"}},{"$f":"LOOKUP(A87,Kode!A2:A216,Kode!D2:D216)","v":{"$error":"#N/A"}},null,null,null,null,null,null,null,null,null,null,null,null,null,{"$f":"LOOKUP(A87,Kode!A2:A216,Kode!E2:E216)","v":{"$error":"#N/A"}},null,null,null,null,null,null,{"$error":"#DIV/0!"}]
[null,{"$f":"LOOKUP(A88,Kode!A2:A216,Kode!B2:B216)","v":{"$error":"#N/A"}},{"$f":"LOOKUP(A88,Kode!A2:A216,Kode!C2:C216)","v":{"$error":"#N/A"}},{"$f":"LOOKUP(A88,Kode!A2:A216,Kode!D2:D216)","v":{"$error":"#N/A"}},null,null,null,null,null,null,null,null,null,null,null,null,null,{"$f":"LOOKUP(A88,Kode!A2:A216,Kode!E2:E216)","v":{"$error":"#N/A"}},null,null,null,null,null,null,{"$error":"#DIV/0!"}]
[null,{"$f":"LOOKUP(A89,Kode!A2:A216,Kode!B2:B216)","v":{"$error":"#N/A"}},{"$f":"LOOKUP(A89,Kode!A2:A216,Kode!C2:C216)","v":{"$error":"#N/A"}},{"$f":"LOOKUP(A89,Kode!A2:A216,Kode!D2:D216)","v":{"$error":"#N/A"}},null,null,null,null,null,null,null,null,null,null,null,null,null,{"$f":"LOOKUP(A89,Kode!A2:A216,Kode!E2:E216)","v":{"$error":"#N/A"}},null,null,null,null,null,null,{"$error":"#DIV/0!"}]
[null,{"$f":"LOOKUP(A90,Kode!A2:A216,Kode!B2:B216)","v":{"$error":"#N/A"}},{"$f":"LOOKUP(A90,Kode!A2:A216,Kode!C2:C216)","v":{"$error":"#N/A"}},{"$f":"LOOKUP(A90,Kode!A2:A216,Kode!D2:D216)","v":{"$error":"#N/A"}},null,null,null,null,null,null,null,null,null,null,null,null,null,{"$f":"LOOKUP(A90,Kode!A2:A216,Kode!E2:E216)","v":{"$error":"#N/A"}},null,null,null,null,null,null,{"$error":"#DIV/0!"}]
[null,{"$f":"LOOKUP(A91,Kode!A2:A216,Kode!B2:B216)","v":{"$error":"#N/A"}},{"$f":"LOOKUP(A91,Kode!A2:A216,Kode!C2:C216)","v":{"$error":"#N/A"}},{"$f":"LOOKUP(A91,Kode!A2:A216,Kode!D2:D216)","v":{"$error":"#N/A"}},null,null,null,null,null,null,null,null,null,null,null,null,null,{"$f":"LOOKUP(A91,Kode!A2:A216,Kode!E2:E216)","v":{"$error":"#N/A"}},null,null,null,null,null,null,{"$error":"#DIV/0!"}]
[null,{"$f":"LOOKUP(A92,Kode!A2:A216,Kode!B2:B216)","v":{"$error":"#N/A"}},{"$f":"LOOKUP(A92,Kode!A2:A216,Kode!C2:C216)","v":{"$error":"#N/A"}},{"$f":"LOOKUP(A92,Kode!A2:A216,Kode!D2:D216)","v":{"$error":"#N/A"}},null,null,null,null,null,null,null,null,null,null,null,null,null,{"$f":"LOOKUP(A92,Kode!A2:A216,Kode!E2:E216)","v":{"$error":"#N/A"}},null,null,null,null,null,null,{"$error":"#DIV/0!"}]
[null,{"$f":"LOOKUP(A93,Kode!A2:A216,Kode!B2:B216)","v":{"$error":"#N/A"}},{"$f":"LOOKUP(A93,Kode!A2:A216,Kode!C2:C216)","v":{"$error":"#N/A"}},{"$f":"LOOKUP(A93,Kode!A2:A216,Kode!D2:D216)","v":{"$error":"#N/A"}},null,null,null,null,null,null,null,null,null,null,null,null,null,{"$f":"LOOKUP(A93,Kode!A2:A216,Kode!E2:E216)","v":{"$error":"#N/A"}},null,null,null,null,null,null,{"$error":"#DIV/0!"}]
[null,{"$f":"LOOKUP(A94,Kode!A2:A216,Kode!B2:B216)","v":{"$error":"#N/A"}},{"$f":"LOOKUP(A94,Kode!A2:A216,Kode!C2:C216)","v":{"$error":"#N/A"}},{"$f":"LOOKUP(A94,Kode!A2:A216,Kode!D2:D216)","v":{"$error":"#N/A"}},null,null,null,null,null,null,null,null,null,null,null,null,null,{"$f":"LOOKUP(A94,Kode!A2:A216,Kode!E2:E216)","v":{"$error":"#N/A"}},null,null,null,null,null,null,{"$error":"#DIV/0!"}]
[null,{"$f":"LOOKUP(A95,Kode!A2:A216,Kode!B2:B216)","v":{"$error":"#N/A"}},{"$f":"LOOKUP(A95,Kode!A2:A216,Kode!C2:C216)","v":{"$error":"#N/A"}},{"$f":"LOOKUP(A95,Kode!A2:A216,Kode!D2:D216)","v":{"$error":"#N/A"}},null,null,null,null,null,null,null,null,null,null,null,null,null,{"$f":"LOOKUP(A95,Kode!A2:A216,Kode!E2:E216)","v":{"$error":"#N/A"}},null,null,null,null,null,null,{"$error":"#DIV/0!"}]
[null,{"$f":"LOOKUP(A96,Kode!A2:A216,Kode!B2:B216)","v":{"$error":"#N/A"}},{"$f":"LOOKUP(A96,Kode!A2:A216,Kode!C2:C216)","v":{"$error":"#N/A"}},{"$f":"LOOKUP(A96,Kode!A2:A216,Kode!D2:D216)","v":{"$error":"#N/A"}},null,null,null,null,null,null,null,null,null,null,null,null,null,{"$f":"LOOKUP(A96,Kode!A2:A216,Kode!E2:E216)","v":{"$error":"#N/A"}},null,null,null,null,null,null,{"$error":"#DIV/0!"}]
[null,{"$f":"LOOKUP(A97,Kode!A2:A216,Kode!B2:B216)","v":{"$error":"#N/A"}},{"$f":"LOOKUP(A97,Kode!A2:A216,Kode!C2:C216)","v":{"$error":"#N/A"}},{"$f":"LOOKUP(A97,Kode!A2:A216,Kode!D2:D216)","v":{"$error":"#N/A"}},null,null,null,null,null,null,null,null,null,null,null,null,null,{"$f":"LOOKUP(A97,Kode!A2:A216,Kode!E2:E216)","v":{"$error":"#N/A"}},null,null,null,null,null,null,{"$error":"#DIV/0!"}]
[null,{"$f":"LOOKUP(A98,Kode!A2:A216,Kode!B2:B216)","v":{"$error":"#N/A"}},{"$f":"LOOKUP(A98,Kode!A2:A216,Kode!C2:C216)","v":{"$error":"#N/A"}},{"$f":"LOOKUP(A98,Kode!A2:A216,Kode!D2:D216)","v":{"$error":"#N/A"}},null,null,null,null,null,null,null,null,null,null,null,null,null,{"$f":"LOOKUP(A98,Kode!A2:A216,Kode!E2:E216)","v":{"$error":"#N/A"}},null,null,null,null,null,null,{"$error":"#DIV/0!"}]
[null,{"$f":"LOOKUP(A99,Kode!A2:A216,Kode!B2:B216)","v":{"$error":"#N/A"}},{"$f":"LOOKUP(A99,Kode!A2:A216,Kode!C2:C216)","v":{"$error":"#N/A"}},{"$f":"LOOKUP(A99,Kode!A2:A216,Kode!D2:D216)","v":{"$error":"#N/A"}},null,null,null,null,null,null,null,null,null,null,null,null,null,{"$f":"LOOKUP(A99,Kode!A2:A216,Kode!E2:E216)","v":{"$error":"#N/A"}},null,null,null,null,null,null,{"$error":"#DIV/0!"}]
[null,{"$f":"LOOKUP(A100,Kode!A2:A216,Kode!B2:B216)","v":{"$error":"#N/A"}},{"$f":"LOOKUP(A100,Kode!A2:A216,Kode!C2:C216)","v":{"$error":"#N/A"}},{"$f":"LOOKUP(A100,Kode!A2:A216,Kode!D2:D216)","v":{"$error":"#N/A"}},null,null,null,null,null,null,null,null,null,null,null,null,null,{"$f":"LOOKUP(A100,Kode!A2:A216,Kode!E2:E216)","v":{"$error":"#N/A"}},null,null,null,null,null,null,{"$error":"#DIV/0!"}]
[null,{"$f":"LOOKUP(A101,Kode!A2:A216,Kode!B2:B216)","v":{"$error":"#N/A"}},{"$f":"LOOKUP(A101,Kode!A2:A216,Kode!C2:C216)","v":{"$error":"#N/A"}},{"$f":"LOOKUP(A101,Kode!A2:A216,Kode!D2:D216)","v":{"$error":"#N/A"}},null,null,null,null,null,null,null,null,null,null,null,null,null,{"$f":"LOOKUP(A101,Kode!A2:A216,Kode!E2:E216)","v":{"$error":"#N/A"}},null,null,null,null,null,null,{"$error":"#DIV/0!"}]
[null,{"$f":"LOOKUP(A102,Kode!A2:A216,Kode!B2:B216)","v":{"$error":"#N/A"}},{"$f":"LOOKUP(A102,Kode!A2:A216,Kode!C2:C216)","v":{"$error":"#N/A"}},{"$f":"LOOKUP(A102,Kode!A2:A216,Kode!D2:D216)","v":{"$error":"#N/A"}},null,null,null,null,null,null,null,null,null,null,null,null,null,{"$f":"LOOKUP(A102,Kode!A2:A216,Kode!E2:E216)","v":{"$error":"#N/A"}},null,null,null,null,null,null,{"$error":"#DIV/0!"}]
[null,{"$f":"LOOKUP(A103,Kode!A2:A216,Kode!B2:B216)","v":{"$error":"#N/A"}},{"$f":"LOOKUP(A103,Kode!A2:A216,Kode!C2:C216)","v":{"$error":"#N/A"}},{"$f":"LOOKUP(A103,Kode!A2:A216,Kode!D2:D216)","v":{"$error":"#N/A"}},null,null,null,null,null,null,null,null,null,null,null,null,null,{"$f":"LOOKUP(A103,Kode!A2:A216,Kode!E2:E216)","v":{"$error":"#N/A"}},null,null,null,null,null,null,{"$error":"#DIV/0!"}]
[null,{"$f":"LOOKUP(A104,Kode!A2:A216,Kode!B2:B216)","v":{"$error":"#N/A"}},{"$f":"LOOKUP(A104,Kode!A2:A216,Kode!C2:C216)","v":{"$error":"#N/A"}},{"$f":"LOOKUP(A104,Kode!A2:A216,Kode!D2:D216)","v":{"$error":"#N/A"}},null,null,null,null,null,null,null,null,null,null,null,null,null,{"$f":"LOOKUP(A104,Kode!A2:A216,Kode!E2:E216)","v":{"$error":"#N/A"}},null,null,null,null,null,null,{"$error":"#DIV/0!"}]
[null,{"$f":"LOOKUP(A105,Kode!A2:A216,Kode!B2:B216)","v":{"$error":"#N/A"}},{"$f":"LOOKUP(A105,Kode!A2:A216,Kode!C2:C216)","v":{"$error":"#N/A"}},{"$f":"LOOKUP(A105,Kode!A2:A216,Kode!D2:D216)","v":{"$error":"#N/A"}},null,null,null,null,null,null,null,null,null,null,null,null,null,{"$f":"LOOKUP(A105,Kode!A2:A216,Kode!E2:E216)","v":{"$error":"#N/A"}},null,null,null,null,null,null,{"$error":"#DIV/0!"}]
[null,{"$f":"LOOKUP(A106,Kode!A2:A216,Kode!B2:B216)","v":{"$error":"#N/A"}},{"$f":"LOOKUP(A106,Kode!A2:A216,Kode!C2:C216)","v":{"$error":"#N/A"}},{"$f":"LOOKUP(A106,Kode!A2:A216,Kode!D2:D216)","v":{"$error":"#N/A"}},null,null,null,null,null,null,null,null,null,null,null,null,null,{"$f":"LOOKUP(A106,Kode!A2:A216,Kode!E2:E216)","v":{"$error":"#N/A"}},null,null,null,null,null,null,{"$error":"#DIV/0!"}]
[null,{"$f":"LOOKUP(A107,Kode!A2:A216,Kode!B2:B216)","v":{"$error":"#N/A"}},{"$f":"LOOKUP(A107,Kode!A2:A216,Kode!C2:C216)","v":{"$error":"#N/A"}},{"$f":"LOOKUP(A107,Kode!A2:A216,Kode!D2:D216)","v":{"$error":"#N/A"}},null,null,null,null,null,null,null,null,null,null,null,null,null,{"$f":"LOOKUP(A107,Kode!A2:A216,Kode!E2:E216)","v":{"$error":"#N/A"}},null,null,null,null,null,null,{"$error":"#DIV/0!"}]
[null,{"$f":"LOOKUP(A108,Kode!A2:A216,Kode!B2:B216)","v":{"$error":"#N/A"}},{"$f":"LOOKUP(A108,Kode!A2:A216,Kode!C2:C216)","v":{"$error":"#N/A"}},{"$f":"LOOKUP(A108,Kode!A2:A216,Kode!D2:D216)","v":{"$error":"#N/A"}},null,null,null,null,null,null,null,null,null,null,null,null,null,{"$f":"LOOKUP(A108,Kode!A2:A216,Kode!E2:E216)","v":{"$error":"#N/A"}},null,null,null,null,null,null,{"$error":"#DIV/0!"}]
[null,{"$f":"LOOKUP(A109,Kode!A2:A216,Kode!B2:B216)","v":{"$error":"#N/A"}},{"$f":"LOOKUP(A109,Kode!A2:A216,Kode!C2:C216)","v":{"$error":"#N/A"}},{"$f":"LOOKUP(A109,Kode!A2:A216,Kode!D2:D216)","v":{"$error":"#N/A"}},null,null,null,null,null,null,null,null,null,null,null,null,null,{"$f":"LOOKUP(A109,Kode!A2:A216,Kode!E2:E216)","v":{"$error":"#N/A"}},null,null,null,null,null,null,{"$error":"#DIV/0!"}]
[null,{"$f":"LOOKUP(A110,Kode!A2:A216,Kode!B2:B216)","v":{"$error":"#N/A"}},{"$f":"LOOKUP(A110,Kode!A2:A216,Kode!C2:C216)","v":{"$error":"#N/A"}},{"$f":"LOOKUP(A110,Kode!A2:A216,Kode!D2:D216)","v":{"$error":"#N/A"}},null,null,null,null,null,null,null,null,null,null,null,null,null,{"$f":"LOOKUP(A110,Kode!A2:A216,Kode!E2:E216)","v":{"$error":"#N/A"}},null,null,null,null,null,null,{"$error":"#DIV/0!"}]
[null,{"$f":"LOOKUP(A111,Kode!A2:A216,Kode!B2:B216)","v":{"$error":"#N/A"}},{"$f":"LOOKUP(A111,Kode!A2:A216,Kode!C2:C216)","v":{"$error":"#N/A"}},{"$f":"LOOKUP(A111,Kode!A2:A216,Kode!D2:D216)","v":{"$error":"#N/A"}},null,null,null,null,null,null,null,null,null,null,null,null,null,{"$f":"LOOKUP(A111,Kode!A2:A216,Kode!E2:E216)","v":{"$error":"#N/A"}},null,null,null,null,null,null,{"$error":"#DIV/0!"}]
[null,{"$f":"LOOKUP(A112,Kode!A2:A216,Kode!B2:B216)","v":{"$error":"#N/A"}},{"$f":"LOOKUP(A112,Kode!A2:A216,Kode!C2:C216)","v":{"$error":"#N/A"}},{"$f":"LOOKUP(A112,Kode!A2:A216,Kode!D2:D216)","v":{"$error":"#N/A"}},null,null,null,null,null,null,null,null,null,null,null,null,null,{"$f":"LOOKUP(A112,Kode!A2:A216,Kode!E2:E216)","v":{"$error":"#N/A"}},null,null,null,null,null,null,{"$error":"#DIV/0!"}]
[null,{"$f":"LOOKUP(A113,Kode!A2:A216,Kode!B2:B216)","v":{"$error":"#N/A"}},{"$f":"LOOKUP(A113,Kode!A2:A216,Kode!C2:C216)","v":{"$error":"#N/A"}},{"$f":"LOOKUP(A113,Kode!A2:A216,Kode!D2:D216)","v":{"$error":"#N/A"}},null,null,null,null,null,null,null,null,null,null,null,null,null,{"$f":"LOOKUP(A113,Kode!A2:A216,Kode!E2:E216)","v":{"$error":"#N/A"}},null,null,null,null,null,null,{"$error":"#DIV/0!"}]
[null,{"$f":"LOOKUP(A114,Kode!A2:A216,Kode!B2:B216)","v":{"$error":"#N/A"}},{"$f":"LOOKUP(A114,Kode!A2:A216,Kode!C2:C216)","v":{"$error":"#N/A"}},{"$f":"LOOKUP(A114,Kode!A2:A216,Kode!D2:D216)","v":{"$error":"#N/A"}},null,null,null,null,null,null,null,null,null,null,null,null,null,{"$f":"LOOKUP(A114,Kode!A2:A216,Kode!E2:E216)","v":{"$error":"#N/A"}},null,null,null,null,null,null,{"$error":"#DIV/0!"}]
[null,{"$f":"LOOKUP(A115,Kode!A2:A216,Kode!B2:B216)","v":{"$error":"#N/A"}},{"$f":"LOOKUP(A115,Kode!A2:A216,Kode!C2:C216)","v":{"$error":"#N/A"}},{"$f":"LOOKUP(A115,Kode!A2:A216,Kode!D2:D216)","v":{"$error":"#N/A"}},null,null,null,null,null,null,null,null,null,null,null,null,null,{"$f":"LOOKUP(A115,Kode!A2:A216,Kode!E2:E216)","v":{"$error":"#N/A"}},null,null,null,null,null,null,{"$error":"#DIV/0!"}]
[null,{"$f":"LOOKUP(A116,Kode!A2:A216,Kode!B2:B216)","v":{"$error":"#N/A"}},{"$f":"LOOKUP(A116,Kode!A2:A216,Kode!C2:C216)","v":{"$error":"#N/A"}},{"$f":"LOOKUP(A116,Kode!A2:A216,Kode!D2:D216)","v":{"$error":"#N/A"}},null,null,null,null,null,null,null,null,null,null,null,null,null,{"$f":"LOOKUP(A116,Kode!A2:A216,Kode!E2:E216)","v":{"$error":"#N/A"}},null,null,null,null,null,null,{"$error":"#DIV/0!"}]
[null,{"$f":"LOOKUP(A117,Kode!A2:A216,Kode!B2:B216)","v":{"$error":"#N/A"}},{"$f":"LOOKUP(A117,Kode!A2:A216,Kode!C2:C216)","v":{"$error":"#N/A"}},{"$f":"LOOKUP(A117,Kode!A2:A216,Kode!D2:D216)","v":{"$error":"#N/A"}},null,null,null,null,null,null,null,null,null,null,null,null,null,{"$f":"LOOKUP(A117,Kode!A2:A216,Kode!E2:E216)","v":{"$error":"#N/A"}},null,null,null,null,null,null,{"$error":"#DIV/0!"}]
[null,{"$f":"LOOKUP(A118,Kode!A2:A216,Kode!B2:B216)","v":{"$error":"#N/A"}},{"$f":"LOOKUP(A118,Kode!A2:A216,Kode!C2:C216)","v":{"$error":"#N/A"}},{"$f":"LOOKUP(A118,Kode!A2:A216,Kode!D2:D216)","v":{"$error":"#N/A"}},null,null,null,null,null,null,null,null,null,null,null,null,null,{"$f":"LOOKUP(A118,Kode!A2:A216,Kode!E2:E216)","v":{"$error":"#N/A"}},null,null,null,null,null,null,{"$error":"#DIV/0!"}]
[null,{"$f":"LOOKUP(A119,Kode!A2:A216,Kode!B2:B216)","v":{"$error":"#N/A"}},{"$f":"LOOKUP(A119,Kode!A2:A216,Kode!C2:C216)","v":{"$error":"#N/A"}},{"$f":"LOOKUP(A119,Kode!A2:A216,Kode!D2:D216)","v":{"$error":"#N/A"}},null,null,null,null,null,null,null,null,null,null,null,null,null,{"$f":"LOOKUP(A119,Kode!A2:A216,Kode!E2:E216)","v":{"$error":"#N/A"}},null,null,null,null,null,null,{"$error":"#DIV/0!"}]
[null,{"$f":"LOOKUP(A120,Kode!A2:A216,Kode!B2:B216)","v":{"$error":"#N/A"}},{"$f":"LOOKUP(A120,Kode!A2:A216,Kode!C2:C216)","v":{"$error":"#N/A"}},{"$f":"LOOKUP(A120,Kode!A2:A216,Kode!D2:D216)","v":{"$error":"#N/A"}},null,null,null,null,null,null,null,null,null,null,null,null,null,{"$f":"LOOKUP(A120,Kode!A2:A216,Kode!E2:E216)","v":{"$error":"#N/A"}},null,null,null,null,null,null,{"$error":"#DIV/0!"}]
[null,{"$f":"LOOKUP(A121,Kode!A2:A216,Kode!B2:B216)","v":{"$error":"#N/A"}},{"$f":"LOOKUP(A121,Kode!A2:A216,Kode!C2:C216)","v":{"$error":"#N/A"}},{"$f":"LOOKUP(A121,Kode!A2:A216,Kode!D2:D216)","v":{"$error":"#N/A"}},null,null,null,null,null,null,null,null,null,null,null,null,null,{"$f":"LOOKUP(A121,Kode!A2:A216,Kode!E2:E216)","v":{"$error":"#N/A"}},null,null,null,null,null,null,{"$error":"#DIV/0!"}]
[null,{"$f":"LOOKUP(A122,Kode!A2:A216,Kode!B2:B216)","v":{"$error":"#N/A"}},{"$f":"LOOKUP(A122,Kode!A2:A216,Kode!C2:C216)","v":{"$error":"#N/A"}},{"$f":"LOOKUP(A122,Kode!A2:A216,Kode!D2:D216)","v":{"$error":"#N/A"}},null,null,null,null,null,null,null,null,null,null,null,null,null,{"$f":"LOOKUP(A122,Kode!A2:A216,Kode!E2:E216)","v":{"$error":"#N/A"}},null,null,null,null,null,null,{"$error":"#DIV/0!"}]
[null,{"$f":"LOOKUP(A123,Kode!A2:A216,Kode!B2:B216)","v":{"$error":"#N/A"}},{"$f":"LOOKUP(A123,Kode!A2:A216,Kode!C2:C216)","v":{"$error":"#N/A"}},{"$f":"LOOKUP(A123,Kode!A2:A216,Kode!D2:D216)","v":{"$error":"#N/A"}},null,null,null,null,null,null,null,null,null,null,null,null,null,{"$f":"LOOKUP(A123,Kode!A2:A216,Kode!E2:E216)","v":{"$error":"#N/A"}},null,null,null,null,null,null,{"$error":"#DIV/0!"}]
[null,{"$f":"LOOKUP(A124,Kode!A2:A216,Kode!B2:B216)","v":{"$error":"#N/A"}},{"$f":"LOOKUP(A124,Kode!A2:A216,Kode!C2:C216)","v":{"$error":"#N/A"}},{"$f":"LOOKUP(A124,Kode!A2:A216,Kode!D2:D216)","v":{"$error":"#N/A"}},null,null,null,null,null,null,null,null,null,null,null,null,null,{"$f":"LOOKUP(A124,Kode!A2:A216,Kode!E2:E216)","v":{"$error":"#N/A"}},null,null,null,null,null,null,{"$error":"#DIV/0!"}]
[null,{"$f":"LOOKUP(A125,Kode!A2:A216,Kode!B2:B216)","v":{"$error":"#N/A"}},{"$f":"LOOKUP(A125,Kode!A2:A216,Kode!C2:C216)","v":{"$error":"#N/A"}},{"$f":"LOOKUP(A125,Kode!A2:A216,Kode!D2:D216)","v":{"$error":"#N/A"}},null,null,null,null,null,null,null,null,null,null,null,null,null,{"$f":"LOOKUP(A125,Kode!A2:A216,Kode!E2:E216)","v":{"$error":"#N/A"}},null,null,null,null,null,null,{"$error":"#DIV/0!"}]
[null,{"$f":"LOOKUP(A126,Kode!A2:A216,Kode!B2:B216)","v":{"$error":"#N/A"}},{"$f":"LOOKUP(A126,Kode!A2:A216,Kode!C2:C216)","v":{"$error":"#N/A"}},{"$f":"LOOKUP(A126,Kode!A2:A216,Kode!D2:D216)","v":{"$error":"#N/A"}},null,null,null,null,null,null,null,null,null,null,null,null,null,{"$f":"LOOKUP(A126,Kode!A2:A216,Kode!E2:E216)","v":{"$error":"#N/A"}},null,null,null,null,null,null,{"$error":"#DIV/0!"}]
[null,{"$f":"LOOKUP(A127,Kode!A2:A216,Kode!B2:B216)","v":{"$error":"#N/A"}},{"$f":"LOOKUP(A127,Kode!A2:A216,Kode!C2:C216)","v":{"$error":"#N/A"}},{"$f":"LOOKUP(A127,Kode!A2:A216,Kode!D2:D216)","v":{"$error":"#N/A"}},null,null,null,null,null,null,null,null,null,null,null,null,null,{"$f":"LOOKUP(A127,Kode!A2:A216,Kode!E2:E216)","v":{"$error":"#N/A"}},null,null,null,null,null,null,{"$error":"#DIV/0!"}]
[null,{"$f":"LOOKUP(A128,Kode!A2:A216,Kode!B2:B216)","v":{"$error":"#N/A"}},{"$f":"LOOKUP(A128,Kode!A2:A216,Kode!C2:C216)","v":{"$error":"#N/A"}},{"$f":"LOOKUP(A128,Kode!A2:A216,Kode!D2:D216)","v":{"$error":"#N/A"}},null,null,null,null,null,null,null,null,null,null,null,null,null,{"$f":"LOOKUP(A128,Kode!A2:A216,Kode!E2:E216)","v":{"$error":"#N/A"}},null,null,null,null,null,null,{"$error":"#DIV/0!"}]
[null,{"$f":"LOOKUP(A129,Kode!A2:A216,Kode!B2:B216)","v":{"$error":"#N/A"}},{"$f":"LOOKUP(A129,Kode!A2:A216,Kode!C2:C216)","v":{"$error":"#N/A"}},{"$f":"LOOKUP(A129,Kode!A2:A216,Kode!D2:D216)","v":{"$error":"#N/A"}},null,null,null,null,null,null,null,null,null,null,null,null,null,{"$f":"LOOKUP(A129,Kode!A2:A216,Kode!E2:E216)","v":{"$error":"#N/A"}},null,null,null,null,null,null,{"$error":"#DIV/0!"}]
[null,{"$f":"LOOKUP(A130,Kode!A2:A216,Kode!B2:B216)","v":{"$error":"#N/A"}},{"$f":"LOOKUP(A130,Kode!A2:A216,Kode!C2:C216)","v":{"$error":"#N/A"}},{"$f":"LOOKUP(A130,Kode!A2:A216,Kode!D2:D216)","v":{"$error":"#N/A"}},null,null,null,null,null,null,null,null,null,null,null,null,null,{"$f":"LOOKUP(A130,Kode!A2:A216,Kode!E2:E216)","v":{"$error":"#N/A"}},null,null,null,null,null,null,{"$error":"#DIV/0!"}]
[null,{"$f":"LOOKUP(A131,Kode!A2:A216,Kode!B2:B216)","v":{"$error":"#N/A"}},{"$f":"LOOKUP(A131,Kode!A2:A216,Kode!C2:C216)","v":{"$error":"#N/A"}},{"$f":"LOOKUP(A131,Kode!A2:A216,Kode!D2:D216)","v":{"$error":"#N/A"}},null,null,null,null,null,null,null,null,null,null,null,null,null,{"$f":"LOOKUP(A131,Kode!A2:A216,Kode!E2:E216)","v":{"$error":"#N/A"}},null,null,null,null,null,null,{"$f":"V131/T131*100","v":{"$error":"#DIV/0!"}}]
[null,{"$f":"LOOKUP(A132,Kode!A2:A216,Kode!B2:B216)","v":{"$error":"#N/A"}},{"$f":"LOOKUP(A132,Kode!A2:A216,Kode!C2:C216)","v":{"$error":"#N/A"}},{"$f":"LOOKUP(A132,Kode!A2:A216,Kode!D2:D216)","v":{"$error":"#N/A"}},null,null,null,null,null,null,null,null,null,null,null,null,null,{"$f":"LOOKUP(A132,Kode!A2:A216,Kode!E2:E216)","v":{"$error":"#N/A"}},null,null,null,null,null,null,{"$error":"#DIV/0!"}]
[null,{"$f":"LOOKUP(A133,Kode!A2:A216,Kode!B2:B216)","v":{"$error":"#N/A"}},{"$f":"LOOKUP(A133,Kode!A2:A216,Kode!C2:C216)","v":{"$error":"#N/A"}},{"$f":"LOOKUP(A133,Kode!A2:A216,Kode!D2:D216)","v":{"$error":"#N/A"}},null,null,null,null,null,null,null,null,null,null,null,null,null,{"$f":"LOOKUP(A133,Kode!A2:A216,Kode!E2:E216)","v":{"$error":"#N/A"}},null,null,null,null,null,null,{"$error":"#DIV/0!"}]
[null,{"$f":"LOOKUP(A134,Kode!A2:A216,Kode!B2:B216)","v":{"$error":"#N/A"}},{"$f":"LOOKUP(A134,Kode!A2:A216,Kode!C2:C216)","v":{"$error":"#N/A"}},{"$f":"LOOKUP(A134,Kode!A2:A216,Kode!D2:D216)","v":{"$error":"#N/A"}},null,null,null,null,null,null,null,null,null,null,null,null,null,{"$f":"LOOKUP(A134,Kode!A2:A216,Kode!E2:E216)","v":{"$error":"#N/A"}},null,null,null,null,null,null,{"$error":"#DIV/0!"}]
[null,{"$f":"LOOKUP(A135,Kode!A2:A216,Kode!B2:B216)","v":{"$error":"#N/A"}},{"$f":"LOOKUP(A135,Kode!A2:A216,Kode!C2:C216)","v":{"$error":"#N/A"}},{"$f":"LOOKUP(A135,Kode!A2:A216,Kode!D2:D216)","v":{"$error":"#N/A"}},null,null,null,null,null,null,null,null,null,null,null,null,null,{"$f":"LOOKUP(A135,Kode!A2:A216,Kode!E2:E216)","v":{"$error":"#N/A"}},null,null,null,null,null,null,{"$error":"#DIV/0!"}]
[null,{"$f":"LOOKUP(A136,Kode!A2:A216,Kode!B2:B216)","v":{"$error":"#N/A"}},{"$f":"LOOKUP(A136,Kode!A2:A216,Kode!C2:C216)","v":{"$error":"#N/A"}},{"$f":"LOOKUP(A136,Kode!A2:A216,Kode!D2:D216)","v":{"$error":"#N/A"}},null,null,null,null,null,null,null,null,null,null,null,null,null,{"$f":"LOOKUP(A136,Kode!A2:A216,Kode!E2:E216)","v":{"$error":"#N/A"}},null,null,null,null,null,null,{"$error":"#DIV/0!"}]
[null,{"$f":"LOOKUP(A137,Kode!A2:A216,Kode!B2:B216)","v":{"$error":"#N/A"}},{"$f":"LOOKUP(A137,Kode!A2:A216,Kode!C2:C216)","v":{"$error":"#N/A"}},{"$f":"LOOKUP(A137,Kode!A2:A216,Kode!D2:D216)","v":{"$error":"#N/A"}},null,null,null,null,null,null,null,null,null,null,null,null,null,{"$f":"LOOKUP(A137,Kode!A2:A216,Kode!E2:E216)","v":{"$error":"#N/A"}},null,null,null,null,null,null,{"$error":"#DIV/0!"}]
[null,{"$f":"LOOKUP(A138,Kode!A2:A216,Kode!B2:B216)","v":{"$error":"#N/A"}},{"$f":"LOOKUP(A138,Kode!A2:A216,Kode!C2:C216)","v":{"$error":"#N/A"}},{"$f":"LOOKUP(A138,Kode!A2:A216,Kode!D2:D216)","v":{"$error":"#N/A"}},null,null,null,null,null,null,null,null,null,null,null,null,null,{"$f":"LOOKUP(A138,Kode!A2:A216,Kode!E2:E216)","v":{"$error":"#N/A"}},null,null,null,null,null,null,{"$error":"#DIV/0!"}]
[null,{"$f":"LOOKUP(A139,Kode!A2:A216,Kode!B2:B216)","v":{"$error":"#N/A"}},{"$f":"LOOKUP(A139,Kode!A2:A216,Kode!C2:C216)","v":{"$error":"#N/A"}},{"$f":"LOOKUP(A139,Kode!A2:A216,Kode!D2:D216)","v":{"$error":"#N/A"}},null,null,null,null,null,null,null,null,null,null,null,null,null,{"$f":"LOOKUP(A139,Kode!A2:A216,Kode!E2:E216)","v":{"$error":"#N/A"}},null,null,null,null,null,null,{"$error":"#DIV/0!"}]
[null,{"$f":"LOOKUP(A140,Kode!A2:A216,Kode!B2:B216)","v":{"$error":"#N/A"}},{"$f":"LOOKUP(A140,Kode!A2:A216,Kode!C2:C216)","v":{"$error":"#N/A"}},{"$f":"LOOKUP(A140,Kode!A2:A216,Kode!D2:D216)","v":{"$error":"#N/A"}},null,null,null,null,null,null,null,null,null,null,null,null,null,{"$f":"LOOKUP(A140,Kode!A2:A216,Kode!E2:E216)","v":{"$error":"#N/A"}},null,null,null,null,null,null,{"$error":"#DIV/0!"}]
[null,{"$f":"LOOKUP(A141,Kode!A2:A216,Kode!B2:B216)","v":{"$error":"#N/A"}},{"$f":"LOOKUP(A141,Kode!A2:A216,Kode!C2:C216)","v":{"$error":"#N/A"}},{"$f":"LOOKUP(A141,Kode!A2:A216,Kode!D2:D216)","v":{"$error":"#N/A"}},null,null,null,null,null,null,null,null,null,null,null,null,null,{"$f":"LOOKUP(A141,Kode!A2:A216,Kode!E2:E216)","v":{"$error":"#N/A"}},null,null,null,null,null,null,{"$error":"#DIV/0!"}]
[null,{"$f":"LOOKUP(A142,Kode!A2:A216,Kode!B2:B216)","v":{"$error":"#N/A"}},{"$f":"LOOKUP(A142,Kode!A2:A216,Kode!C2:C216)","v":{"$error":"#N/A"}},{"$f":"LOOKUP(A142,Kode!A2:A216,Kode!D2:D216)","v":{"$error":"#N/A"}},null,null,null,null,null,null,null,null,null,null,null,null,null,{"$f":"LOOKUP(A142,Kode!A2:A216,Kode!E2:E216)","v":{"$error":"#N/A"}},null,null,null,null,null,null,{"$error":"#DIV/0!"}]
[null,{"$f":"LOOKUP(A143,Kode!A2:A216,Kode!B2:B216)","v":{"$error":"#N/A"}},{"$f":"LOOKUP(A143,Kode!A2:A216,Kode!C2:C216)","v":{"$error":"#N/A"}},{"$f":"LOOKUP(A143,Kode!A2:A216,Kode!D2:D216)","v":{"$error":"#N/A"}},null,null,null,null,null,null,null,null,null,null,null,null,null,{"$f":"LOOKUP(A143,Kode!A2:A216,Kode!E2:E216)","v":{"$error":"#N/A"}},null,null,null,null,null,null,{"$error":"#DIV/0!"}]
[null,{"$f":"LOOKUP(A144,Kode!A2:A216,Kode!B2:B216)","v":{"$error":"#N/A"}},{"$f":"LOOKUP(A144,Kode!A2:A216,Kode!C2:C216)","v":{"$error":"#N/A"}},{"$f":"LOOKUP(A144,Kode!A2:A216,Kode!D2:D216)","v":{"$error":"#N/A"}},null,null,null,null,null,null,null,null,null,null,null,null,null,{"$f":"LOOKUP(A144,Kode!A2:A216,Kode!E2:E216)","v":{"$error":"#N/A"}},null,null,null,null,null,null,{"$error":"#DIV/0!"}]
[null,{"$f":"LOOKUP(A145,Kode!A2:A216,Kode!B2:B216)","v":{"$error":"#N/A"}},{"$f":"LOOKUP(A145,Kode!A2:A216,Kode!C2:C216)","v":{"$error":"#N/A"}},{"$f":"LOOKUP(A145,Kode!A2:A216,Kode!D2:D216)","v":{"$error":"#N/A"}},null,null,null,null,null,null,null,null,null,null,null,null,null,{"$f":"LOOKUP(A145,Kode!A2:A216,Kode!E2:E216)","v":{"$error":"#N/A"}},null,null,null,null,null,null,{"$error":"#DIV/0!"}]
[null,{"$f":"LOOKUP(A146,Kode!A2:A216,Kode!B2:B216)","v":{"$error":"#N/A"}},{"$f":"LOOKUP(A146,Kode!A2:A216,Kode!C2:C216)","v":{"$error":"#N/A"}},{"$f":"LOOKUP(A146,Kode!A2:A216,Kode!D2:D216)","v":{"$error":"#N/A"}},null,null,null,null,null,null,null,null,null,null,null,null,null,{"$f":"LOOKUP(A146,Kode!A2:A216,Kode!E2:E216)","v":{"$error":"#N/A"}},null,null,null,null,null,null,{"$error":"#DIV/0!"}]
[null,{"$f":"LOOKUP(A147,Kode!A2:A216,Kode!B2:B216)","v":{"$error":"#N/A"}},{"$f":"LOOKUP(A147,Kode!A2:A216,Kode!C2:C216)","v":{"$error":"#N/A"}},{"$f":"LOOKUP(A147,Kode!A2:A216,Kode!D2:D216)","v":{"$error":"#N/A"}},null,null,null,null,null,null,null,null,null,null,null,null,null,{"$f":"LOOKUP(A147,Kode!A2:A216,Kode!E2:E216)","v":{"$error":"#N/A"}},null,null,null,null,null,null,{"$error":"#DIV/0!"}]
[null,{"$f":"LOOKUP(A148,Kode!A2:A216,Kode!B2:B216)","v":{"$error":"#N/A"}},{"$f":"LOOKUP(A148,Kode!A2:A216,Kode!C2:C216)","v":{"$error":"#N/A"}},{"$f":"LOOKUP(A148,Kode!A2:A216,Kode!D2:D216)","v":{"$error":"#N/A"}},null,null,null,null,null,null,null,null,null,null,null,null,null,{"$f":"LOOKUP(A148,Kode!A2:A216,Kode!E2:E216)","v":{"$error":"#N/A"}},null,null,null,null,null,null,{"$error":"#DIV/0!"}]
[null,{"$f":"LOOKUP(A149,Kode!A2:A216,Kode!B2:B216)","v":{"$error":"#N/A"}},{"$f":"LOOKUP(A149,Kode!A2:A216,Kode!C2:C216)","v":{"$error":"#N/A"}},{"$f":"LOOKUP(A149,Kode!A2:A216,Kode!D2:D216)","v":{"$error":"#N/A"}},null,null,null,null,null,null,null,null,null,null,null,null,null,{"$f":"LOOKUP(A149,Kode!A2:A216,Kode!E2:E216)","v":{"$error":"#N/A"}},null,null,null,null,null,null,{"$error":"#DIV/0!"}]
[null,{"$f":"LOOKUP(A150,Kode!A2:A216,Kode!B2:B216)","v":{"$error":"#N/A"}},{"$f":"LOOKUP(A150,Kode!A2:A216,Kode!C2:C216)","v":{"$error":"#N/A"}},{"$f":"LOOKUP(A150,Kode!A2:A216,Kode!D2:D216)","v":{"$error":"#N/A"}},null,null,null,null,null,null,null,null,null,null,null,null,null,{"$f":"LOOKUP(A150,Kode!A2:A216,Kode!E2:E216)","v":{"$error":"#N/A"}},null,null,null,null,null,null,{"$error":"#DIV/0!"}]
[null,{"$f":"LOOKUP(A151,Kode!A2:A216,Kode!B2:B216)","v":{"$error":"#N/A"}},{"$f":"LOOKUP(A151,Kode!A2:A216,Kode!C2:C216)","v":{"$error":"#N/A"}},{"$f":"LOOKUP(A151,Kode!A2:A216,Kode!D2:D216)","v":{"$error":"#N/A"}},null,null,null,null,null,null,null,null,null,null,null,null,null,{"$f":"LOOKUP(A151,Kode!A2:A216,Kode!E2:E216)","v":{"$error":"#N/A"}},null,null,null,null,null,null,{"$error":"#DIV/0!"}]
[null,{"$f":"LOOKUP(A152,Kode!A2:A216,Kode!B2:B216)","v":{"$error":"#N/A"}},{"$f":"LOOKUP(A152,Kode!A2:A216,Kode!C2:C216)","v":{"$error":"#N/A"}},{"$f":"LOOKUP(A152,Kode!A2:A216,Kode!D2:D216)","v":{"$error":"#N/A"}},null,null,null,null,null,null,null,null,null,null,null,null,null,{"$f":"LOOKUP(A152,Kode!A2:A216,Kode!E2:E216)","v":{"$error":"#N/A"}},null,null,null,null,null,null,{"$error":"#DIV/0!"}]
[null,{"$f":"LOOKUP(A153,Kode!A2:A216,Kode!B2:B216)","v":{"$error":"#N/A"}},{"$f":"LOOKUP(A153,Kode!A2:A216,Kode!C2:C216)","v":{"$error":"#N/A"}},{"$f":"LOOKUP(A153,Kode!A2:A216,Kode!D2:D216)","v":{"$error":"#N/A"}},null,null,null,null,null,null,null,null,null,null,null,null,null,{"$f":"LOOKUP(A153,Kode!A2:A216,Kode!E2:E216)","v":{"$error":"#N/A"}},null,null,null,null,null,null,{"$error":"#DIV/0!"}]
[null,{"$f":"LOOKUP(A154,Kode!A2:A216,Kode!B2:B216)","v":{"$error":"#N/A"}},{"$f":"LOOKUP(A154,Kode!A2:A216,Kode!C2:C216)","v":{"$error":"#N/A"}},{"$f":"LOOKUP(A154,Kode!A2:A216,Kode!D2:D216)","v":{"$error":"#N/A"}},null,null,null,null,null,null,null,null,null,null,null,null,null,{"$f":"LOOKUP(A154,Kode!A2:A216,Kode!E2:E216)","v":{"$error":"#N/A"}},null,null,null,null,null,null,{"$error":"#DIV/0!"}]
[null,{"$f":"LOOKUP(A155,Kode!A2:A216,Kode!B2:B216)","v":{"$error":"#N/A"}},{"$f":"LOOKUP(A155,Kode!A2:A216,Kode!C2:C216)","v":{"$error":"#N/A"}},{"$f":"LOOKUP(A155,Kode!A2:A216,Kode!D2:D216)","v":{"$error":"#N/A"}},null,null,null,null,null,null,null,null,null,null,null,null,null,{"$f":"LOOKUP(A155,Kode!A2:A216,Kode!E2:E216)","v":{"$error":"#N/A"}},null,null,null,null,null,null,{"$error":"#DIV/0!"}]
[null,{"$f":"LOOKUP(A156,Kode!A2:A216,Kode!B2:B216)","v":{"$error":"#N/A"}},{"$f":"LOOKUP(A156,Kode!A2:A216,Kode!C2:C216)","v":{"$error":"#N/A"}},{"$f":"LOOKUP(A156,Kode!A2:A216,Kode!D2:D216)","v":{"$error":"#N/A"}},null,null,null,null,null,null,null,null,null,null,null,null,null,{"$f":"LOOKUP(A156,Kode!A2:A216,Kode!E2:E216)","v":{"$error":"#N/A"}},null,null,null,null,null,null,{"$error":"#DIV/0!"}]
[null,{"$f":"LOOKUP(A157,Kode!A2:A216,Kode!B2:B216)","v":{"$error":"#N/A"}},{"$f":"LOOKUP(A157,Kode!A2:A216,Kode!C2:C216)","v":{"$error":"#N/A"}},{"$f":"LOOKUP(A157,Kode!A2:A216,Kode!D2:D216)","v":{"$error":"#N/A"}},null,null,null,null,null,null,null,null,null,null,null,null,null,{"$f":"LOOKUP(A157,Kode!A2:A216,Kode!E2:E216)","v":{"$error":"#N/A"}},null,null,null,null,null,null,{"$error":"#DIV/0!"}]
[null,{"$f":"LOOKUP(A158,Kode!A2:A216,Kode!B2:B216)","v":{"$error":"#N/A"}},{"$f":"LOOKUP(A158,Kode!A2:A216,Kode!C2:C216)","v":{"$error":"#N/A"}},{"$f":"LOOKUP(A158,Kode!A2:A216,Kode!D2:D216)","v":{"$error":"#N/A"}},null,null,null,null,null,null,null,null,null,null,null,null,null,{"$f":"LOOKUP(A158,Kode!A2:A216,Kode!E2:E216)","v":{"$error":"#N/A"}},null,null,null,null,null,null,{"$error":"#DIV/0!"}]
[null,{"$f":"LOOKUP(A159,Kode!A2:A216,Kode!B2:B216)","v":{"$error":"#N/A"}},{"$f":"LOOKUP(A159,Kode!A2:A216,Kode!C2:C216)","v":{"$error":"#N/A"}},{"$f":"LOOKUP(A159,Kode!A2:A216,Kode!D2:D216)","v":{"$error":"#N/A"}},null,null,null,null,null,null,null,null,null,null,null,null,null,{"$f":"LOOKUP(A159,Kode!A2:A216,Kode!E2:E216)","v":{"$error":"#N/A"}},null,null,null,null,null,null,{"$error":"#DIV/0!"}]
[null,{"$f":"LOOKUP(A160,Kode!A2:A216,Kode!B2:B216)","v":{"$error":"#N/A"}},{"$f":"LOOKUP(A160,Kode!A2:A216,Kode!C2:C216)","v":{"$error":"#N/A"}},{"$f":"LOOKUP(A160,Kode!A2:A216,Kode!D2:D216)","v":{"$error":"#N/A"}},null,null,null,null,null,null,null,null,null,null,null,null,null,{"$f":"LOOKUP(A160,Kode!A2:A216,Kode!E2:E216)","v":{"$error":"#N/A"}},null,null,null,null,null,null,{"$error":"#DIV/0!"}]
[null,{"$f":"LOOKUP(A161,Kode!A2:A216,Kode!B2:B216)","v":{"$error":"#N/A"}},{"$f":"LOOKUP(A161,Kode!A2:A216,Kode!C2:C216)","v":{"$error":"#N/A"}},{"$f":"LOOKUP(A161,Kode!A2:A216,Kode!D2:D216)","v":{"$error":"#N/A"}},null,null,null,null,null,null,null,null,null,null,null,null,null,{"$f":"LOOKUP(A161,Kode!A2:A216,Kode!E2:E216)","v":{"$error":"#N/A"}},null,null,null,null,null,null,{"$error":"#DIV/0!"}]
[null,{"$f":"LOOKUP(A162,Kode!A2:A216,Kode!B2:B216)","v":{"$error":"#N/A"}},{"$f":"LOOKUP(A162,Kode!A2:A216,Kode!C2:C216)","v":{"$error":"#N/A"}},{"$f":"LOOKUP(A162,Kode!A2:A216,Kode!D2:D216)","v":{"$error":"#N/A"}},null,null,null,null,null,null,null,null,null,null,null,null,null,{"$f":"LOOKUP(A162,Kode!A2:A216,Kode!E2:E216)","v":{"$error":"#N/A"}},null,null,null,null,null,null,{"$error":"#DIV/0!"}]
[null,{"$f":"LOOKUP(A163,Kode!A2:A216,Kode!B2:B216)","v":{"$error":"#N/A"}},{"$f":"LOOKUP(A163,Kode!A2:A216,Kode!C2:C216)","v":{"$error":"#N/A"}},{"$f":"LOOKUP(A163,Kode!A2:A216,Kode!D2:D216)","v":{"$error":"#N/A"}},null,null,null,null,null,null,null,null,null,null,null,null,null,{"$f":"LOOKUP(A163,Kode!A2:A216,Kode!E2:E216)","v":{"$error":"#N/A"}},null,null,null,null,null,null,{"$error":"#DIV/0!"}]
[null,{"$f":"LOOKUP(A164,Kode!A2:A216,Kode!B2:B216)","v":{"$error":"#N/A"}},{"$f":"LOOKUP(A164,Kode!A2:A216,Kode!C2:C216)","v":{"$error":"#N/A"}},{"$f":"LOOKUP(A164,Kode!A2:A216,Kode!D2:D216)","v":{"$error":"#N/A"}},null,null,null,null,null,null,null,null,null,null,null,null,null,{"$f":"LOOKUP(A164,Kode!A2:A216,Kode!E2:E216)","v":{"$error":"#N/A"}},null,null,null,null,null,null,{"$error":"#DIV/0!"}]
[null,{"$f":"LOOKUP(A165,Kode!A2:A216,Kode!B2:B216)","v":{"$error":"#N/A"}},{"$f":"LOOKUP(A165,Kode!A2:A216,Kode!C2:C216)","v":{"$error":"#N/A"}},{"$f":"LOOKUP(A165,Kode!A2:A216,Kode!D2:D216)","v":{"$error":"#N/A"}},null,null,null,null,null,null,null,null,null,null,null,null,null,{"$f":"LOOKUP(A165,Kode!A2:A216,Kode!E2:E216)","v":{"$error":"#N/A"}},null,null,null,null,null,null,{"$error":"#DIV/0!"}]
[null,{"$f":"LOOKUP(A166,Kode!A2:A216,Kode!B2:B216)","v":{"$error":"#N/A"}},{"$f":"LOOKUP(A166,Kode!A2:A216,Kode!C2:C216)","v":{"$error":"#N/A"}},{"$f":"LOOKUP(A166,Kode!A2:A216,Kode!D2:D216)","v":{"$error":"#N/A"}},null,null,null,null,null,null,null,null,null,null,null,null,null,{"$f":"LOOKUP(A166,Kode!A2:A216,Kode!E2:E216)","v":{"$error":"#N/A"}},null,null,null,null,null,null,{"$error":"#DIV/0!"}]
[null,{"$f":"LOOKUP(A167,Kode!A2:A216,Kode!B2:B216)","v":{"$error":"#N/A"}},{"$f":"LOOKUP(A167,Kode!A2:A216,Kode!C2:C216)","v":{"$error":"#N/A"}},{"$f":"LOOKUP(A167,Kode!A2:A216,Kode!D2:D216)","v":{"$error":"#N/A"}},null,null,null,null,null,null,null,null,null,null,null,null,null,{"$f":"LOOKUP(A167,Kode!A2:A216,Kode!E2:E216)","v":{"$error":"#N/A"}},null,null,null,null,null,null,{"$error":"#DIV/0!"}]
[null,{"$f":"LOOKUP(A168,Kode!A2:A216,Kode!B2:B216)","v":{"$error":"#N/A"}},{"$f":"LOOKUP(A168,Kode!A2:A216,Kode!C2:C216)","v":{"$error":"#N/A"}},{"$f":"LOOKUP(A168,Kode!A2:A216,Kode!D2:D216)","v":{"$error":"#N/A"}},null,null,null,null,null,null,null,null,null,null,null,null,null,{"$f":"LOOKUP(A168,Kode!A2:A216,Kode!E2:E216)","v":{"$error":"#N/A"}},null,null,null,null,null,null,{"$error":"#DIV/0!"}]
[null,{"$f":"LOOKUP(A169,Kode!A2:A216,Kode!B2:B216)","v":{"$error":"#N/A"}},{"$f":"LOOKUP(A169,Kode!A2:A216,Kode!C2:C216)","v":{"$error":"#N/A"}},{"$f":"LOOKUP(A169,Kode!A2:A216,Kode!D2:D216)","v":{"$error":"#N/A"}},null,null,null,null,null,null,null,null,null,null,null,null,null,{"$f":"LOOKUP(A169,Kode!A2:A216,Kode!E2:E216)","v":{"$error":"#N/A"}},null,null,null,null,null,null,{"$error":"#DIV/0!"}]
[null,{"$f":"LOOKUP(A170,Kode!A2:A216,Kode!B2:B216)","v":{"$error":"#N/A"}},{"$f":"LOOKUP(A170,Kode!A2:A216,Kode!C2:C216)","v":{"$error":"#N/A"}},{"$f":"LOOKUP(A170,Kode!A2:A216,Kode!D2:D216)","v":{"$error":"#N/A"}},null,null,null,null,null,null,null,null,null,null,null,null,null,{"$f":"LOOKUP(A170,Kode!A2:A216,Kode!E2:E216)","v":{"$error":"#N/A"}},null,null,null,null,null,null,{"$error":"#DIV/0!"}]
[null,{"$f":"LOOKUP(A171,Kode!A2:A216,Kode!B2:B216)","v":{"$error":"#N/A"}},{"$f":"LOOKUP(A171,Kode!A2:A216,Kode!C2:C216)","v":{"$error":"#N/A"}},{"$f":"LOOKUP(A171,Kode!A2:A216,Kode!D2:D216)","v":{"$error":"#N/A"}},null,null,null,null,null,null,null,null,null,null,null,null,null,{"$f":"LOOKUP(A171,Kode!A2:A216,Kode!E2:E216)","v":{"$error":"#N/A"}},null,null,null,null,null,null,{"$error":"#DIV/0!"}]
[null,{"$f":"LOOKUP(A172,Kode!A2:A216,Kode!B2:B216)","v":{"$error":"#N/A"}},{"$f":"LOOKUP(A172,Kode!A2:A216,Kode!C2:C216)","v":{"$error":"#N/A"}},{"$f":"LOOKUP(A172,Kode!A2:A216,Kode!D2:D216)","v":{"$error":"#N/A"}},null,null,null,null,null,null,null,null,null,null,null,null,null,{"$f":"LOOKUP(A172,Kode!A2:A216,Kode!E2:E216)","v":{"$error":"#N/A"}},null,null,null,null,null,null,{"$error":"#DIV/0!"}]
[null,{"$f":"LOOKUP(A173,Kode!A2:A216,Kode!B2:B216)","v":{"$error":"#N/A"}},{"$f":"LOOKUP(A173,Kode!A2:A216,Kode!C2:C216)","v":{"$error":"#N/A"}},{"$f":"LOOKUP(A173,Kode!A2:A216,Kode!D2:D216)","v":{"$error":"#N/A"}},null,null,null,null,null,null,null,null,null,null,null,null,null,{"$f":"LOOKUP(A173,Kode!A2:A216,Kode!E2:E216)","v":{"$error":"#N/A"}},null,null,null,null,null,null,{"$error":"#DIV/0!"}]
[null,{"$f":"LOOKUP(A174,Kode!A2:A216,Kode!B2:B216)","v":{"$error":"#N/A"}},{"$f":"LOOKUP(A174,Kode!A2:A216,Kode!C2:C216)","v":{"$error":"#N/A"}},{"$f":"LOOKUP(A174,Kode!A2:A216,Kode!D2:D216)","v":{"$error":"#N/A"}},null,null,null,null,null,null,null,null,null,null,null,null,null,{"$f":"LOOKUP(A174,Kode!A2:A216,Kode!E2:E216)","v":{"$error":"#N/A"}},null,null,null,null,null,null,{"$error":"#DIV/0!"}]
[null,{"$f":"LOOKUP(A175,Kode!A2:A216,Kode!B2:B216)","v":{"$error":"#N/A"}},{"$f":"LOOKUP(A175,Kode!A2:A216,Kode!C2:C216)","v":{"$error":"#N/A"}},{"$f":"LOOKUP(A175,Kode!A2:A216,Kode!D2:D216)","v":{"$error":"#N/A"}},null,null,null,null,null,null,null,null,null,null,null,null,null,{"$f":"LOOKUP(A175,Kode!A2:A216,Kode!E2:E216)","v":{"$error":"#N/A"}},null,null,null,null,null,null,{"$error":"#DIV/0!"}]
[null,{"$f":"LOOKUP(A176,Kode!A2:A216,Kode!B2:B216)","v":{"$error":"#N/A"}},{"$f":"LOOKUP(A176,Kode!A2:A216,Kode!C2:C216)","v":{"$error":"#N/A"}},{"$f":"LOOKUP(A176,Kode!A2:A216,Kode!D2:D216)","v":{"$error":"#N/A"}},null,null,null,null,null,null,null,null,null,null,null,null,null,{"$f":"LOOKUP(A176,Kode!A2:A216,Kode!E2:E216)","v":{"$error":"#N/A"}},null,null,null,null,null,null,{"$error":"#DIV/0!"}]
[null,{"$f":"LOOKUP(A177,Kode!A2:A216,Kode!B2:B216)","v":{"$error":"#N/A"}},{"$f":"LOOKUP(A177,Kode!A2:A216,Kode!C2:C216)","v":{"$error":"#N/A"}},{"$f":"LOOKUP(A177,Kode!A2:A216,Kode!D2:D216)","v":{"$error":"#N/A"}},null,null,null,null,null,null,null,null,null,null,null,null,null,{"$f":"LOOKUP(A177,Kode!A2:A216,Kode!E2:E216)","v":{"$error":"#N/A"}},null,null,null,null,null,null,{"$error":"#DIV/0!"}]
[null,{"$f":"LOOKUP(A178,Kode!A2:A216,Kode!B2:B216)","v":{"$error":"#N/A"}},{"$f":"LOOKUP(A178,Kode!A2:A216,Kode!C2:C216)","v":{"$error":"#N/A"}},{"$f":"LOOKUP(A178,Kode!A2:A216,Kode!D2:D216)","v":{"$error":"#N/A"}},null,null,null,null,null,null,null,null,null,null,null,null,null,{"$f":"LOOKUP(A178,Kode!A2:A216,Kode!E2:E216)","v":{"$error":"#N/A"}},null,null,null,null,null,null,{"$error":"#DIV/0!"}]
[null,{"$f":"LOOKUP(A179,Kode!A2:A216,Kode!B2:B216)","v":{"$error":"#N/A"}},{"$f":"LOOKUP(A179,Kode!A2:A216,Kode!C2:C216)","v":{"$error":"#N/A"}},{"$f":"LOOKUP(A179,Kode!A2:A216,Kode!D2:D216)","v":{"$error":"#N/A"}},null,null,null,null,null,null,null,null,null,null,null,null,null,{"$f":"LOOKUP(A179,Kode!A2:A216,Kode!E2:E216)","v":{"$error":"#N/A"}},null,null,null,null,null,null,{"$error":"#DIV/0!"}]
[null,{"$f":"LOOKUP(A180,Kode!A2:A216,Kode!B2:B216)","v":{"$error":"#N/A"}},{"$f":"LOOKUP(A180,Kode!A2:A216,Kode!C2:C216)","v":{"$error":"#N/A"}},{"$f":"LOOKUP(A180,Kode!A2:A216,Kode!D2:D216)","v":{"$error":"#N/A"}},null,null,null,null,null,null,null,null,null,null,null,null,null,{"$f":"LOOKUP(A180,Kode!A2:A216,Kode!E2:E216)","v":{"$error":"#N/A"}},null,null,null,null,null,null,{"$error":"#DIV/0!"}]
[null,{"$f":"LOOKUP(A181,Kode!A2:A216,Kode!B2:B216)","v":{"$error":"#N/A"}},{"$f":"LOOKUP(A181,Kode!A2:A216,Kode!C2:C216)","v":{"$error":"#N/A"}},{"$f":"LOOKUP(A181,Kode!A2:A216,Kode!D2:D216)","v":{"$error":"#N/A"}},null,null,null,null,null,null,null,null,null,null,null,null,null,{"$f":"LOOKUP(A181,Kode!A2:A216,Kode!E2:E216)","v":{"$error":"#N/A"}},null,null,null,null,null,null,{"$error":"#DIV/0!"}]
[null,{"$f":"LOOKUP(A182,Kode!A2:A216,Kode!B2:B216)","v":{"$error":"#N/A"}},{"$f":"LOOKUP(A182,Kode!A2:A216,Kode!C2:C216)","v":{"$error":"#N/A"}},{"$f":"LOOKUP(A182,Kode!A2:A216,Kode!D2:D216)","v":{"$error":"#N/A"}},null,null,null,null,null,null,null,null,null,null,null,null,null,{"$f":"LOOKUP(A182,Kode!A2:A216,Kode!E2:E216)","v":{"$error":"#N/A"}},null,null,null,null,null,null,{"$error":"#DIV/0!"}]
[null,{"$f":"LOOKUP(A183,Kode!A2:A216,Kode!B2:B216)","v":{"$error":"#N/A"}},{"$f":"LOOKUP(A183,Kode!A2:A216,Kode!C2:C216)","v":{"$error":"#N/A"}},{"$f":"LOOKUP(A183,Kode!A2:A216,Kode!D2:D216)","v":{"$error":"#N/A"}},null,null,null,null,null,null,null,null,null,null,null,null,null,{"$f":"LOOKUP(A183,Kode!A2:A216,Kode!E2:E216)","v":{"$error":"#N/A"}},null,null,null,null,null,null,{"$error":"#DIV/0!"}]
[null,{"$f":"LOOKUP(A184,Kode!A2:A216,Kode!B2:B216)","v":{"$error":"#N/A"}},{"$f":"LOOKUP(A184,Kode!A2:A216,Kode!C2:C216)","v":{"$error":"#N/A"}},{"$f":"LOOKUP(A184,Kode!A2:A216,Kode!D2:D216)","v":{"$error":"#N/A"}},null,null,null,null,null,null,null,null,null,null,null,null,null,{"$f":"LOOKUP(A184,Kode!A2:A216,Kode!E2:E216)","v":{"$error":"#N/A"}},null,null,null,null,null,null,{"$error":"#DIV/0!"}]
[null,{"$f":"LOOKUP(A185,Kode!A2:A216,Kode!B2:B216)","v":{"$error":"#N/A"}},{"$f":"LOOKUP(A185,Kode!A2:A216,Kode!C2:C216)","v":{"$error":"#N/A"}},{"$f":"LOOKUP(A185,Kode!A2:A216,Kode!D2:D216)","v":{"$error":"#N/A"}},null,null,null,null,null,null,null,null,null,null,null,null,null,{"$f":"LOOKUP(A185,Kode!A2:A216,Kode!E2:E216)","v":{"$error":"#N/A"}},null,null,null,null,null,null,{"$error":"#DIV/0!"}]
[null,{"$f":"LOOKUP(A186,Kode!A2:A216,Kode!B2:B216)","v":{"$error":"#N/A"}},{"$f":"LOOKUP(A186,Kode!A2:A216,Kode!C2:C216)","v":{"$error":"#N/A"}},{"$f":"LOOKUP(A186,Kode!A2:A216,Kode!D2:D216)","v":{"$error":"#N/A"}},null,null,null,null,null,null,null,null,null,null,null,null,null,{"$f":"LOOKUP(A186,Kode!A2:A216,Kode!E2:E216)","v":{"$error":"#N/A"}},null,null,null,null,null,null,{"$error":"#DIV/0!"}]
[null,{"$f":"LOOKUP(A187,Kode!A2:A216,Kode!B2:B216)","v":{"$error":"#N/A"}},{"$f":"LOOKUP(A187,Kode!A2:A216,Kode!C2:C216)","v":{"$error":"#N/A"}},{"$f":"LOOKUP(A187,Kode!A2:A216,Kode!D2:D216)","v":{"$error":"#N/A"}},null,null,null,null,null,null,null,null,null,null,null,null,null,{"$f":"LOOKUP(A187,Kode!A2:A216,Kode!E2:E216)","v":{"$error":"#N/A"}},null,null,null,null,null,null,{"$error":"#DIV/0!"}]
[null,{"$f":"LOOKUP(A188,Kode!A2:A216,Kode!B2:B216)","v":{"$error":"#N/A"}},{"$f":"LOOKUP(A188,Kode!A2:A216,Kode!C2:C216)","v":{"$error":"#N/A"}},{"$f":"LOOKUP(A188,Kode!A2:A216,Kode!D2:D216)","v":{"$error":"#N/A"}},null,null,null,null,null,null,null,null,null,null,null,null,null,{"$f":"LOOKUP(A188,Kode!A2:A216,Kode!E2:E216)","v":{"$error":"#N/A"}},null,null,null,null,null,null,{"$error":"#DIV/0!"}]
[null,{"$f":"LOOKUP(A189,Kode!A2:A216,Kode!B2:B216)","v":{"$error":"#N/A"}},{"$f":"LOOKUP(A189,Kode!A2:A216,Kode!C2:C216)","v":{"$error":"#N/A"}},{"$f":"LOOKUP(A189,Kode!A2:A216,Kode!D2:D216)","v":{"$error":"#N/A"}},null,null,null,null,null,null,null,null,null,null,null,null,null,{"$f":"LOOKUP(A189,Kode!A2:A216,Kode!E2:E216)","v":{"$error":"#N/A"}},null,null,null,null,null,null,{"$error":"#DIV/0!"}]
[null,{"$f":"LOOKUP(A190,Kode!A2:A216,Kode!B2:B216)","v":{"$error":"#N/A"}},{"$f":"LOOKUP(A190,Kode!A2:A216,Kode!C2:C216)","v":{"$error":"#N/A"}},{"$f":"LOOKUP(A190,Kode!A2:A216,Kode!D2:D216)","v":{"$error":"#N/A"}},null,null,null,null,null,null,null,null,null,null,null,null,null,{"$f":"LOOKUP(A190,Kode!A2:A216,Kode!E2:E216)","v":{"$error":"#N/A"}},null,null,null,null,null,null,{"$error":"#DIV/0!"}]
[null,{"$f":"LOOKUP(A191,Kode!A2:A216,Kode!B2:B216)","v":{"$error":"#N/A"}},{"$f":"LOOKUP(A191,Kode!A2:A216,Kode!C2:C216)","v":{"$error":"#N/A"}},{"$f":"LOOKUP(A191,Kode!A2:A216,Kode!D2:D216)","v":{"$error":"#N/A"}},null,null,null,null,null,null,null,null,null,null,null,null,null,{"$f":"LOOKUP(A191,Kode!A2:A216,Kode!E2:E216)","v":{"$error":"#N/A"}},null,null,null,null,null,null,{"$error":"#DIV/0!"}]
[null,{"$f":"LOOKUP(A192,Kode!A2:A216,Kode!B2:B216)","v":{"$error":"#N/A"}},{"$f":"LOOKUP(A192,Kode!A2:A216,Kode!C2:C216)","v":{"$error":"#N/A"}},{"$f":"LOOKUP(A192,Kode!A2:A216,Kode!D2:D216)","v":{"$error":"#N/A"}},null,null,null,null,null,null,null,null,null,null,null,null,null,{"$f":"LOOKUP(A192,Kode!A2:A216,Kode!E2:E216)","v":{"$error":"#N/A"}},null,null,null,null,null,null,{"$error":"#DIV/0!"}]
[null,{"$f":"LOOKUP(A193,Kode!A2:A216,Kode!B2:B216)","v":{"$error":"#N/A"}},{"$f":"LOOKUP(A193,Kode!A2:A216,Kode!C2:C216)","v":{"$error":"#N/A"}},{"$f":"LOOKUP(A193,Kode!A2:A216,Kode!D2:D216)","v":{"$error":"#N/A"}},null,null,null,null,null,null,null,null,null,null,null,null,null,{"$f":"LOOKUP(A193,Kode!A2:A216,Kode!E2:E216)","v":{"$error":"#N/A"}},null,null,null,null,null,null,{"$error":"#DIV/0!"}]
[null,{"$f":"LOOKUP(A194,Kode!A2:A216,Kode!B2:B216)","v":{"$error":"#N/A"}},{"$f":"LOOKUP(A194,Kode!A2:A216,Kode!C2:C216)","v":{"$error":"#N/A"}},{"$f":"LOOKUP(A194,Kode!A2:A216,Kode!D2:D216)","v":{"$error":"#N/A"}},null,null,null,null,null,null,null,null,null,null,null,null,null,{"$f":"LOOKUP(A194,Kode!A2:A216,Kode!E2:E216)","v":{"$error":"#N/A"}},null,null,null,null,null,null,{"$error":"#DIV/0!"}]
[null,{"$f":"LOOKUP(A195,Kode!A2:A216,Kode!B2:B216)","v":{"$error":"#N/A"}},{"$f":"LOOKUP(A195,Kode!A2:A216,Kode!C2:C216)","v":{"$error":"#N/A"}},{"$f":"LOOKUP(A195,Kode!A2:A216,Kode!D2:D216)","v":{"$error":"#N/A"}},null,null,null,null,null,null,null,null,null,null,null,null,null,{"$f":"LOOKUP(A195,Kode!A2:A216,Kode!E2:E216)","v":{"$error":"#N/A"}},null,null,null,null,null,null,{"$f":"V195/T195*100","v":{"$error":"#DIV/0!"}}]
[null,{"$f":"LOOKUP(A196,Kode!A2:A216,Kode!B2:B216)","v":{"$error":"#N/A"}},{"$f":"LOOKUP(A196,Kode!A2:A216,Kode!C2:C216)","v":{"$error":"#N/A"}},{"$f":"LOOKUP(A196,Kode!A2:A216,Kode!D2:D216)","v":{"$error":"#N/A"}},null,null,null,null,null,null,null,null,null,null,null,null,null,{"$f":"LOOKUP(A196,Kode!A2:A216,Kode!E2:E216)","v":{"$error":"#N/A"}},null,null,null,null,null,null,{"$error":"#DIV/0!"}]
[null,{"$f":"LOOKUP(A197,Kode!A2:A216,Kode!B2:B216)","v":{"$error":"#N/A"}},{"$f":"LOOKUP(A197,Kode!A2:A216,Kode!C2:C216)","v":{"$error":"#N/A"}},{"$f":"LOOKUP(A197,Kode!A2:A216,Kode!D2:D216)","v":{"$error":"#N/A"}},null,null,null,null,null,null,null,null,null,null,null,null,null,{"$f":"LOOKUP(A197,Kode!A2:A216,Kode!E2:E216)","v":{"$error":"#N/A"}},null,null,null,null,null,null,{"$error":"#DIV/0!"}]
[null,{"$f":"LOOKUP(A198,Kode!A2:A216,Kode!B2:B216)","v":{"$error":"#N/A"}},{"$f":"LOOKUP(A198,Kode!A2:A216,Kode!C2:C216)","v":{"$error":"#N/A"}},{"$f":"LOOKUP(A198,Kode!A2:A216,Kode!D2:D216)","v":{"$error":"#N/A"}},null,null,null,null,null,null,null,null,null,null,null,null,null,{"$f":"LOOKUP(A198,Kode!A2:A216,Kode!E2:E216)","v":{"$error":"#N/A"}},null,null,null,null,null,null,{"$error":"#DIV/0!"}]
[null,{"$f":"LOOKUP(A199,Kode!A2:A216,Kode!B2:B216)","v":{"$error":"#N/A"}},{"$f":"LOOKUP(A199,Kode!A2:A216,Kode!C2:C216)","v":{"$error":"#N/A"}},{"$f":"LOOKUP(A199,Kode!A2:A216,Kode!D2:D216)","v":{"$error":"#N/A"}},null,null,null,null,null,null,null,null,null,null,null,null,null,{"$f":"LOOKUP(A199,Kode!A2:A216,Kode!E2:E216)","v":{"$error":"#N/A"}},null,null,null,null,null,null,{"$error":"#DIV/0!"}]
[null,{"$f":"LOOKUP(A200,Kode!A2:A216,Kode!B2:B216)","v":{"$error":"#N/A"}},{"$f":"LOOKUP(A200,Kode!A2:A216,Kode!C2:C216)","v":{"$error":"#N/A"}},{"$f":"LOOKUP(A200,Kode!A2:A216,Kode!D2:D216)","v":{"$error":"#N/A"}},null,null,null,null,null,null,null,null,null,null,null,null,null,{"$f":"LOOKUP(A200,Kode!A2:A216,Kode!E2:E216)","v":{"$error":"#N/A"}},null,null,null,null,null,null,{"$error":"#DIV/0!"}]
[null,{"$f":"LOOKUP(A201,Kode!A2:A216,Kode!B2:B216)","v":{"$error":"#N/A"}},{"$f":"LOOKUP(A201,Kode!A2:A216,Kode!C2:C216)","v":{"$error":"#N/A"}},{"$f":"LOOKUP(A201,Kode!A2:A216,Kode!D2:D216)","v":{"$error":"#N/A"}},null,null,null,null,null,null,null,null,null,null,null,null,null,{"$f":"LOOKUP(A201,Kode!A2:A216,Kode!E2:E216)","v":{"$error":"#N/A"}},null,null,null,null,null,null,{"$error":"#DIV/0!"}]
[null,{"$f":"LOOKUP(A202,Kode!A2:A216,Kode!B2:B216)","v":{"$error":"#N/A"}},{"$f":"LOOKUP(A202,Kode!A2:A216,Kode!C2:C216)","v":{"$error":"#N/A"}},{"$f":"LOOKUP(A202,Kode!A2:A216,Kode!D2:D216)","v":{"$error":"#N/A"}},null,null,null,null,null,null,null,null,null,null,null,null,null,{"$f":"LOOKUP(A202,Kode!A2:A216,Kode!E2:E216)","v":{"$error":"#N/A"}},null,null,null,null,null,null,{"$error":"#DIV/0!"}]
[null,{"$f":"LOOKUP(A203,Kode!A2:A216,Kode!B2:B216)","v":{"$error":"#N/A"}},{"$f":"LOOKUP(A203,Kode!A2:A216,Kode!C2:C216)","v":{"$error":"#N/A"}},{"$f":"LOOKUP(A203,Kode!A2:A216,Kode!D2:D216)","v":{"$error":"#N/A"}},null,null,null,null,null,null,null,null,null,null,null,null,null,{"$f":"LOOKUP(A203,Kode!A2:A216,Kode!E2:E216)","v":{"$error":"#N/A"}},null,null,null,null,null,null,{"$error":"#DIV/0!"}]
[null,{"$f":"LOOKUP(A204,Kode!A2:A216,Kode!B2:B216)","v":{"$error":"#N/A"}},{"$f":"LOOKUP(A204,Kode!A2:A216,Kode!C2:C216)","v":{"$error":"#N/A"}},{"$f":"LOOKUP(A204,Kode!A2:A216,Kode!D2:D216)","v":{"$error":"#N/A"}},null,null,null,null,null,null,null,null,null,null,null,null,null,{"$f":"LOOKUP(A204,Kode!A2:A216,Kode!E2:E216)","v":{"$error":"#N/A"}},null,null,null,null,null,null,{"$error":"#DIV/0!"}]
[null,{"$f":"LOOKUP(A205,Kode!A2:A216,Kode!B2:B216)","v":{"$error":"#N/A"}},{"$f":"LOOKUP(A205,Kode!A2:A216,Kode!C2:C216)","v":{"$error":"#N/A"}},{"$f":"LOOKUP(A205,Kode!A2:A216,Kode!D2:D216)","v":{"$error":"#N/A"}},null,null,null,null,null,null,null,null,null,null,null,null,null,{"$f":"LOOKUP(A205,Kode!A2:A216,Kode!E2:E216)","v":{"$error":"#N/A"}},null,null,null,null,null,null,{"$error":"#DIV/0!"}]

{"sheet":"Kode","index":1,"n_rows":432,"n_cols":11,"rows_kept":432,"cut":false,"hidden":true,"merged":[]}
["Naziv dajalca pomoči","MŠ dajalca pomoči","ID sheme pomoči","Naziv sheme pomoči","Pravna podlaga sheme pomoči","Šifra občine","Šifra instrumenta","Šifra namena","Opis ukrepa","Investicija","Člen uredbe"]
["Javni sklad malega gospodarstva Goriške",5628849000,"SA.44143(2016/XA)","Finančne spodbude JSMGG  v kmetijskem sektorju  za obdobje 2016-2020","Splošni pogoji poslovanja Javnega sklada malega gospodarstva Goriške za kmetijstvo v programskem obdobju 2015–2020",null,1,"5.0.04.1","a","da",14]
["Javni sklad Republike Slovenije za regionalni razvoj in razvoj podeželja",5940117000,"SA.41608(2015/XA)","Spodbude sklada za naložbe na področjih primarne kmetijske pridelave, predelave in trženja kmetijskih proizvodov ter ohranjanja kulturne in naravne dediščine","Pravilnik o dodeljevanju spodbud",null,5,"5.0.04.2","b","ne",15]
["Magyar Regionális Nemzetiségi Fejlesztési Intézet Lendva - Zavod za regionalni razvoj madžarske narodnosti Lendava",7198337000,"SA.54721(2019/XA)","Shema državne pomoči za ohranjanje in spodbujanje razvoja kmetijstva na območjih občin, v katerih živi avtohtona madžarska narodna skupnost, za programsko obdobje 2019–2020","Pravilnik o ohranjanju in spodbujanju razvoja kmetijstva na območju občin, v katerih živi avtohtona madžarska narodna skupnost za programsko obdobje 2017–2020",null,10,"5.0.04.4","c",null,16]
["Mestna občina Celje",5880360000,"SA.43312(2015/XA)","Ukrepi v podporo ohranjanju in spodbujanju razvoja podeželja v Mestni občini Celje za programsko obdobje 2015 – 2020","Pravilnik o ohranjanju in spodbujanju razvoja kmetijstva in podeželja v Mestni občini Celje za programsko obdobje 2015–2020","011",20,"5.0.04.5","d",null,17]
["Mestna občina Koper",5874424000,"SA.43290(2015/XA)","Ukrepi v podporo ohranjanju in spodbujanju razvoja kmetijstva in podeželja v Mestni občini Koper za programsko obdobje 2015-2020","Pravilnik o ohranjanju in spodbujanju razvoja kmetijstva in podeželja v Mestni občini Koper za programsko obdobje 2015-2020","050",25,"5.0.07.0","e",null,21]
["Mestna občina Kranj",5874653000,"SA.42434(2015/XA)","Podpore za ohranjanje in razvoj kmetijstva v Mestni občini Kranj za leta 2015 – 2020","Pravilnik o dodelitvi pomoči za ohranjanje in spodbujanje razvoja kmetijstva, gozdarstva in podeželja v Mestni občini Kranj za programsko obdobje 2015 – 2020","052",28,"5.0.10.0","f",null,24]
["Mestna občina Ljubljana",5874025000,"SA.41984(2015/XA)","Podpora ukrepom razvoja podeželja v Mestni občini Ljubljana 2015-2020","Pravilnik o ukrepih za razvoj podeželja v Mestni občini Ljubljana za programsko obdobje 2015–2020","061",40,"5.0.11.2","g",null,28]
["Mestna občina Maribor",5883369000,"SA.44883(2016/XA)","Podpore za ohranjanje in spodbujanje razvoja kmetijstva in podeželja v Mestni občini Maribor za programsko obdobje 2016 - 2020","Pravilnik  o ohranjanju in spodbujanju razvoja kmetijstva in podeželja v Mestni občini Maribor za programsko obdobje 2016 – 2020","070",43,"5.0.11.3","h",null,29]
["Mestna občina Murska Sobota",5883172000,"ni priglašene sheme","ni priglašene sheme","ni priglašene sheme","080",48,"5.0.11.4",null,null,38]
["Mestna občina Nova Gorica",5881773000,"SA.43223(2015/XA)","Podpore programom razvoja kmetijstva in podeželja v Mestni občini Nova  Gorica za obdobje 2015-2020","Odlok o ohranjanju in spodbujanju razvoja kmetijstva in podeželja v Mestni občini Nova Gorica za programsko obdobje 2015–2020","084",50,"5.0.11.5",null,null,43]
["Mestna občina Novo mesto",5883288000,"SA.41983(2015/XA","Ukrepi v podporo ohranjanju in spodbujanju razvoja kmetijstva in podeželja v Mestni občini Novo mesto za programsko obdobje 2015 – 2020","Pravilnik o ohranjanju in spodbujanju razvoja kmetijstva in podeželja v Mestni občini Novo mesto za programsko obdobje 2015 - 2020","085",70,"5.0.12.0"]
["Mestna občina Ptuj",5883598000,"SA.42978(2015/XA)","Dodeljevanje državnih in drugih pomoči, ter ukrepov za programe razvoja podeželja v Mestni občini Ptuj","Pravilnik o dodeljevanju državnih in drugih pomoči, ter ukrepov za programe razvoja podeželja v Mestni občini Ptuj","096",75,"5.0.13.0"]
["Mestna občina Slovenj Gradec",5883903000,"SA.42714(2015/XA) ","Podpore za ohranjanje in razvoj kmetijstva v Mestni občini Slovenj Gradec za leta 2015-2020","Pravilnik o ohranjanju in spodbujanju razvoja kmetijstva v Mestni občini Slovenj Gradec za programsko obdobje 2015-2020","112",null,"5.0.14.1"]
["Mestna občina Velenje",5884268000,"SA.42506(2015/XA)","Ohranjanje in razvoj kmetijstva in podeželja v Mestni občini Velenje za programsko obdobje 2015 - 2020","Pravilnik o dodeljevanju pomoči za ohranjanje in razvoj kmetijstva in podeželja v Mestni občini Velenje za programsko obdobje  2015 – 2020","133",null,"5.0.14.2"]
["Občina Ajdovščina",5879914000,"SA.44056(2016/XA)","Ohranjanje in spodbujanje razvoja kmetijstva in podeželja v občini Ajdovščina","Pravilnik o ohranjanju in spodbujanju razvoja kmetijstva in podeželja v Občini Ajdovščina za programsko obdobje 2015–2020","001",null,"5.0.14.3"]
["Občina Ankaran",2482851000,null,null,null,"213",null,"5.0.14.4"]
["Občina Apače",2215632000,"SA.55713(2019/XA)","Podpore za ohranjanje in spodbujanje razvoja kmetijstva in podeželja v Občini Apače za programsko obdobje od 2019 do 2020","Pravilnik o ohranjanju in spodbujanju razvoja kmetijstva in podeželja v Občini Apače za programsko obdobje 2015 - 2020","195",null,"5.0.15.0"]
["Občina Beltinci",5883016000,"SA.43241(2015/XA)","Podpora programom ohranjanja in spodbujanja razvoja kmetijstva in podeželja v Občini Beltinci za programsko obdobje 2015-2020","Pravilnik o ohranjanju in spodbujanju razvoja kmetijstva in podeželja v Občini Beltinci za programsko obdobje 2015–2020","002",null,"5.1.01.0"]
["Občina Benedikt",1332139000,"ni priglašene sheme","ni priglašene sheme","ni priglašene sheme","148",null,"5.1.02.0"]
["Občina Bistrica ob Sotli",1357450000,"SA.43154(2015/XA) ","Podpore za ohranjanje in razvoj kmetijstva in podeželja v Občini Bistrica ob Sotli za  leta 2015-2020","Pravilnik o ohranjanju in spodbujanju razvoja kmetijstva in podeželja v Občini Bistrica ob Sotli za programsko obdobje 2015–2020","149",null,"5.1.03.0"]
["Občina Bled",5883539000,"SA.43222(2015/XA)","Podpore programom razvoja podeželja v Občini Bled 2015 - 2020","Pravilnik o ohranjanju in spodbujanju razvoja kmetijstva in podeželja v Občini Bled za programsko obdobje 2015 - 2020","003",null,"5.1.04.0"]
["Občina Bloke",1358456000,"SA.43760(2015/XA)","Pomoč za zaokrožitev kmetijskih in gozdnih zemljišč","Pravilnik o ohranjanju in spodbujanju razvoja kmetijstva in podeželja v občini Bloke za programsko obdobje 2015-2020","150",null,"5.1.05.0"]
["Občina Bohinj",5883415000,"SA.44882(2016/XA)","Pomoči za ohranjanje in spodbujanje razvoja kmetijstva in podeželja v občini Bohinj za programsko obdobje 2015 - 2020","Pravilnik o ohranjanju in spodbujanju razvoja  kmetijstva in podeželja v občini Bohinj za programsko obdobje 2015-2020","004",null,"5.1.06.0"]
["Občina Borovnica",5883393000,"SA.45583(2016/XA)"," Podpora za ohranjanje in spodbujanje razvoja kmetijstva v občini Borovnica za programsko obdobje 2016-2020","Pravilnik o ohranjanju in spodbujanju razvoja kmetijstva in podeželja v Občini Borovnica za programsko obdobje 2016-2020","005",null,"5.2.01.0"]
["Občina Bovec",5881498000,"SA.42059(2015/XA)","Finančne intervencije za ohranjanje in spodbujanje razvoja kmetijstva in podeželja v občini Bovec ","Pravilnik o ohranjanju in spodbujanju razvoja kmetijstva in podeželja v občini Bovec za programsko obdobje 2015-2020","006",null,"5.2.02.0"]
["Občina Braslovče",1357557000,"SA.55366(2019/XA)","Spodbujanje razvoja kmetijstva in podeželja v Občini Braslovče za obdobje 2019–2020","Pravilnik o ohranjanju in spodbujanju razvoja kmetijstva in podeželja v Občini Braslovče za programsko obdobje 2019– 2020","151",null,"5.7.00.0"]
["Občina Brda",5881781000,"ni priglašene sheme","ni priglašene sheme","ni priglašene sheme","007",null,"5.8.01.0"]
["Občina Brezovica",5874971000,"SA.49080(2017/XA)","Podpore za ohranjanje in razvoj kmetijstva in podeželja v občini Brezovica 2017-2020","Pravilnik o ohranjanju in spodbujanju razvoja kmetijstva in podeželja v Občini Brezovica za programsko obdobje 2017–2020","008",null,"5.8.02.0"]
["Občina Brežice",5880173000,"SA.42109(2015/XA)","Pomoč za ohranjanje in spodbujanje kmetijstva in podeželja v občini Brežice za programsko obdobje 2015-2020","Pravilnik o ohranjanju in spodbujanju razvoja kmetijstva in podeželja v Občini Brežice za programsko obdobje 2015–2020","009",null,"5.8.03.0"]
["Občina Cankova",1365789000,"SA.44038(2015/XA)","Podpora programom ohranjanja in spodbujanja razvoja kmetijstva in podeželja v Občini Cankova za programsko obdobje 2015-2020","Pravilnik o ohranjanju in spodbujanju razvoja kmetijstva in podeželja v Občini Cankova za programsko obdobje 2015–2020","152",null,"5.8.04.0"]
["Občina Cerklje na Gorenjskem",5874670000,"SA.51522(2018/XA)","Pomoči za ohranjanje in spodbujanje razvoja kmetijstva, gozdarstva in podeželja v Občini Cerklje na Gorenjskem v obdobju 2018–2020","Pravilnik o dodelitvi pomoči za ohranjanje in spodbujanje razvoja kmetijstva, gozdarstva in podeželja v Občini Cerklje na Gorenjskem v obdobju 2018–2020","012",null,"5.8.05.0"]
["Občina Cerknica",5880157000,"SA.45056(2016/XA)","Podpore za ohranjanje in spodbujanje razvoja kmetijstva in podeželja v občini Cerknica","Pravilnik o ohranjanju in spodbujanju razvoja kmetijstva in podeželja v občini Cerknica za programsko obdobje 2016 - 2020","013",null,"5.8.06.0"]
["Občina Cerkno",5880076000,"SA.45429(2016/XA)","Pomoči za ohranjanje in spodbujanje razvoja kmetijstva in podeželja v Občini Cerkno za programsko obdobje 2016 - 2020","Pravilnik o ohranjanju in razvoju kmetijstva in podeželja v občini Cerkno za programsko obdobje 2016-2020","014",null,"5.8.07.1"]
["Občina Cerkvenjak",1332066000,"SA.42980(2015/XA)","Podpore za ohranjanje in razvoj kmetijstva v občini Cerkvenjak za leta 2015-2020","Pravilnik o ohranjanju in spodbujanju razvoja kmetijstva in podeželja v Občini Cerkvenjak za programsko obdobje 2015 - 2020","153",null,"5.8.07.2"]
["Občina Cirkulane",2242770000,"ni priglašene sheme","ni priglašene sheme","ni priglašene sheme","196",null,"5.8.08.0"]
["Občina Črenšovci",5874726000,"SA.55446(2019/XA)","Podpora programom ohranjanja in spodbujanja razvoja kmetijstva in podeželja v Občini Črenšovci","Pravilnik o ohranjanju in spodbujanju razvoja kmetijstva in podeželja v Občini Črenšovci","015",null,"5.8.09.0"]
["Občina Črna na Koroškem",5883679000,"SA.44998(2016/XA)","Podpora za ohranjanje in spodbujanje razvoja kmetijstva in podeželja v  občini Črna na Koroškem v programskem obdobju 2015-2020","Pravilnik o dodeljevanju pomoči za ohranjanje in spodbujanje razvoja kmetijstva in podeželja v občini Črna na Koroškem za programsko obdobje 2015 – 2020","016",null,"5.8.10.0"]
["Občina Črnomelj",5880254000,"SA.42615(2015/XA)","Pomoč za ohranjanje in spodbujanje razvoja kmetijstva, gozdarstva in podeželja v Občini Črnomelj ","Pravilnik o ohranjanju in spodbujanju razvoja kmetijstva in podeželja v občini Črnomelj za programsko obdobje 2015 – 2020","017",null,"5.8.11.0"]
["Občina Destrnik",5882966000,"ni priglašene sheme","ni priglašene sheme","ni priglašene sheme","018"]
["Občina Divača",5882974000,"SA.45324(2016/XA)","Podpore za ohranjanje in spodbujanje razvoja kmetijstva, gozdarstva in podeželja v Občini Divača za leta 2016-2020","Pravilnik o ohranjanju in spodbujanju razvoja kmetijstva, gozdarstva in podeželja v občini Divača za programsko obdobje 2015-2020","019"]
["Občina Dobje",1357409000,"SA.43649(2015/XA)","Podpore programom razvoja kmetijstva in podeželja v občini Dobje 2015-2020","Pravilnik o ohranjanju in spodbujanju razvoja kmetijstva in podeželja v Občini Dobje za programsko obdobje 2015–2020","154"]
["Občina Dobrepolje",5886252000,"SA.42979(2015/XA)","Podpore za ohranjanje in razvoj kmetijstva v občini Dobrepolje za leta 2015-2020","Pravilnik o ohranjanju in spodbujanju razvoja kmetijstva in podeželja v Občini Dobrepolje za programsko obdobje 2015–2020","020"]
["Občina Dobrna",1358570000,"SA.42952(2015/XA) ","Podpore ohranjanju in spodbujanju razvoja kmetijstva in podeželja v Občini Dobrna za programsko obdobje 2015 – 2020","Pravilnik o ohranjanju in spodbujanju razvoja kmetijstva in podeželja v Občini Dobrna za programsko obdobje 2015–2020","155"]
["Občina Dobrova - Polhov Gradec",5874998000,"SA.44059(2016/XA)","Podpora za ohranjanje in spodbujanje razvoja kmetijstva v občini Dobrova-Polhov Gradec za programsko obdobje 2015-2020","Pravilnik o ohranjanju in spodbujanju razvoja kmetijstva in podeželja v Občini Dobrova - Polhov Gradec za programsko obdobje 2015–2020","021"]
["Občina Dobrovnik",1332198000,"SA.43966(2015/XA)","Podpore  za ohranjanje in razvoj kmetijstva v občini Dobrovnik  za programsko obdobje 2015-2020","Pravilnik o ohranjanju in spodbujanju razvoja kmetijstva in podeželja v občini Dobrovnik za programsko obdobje 2015 – 2020","156"]
["Občina Dol pri Ljubljani",5874173000,"ni priglašene sheme","ni priglašene sheme","ni priglašene sheme","022"]
["Občina Dolenjske Toplice",1365720000,"SA.42981(2015/XA)","Ohranjanje in spodbujanje razvoja kmetijstva in podeželja v občini Dolenjske Toplice za programsko obdobje 2015 – 2020","Pravilnik o ohranjanju in spodbujanju razvoja kmetijstva in podeželja v Občini Dolenjske Toplice za programsko obdobje 2015–2020","157"]
["Občina Domžale",5880513000,"ni priglašene sheme","ni priglašene sheme","ni priglašene sheme","023"]
["Občina Dornava",5884039000,"ni priglašene sheme","ni priglašene sheme","ni priglašene sheme","024"]
["Občina Dravograd",5880351000,"SA.42613(2015/XA)","Pomoč za ohranjanje in spodbujanje razvoja kmetijstva in podeželja v Občini Dravograd v obdobju 2015-2020","Pravilnik o ohranjanju in spodbujanju razvoja kmetijstva in podeželja v Občini Dravograd za programsko obdobje 2015 - 2020","025"]
["Občina Duplek",5883300000,null,null,null,"026"]
["Občina Gorenja vas - Poljane",5883261000,"SA.42617(2015/XA)","Podpore programom razvoja kmetijstva in podeželja v občini Gorenja vas – Poljane 2015 – 2020","Pravilnik o ohranjanju in spodbujanju razvoja kmetijstva in podeželja v občini Gorenja vas - Poljane za programsko obdobje 2015 – 2020","027"]
["Občina Gorišnica",5883962000,"ni priglašene sheme","ni priglašene sheme","ni priglašene sheme","028"]
["Občina Gorje",2209721000,"SA.43155(2015/XA)","Pomoči za ohranjanje in spodbujanje razvoja kmetijstva in podeželja v občini Gorje","Pravilnik o ohranjanju in spodbujanju razvoja kmetijstva in podeželja v občini Gorje za programsko obdobje 2015 – 2020","207"]
["Občina Gornja Radgona",5880289000,"SA.42511(2015/XA)","Podpore za ohranjanje in razvoj kmetijstva v občini Gornja Radgona za leta 2015-2020","Pravilnik o ohranjanju in spodbujanju razvoja kmetijstva in podeželja v občini Gornja Radgona","029"]
["Občina Gornji Grad",5883776000,"SA.42432(2015/XA)","Podpore za ohranjanje in razvoj kmetijstva v občini Gornji Grad za leta 2015-2020","Pravilnik o dodeljevanju pomoči za ohranjanje in razvoj kmetijstva in podeželja v Občini Gornji Grad za programsko obdobje 2015-2020","030"]
["Občina Gornji Petrovci",5883075000,"SA.44395(2016/XA)","Podpora programom ohranjanja in spodbujanja razvoja kmetijstva in podeželja v Občini Gornji Petrovci za programsko obdobje 2016 – 2020","Pravilnik o ohranjanju in spodbujanju razvoja kmetijstva in podeželja v Občini Gornji Petrovci za programsko obdobje 2016–2020","031"]
["Občina Grad",1365673000,"SA.45518(2016/XA)","Podpore za ohranjanje in razvoj kmetijstva v Občini Grad za   obdobje 2016 – 2020 ","Pravilnik o ohranjanju in spodbujanju razvoja kmetijstva  in podeželja v Občini Grad za programsko obdobje 2015 – 2020","158"]
["Občina Grosuplje",5880734000,"SA.42548(2015/XA)","Podpora ukrepom razvoja kmetijstva in podeželja v Občini Grosuplje 2015-2020","Pravilnik o dodeljevanju pomoči za ohranjanje in spodbujanje razvoja kmetijstva in podeželja v občini Grosuplje za programsko obdobje 2014 - 2020","032"]
["Občina Hajdina",1357441000,"ni priglašene sheme","ni priglašene sheme","ni priglašene sheme","159"]
["Občina Hoče - Slivnica",1365568000,"SA.42908(2015/XA)","Ohranjanje in spodbujanje razvoja kmetijstva in podeželja v občini Hoče – Slivnica v obdobju 2015 - 2020","Pravilnik o ohranjanju in spodbujanju razvoja kmetijstva in podeželja v občini Hoče – Slivnica za programsko obdobje 2015 - 2020","160"]
["Občina Hodoš",1357344000,"ni priglašene sheme","ni priglašene sheme","ni priglašene sheme","161"]
["Občina Horjul",1332180000,"ni priglašene sheme","ni priglašene sheme","ni priglašene sheme","162"]
["Občina Hrastnik",5880181000,"SA.57020(2020/XA)","Podpore za spodbujanje razvoja kmetijstva in podeželja v občini Hrastnik","Pravilnik o dodeljevanju sredstev za spodbujanje razvoja kmetijstva in podeželja v občini Hrastnik","034"]
["Občina Hrpelje - Kozina",5883032000,"SA.44037(2015/XA)","Ohranjanje in spodbujanje razvoja kmetijstva, gozdarstva in podeželja v Občini Hrpelje-Kozina","Pravilnik o ohranjanju in spodbujanju razvoja kmetijstva, gozdarstva in podeželja v Občini Hrpelje - Kozina za programsko obdobje 2015–2020","035"]
["Občina Idrija",5880068000,"SA.44608(2016/XA)","Programi za ohranjanje in razvoj kmetijstva v občini Idrija v obdobju 2016-2020","Pravilnik o ohranjanju in spodbujanju razvoja kmetijstva in podeželja v Občini Idrija za programsko obdobje 2015–2020","036"]
["Občina Ig",5874769000,"SA.45057(2016/XA)","Dodeljevanje pomoči za ohranjanje in spodbujanje razvoja kmetijstva in podeželja v Občini Ig za programsko obdobje  2015-2020","Pravilnik o ohranjanju in spodbujanju razvoja kmetijstva in podeželja v Občini Ig za programsko obdobje 2015–2020","037"]
["Občina Ilirska Bistrica",5880416000,"SA.43372(2015/XA)","Državna pomoč za ohranjanje in  spodbujanje razvoja kmetijstva in podeželja v občini Ilirska Bistrica za programsko obdobje 2015-2020","Pravilnik o ohranjanju in  spodbujanju razvoja kmetijstva in podeželja v občini Ilirska Bistrica za programsko obdobje 2015-2020","038"]
["Občina Ivančna Gorica",5886244000,"SA.42677(2015/XA) ","Podpore kmetijstvu in razvoju podeželja v Občini Ivančna Gorica za programsko obdobje 2015-2020","Pravilnik o sofinanciranju kmetijstva in razvoju podeželja v Občini Ivančna Gorica za programsko obdobje 2015 - 2020","039"]
["Občina Izola",5874190000,"SA.55008(2019/XA)","Državne pomoči za ohranjanje in spodbujanje razvoja kmetijstva in podeželja v občini Izola za programsko obdobje 2019–2020","Pravilnik o ohranjanju in spodbujanju razvoja kmetijstva in podeželja v občini Izola za programsko obdobje 2019–2020","040"]
["Občina Jesenice",5874335000,"SA.42414(2015/XA)","Podpore programom razvoja podeželja v občini Jesenice  2015-2020","Odlok o dodelitvi pomoči za ohranjanje in razvoj kmetijstva, gozdarstva in podeželja v Občini Jesenice","041"]
["Občina Jezersko",1332112000,"SA.43192(2015/XA)","Podpore programom razvoja podeželja v Občini Jezersko 2015-2020","Pravilnik o dodelitvi pomoči za ohranjanje in spodbujanje razvoja kmetijstva in podeželja v Občini Jezersko za programsko obdobje 2015 – 2020","163"]
["Občina Juršinci",5883750000,"ni priglašene sheme","ni priglašene sheme","ni priglašene sheme","042"]
["Občina Kamnik",5874483000,"SA.42504(2015/XA)","Podpore za ohranjanje in razvoj kmetijstva v občini Kamnik za leta 2015 - 2020","Pravilnik o ohranjanju in spodbujanju razvoja kmetijstva in podeželja v občini Kamnik za programsko obdobje 2015 -2020","043"]
["Občina Kanal ob Soči",5881820000,"SA.43137(2015/XA)","Državne pomoči za ohranjanje in razvoj kmetijstva v Občini Kanal ob Soči za leta 2015 - 2020","Pravilnik o ohranjanju in spodbujanju razvoja kmetijstva in podeželja v Občini Kanal ob Soči za obdobje 2015 - 2020","044"]
["Občina Kidričevo",5883709000,"SA.45772(2016/XA)","Podpora programom ohranjanja in spodbujanja razvoja kmetijstva in podeželja v Občini Kidričevo za programsko obdobje 2016-2020","Pravilnik o ohranjanju in spodbujanju razvoja kmetijstva in podeželja v občini Kidričevo za programsko obdobje 2016 - 2020","045"]
["Občina Kobarid",5881463000,"SA.44961(2016/XA)","Podpore za ohranjanje in razvoj kmetijstva v občini Kobarid za obdobje 2015-2020","Pravilnik o ohranjanju in spodbujanju razvoja kmetijstva in podeželja v občini Kobarid za programsko obdobje 2015 - 2020","046"]
["Občina Kobilje",5874734000,"ni priglašene sheme","ni priglašene sheme","ni priglašene sheme","047"]
["Občina Kočevje",5874238000,"SA.50814(2018/XA)","Dodeljevanje pomoči za ohranjanje in spodbujanje razvoja kmetijstva in podeželja v občini Kočevje za programsko obdobje 2018 - 2020 ","Pravilnik o ohranjanju in spodbujanju razvoja kmetijstva in podeželja v Občini Kočevje za programsko obdobje 2016–2020","048"]
["Občina Komen",5883091000,"SA.50756(2018/XA)","Pomoči za ohranjanje in razvoj kmetijstva in podeželja v občini Komen za programsko obdobje 2015 - 2020","Pravilnik o ohranjanju in spodbujanju razvoja kmetijstva, gozdarstva in podeželja v Občini Komen za programsko obdobje 2015 - 2020","049"]
["Občina Komenda",1332155000,"SA.43157(2015/XA) ","Ohranjanje in spodbujanje razvoja kmetijstva in podeželja v občini Komenda za leta 2015 – 2020  ","Pravilnik o ohranjanju in spodbujanju razvoja kmetijstva in podeželja v občini Komenda za programsko obdobje 2015 - 2020","164"]
["Občina Kostanjevica na Krki",2179903000,"SA.42982(2015/XA)","Finančna sredstva za ohranjanje in spodbujanje razvoja kmetijstva in podeželja v občini Kostanjevica na Krki 2015-2020","Pravilnik o ohranjanju in spodbujanju razvoja kmetijstva in podeželja v Občini Kostanjevica na Krki za programsko obdobje 2015–2020","197"]
["Občina Kostel",1332210000,"ni priglašene sheme","ni priglašene sheme","ni priglašene sheme","165"]
["Občina Kozje",5884004000,"SA.43036(2015/XA)","Podpore za ohranjanje in razvoj kmetijstva v občini Kozje za leta 2015-2020","Pravilnik o ohranjanju in spodbujanju razvoja kmetijstva in podeželja v Občini Kozje za programsko obdobje 2015–2020","051"]
["Občina Kranjska Gora",5874327000,"SA.42430(2015/XA)","Podpore programom razvoja podeželja v občini Kranjska Gora","Pravilnik o ohranjanju in spodbujanju razvoja kmetijstva in podeželja v Občini Kranjska Gora za programsko obdobje 2015–2020","053"]
["Občina Križevci",1332147000,"SA.52223(2018/XA)","Podpore za ohranjanje in razvoj kmetijstva v Občini Križevci za obdobje 2018–2020","Pravilnik o ohranjanju in spodbujanju razvoja kmetijstva in podeželja v Občini Križevci za programsko obdobje 2018–2020","166"]
["Občina Krško",5874572000,"SA.42209(2015/XA) ","Ohranjanje in spodbujanja razvoja kmetijstva in podeželja v občini Krško","Pravilnik o ohranjanju in spodbujanju razvoja kmetijstva in podeželja v občini Krško za programsko obdobje 2015–2020","054"]
["Občina Kungota",5884144000,"ni priglašene sheme","ni priglašene sheme","ni priglašene sheme","055"]
["Občina Kuzma",5883121000,"SA.43374(2015/XA)","Podpora programom ohranjanja in spodbujanja razvoja kmetijstva in podeželja v občin Kuzma za programsko obdobje 2015-2020","Pravilnik o ohranjanju in spodbujanju razvoja kmetijstva in podeželja v Občini Kuzma za programsko obdobje 2015 - 2020","056"]
["Občina Laško",5874505000,"SA.42108(2015/XA)","Podpore ohranjanju in spodbujanju razvoja kmetijstva in podeželja v občini Laško za programsko obdobje 2015 – 2020 ","Pravilnik o ohranjanju in spodbujanju razvoja kmetijstva in podeželja v Občini Laško za programsko obdobje 2015–2020","057"]
["Občina Lenart",5874254000,"ni priglašene sheme","ni priglašene sheme","ni priglašene sheme","058"]
["Občina Lendava",5874645000,"ni priglašene sheme","ni priglašene sheme","ni priglašene sheme","059"]
["Občina Litija",5874246000,"SA.58779(2020/XA)","Ohranjanje in spodbujanje razvoja kmetijstva in podeželja v Občini Litija za obdobje 2020–2021","Pravilnik o ohranjanju in spodbujanju razvoja kmetijstva in podeželja v občini Litija za leti 2020 in 2021","060"]
["Občina Ljubno",5883733000,"SA.42111(2015/XA)","Ohranjanje in spodbujanje razvoja kmetijstva in podeželja v občini Ljubno za programsko obdobje 2015-2020","Pravilnik o ohranjanju in spodbujanju razvoja kmetijstva in podeželja v Občini Ljubno za programsko obdobje 2015–2020","062"]
["Občina Ljutomer",5874092000,"SA.55160(2019/XA)","Podpora programom ohranjanja in spodbujanja razvoja kmetijstva in podeželja v Občini Ljutomer v programskem obdobju 2019–2020","Pravilnik o ohranjanju in spodbujanju razvoja kmetijstva in podeželja v Občini Ljutomer","063"]
["Občina Logatec",5874661000,"SA.44164(2016/XA)","Državna pomoč za ohranjanje in razvoj kmetijstva in podeželja v občini Logatec","Pravilnik o ohranjanju in spodbujanju razvoja kmetijstva in podeželja v občini Logatec za programsko obdobje 2016 – 2020","064"]
["Občina Log-Dragomer",2261154000,"ni priglašene sheme","ni priglašene sheme","ni priglašene sheme","208"]
["Občina Loška dolina",5880165000,"SA.44673(2016/XA)","Pomoč za zaokrožitev kmetijskih in gozdnih zemljišč","Pravilnik o ohranjanju in spodbujanju razvoja kmetijstva in podeželja v Občini Loška dolina za programsko obdobje 2016-2020","065"]
["Občina Loški Potok",5883806000,"ni priglašene sheme","ni priglašene sheme","ni priglašene sheme","066"]
["Občina Lovrenc na Pohorju",1357883000,"SA.43348(2015/XA)","Podpore za ohranjanje in spodbujanje razvoja kmetijstva in podeželja v Občini Lovrenc na Pohorju za leta 2015 – 2020","Pravilnik o ohranjanju in spodbujanju razvoja kmetijstva in podeželja v Občini Lovrenc na Pohorju za programsko obdobje 2015 - 2020","167"]
["Občina Luče",5883784000,"SA.41978(2015/XA)","Ohranjanje in spodbujanje razvoja kmetijstva in podeželja v občini Luče za programsko obdobje 2015 - 2020","Pravilnik o ohranjanju in spodbujanju razvoja kmetijstva in podeželja v Občini Luče za programsko obdobje 2015-2020","067"]
["Občina Lukovica",5880491000,"SA.45770(2016/XA)","Podpore za ohranjanje in spodbujanje razvoja kmetijstva in podeželja v občini Lukovica za programsko obdobje 2016-2020","Pravilnik o ohranjanju in spodbujanju razvoja kmetijstva in podeželja v občini Lukovica za programsko obdobje 2015-2020","068"]
["Občina Majšperk",5883644000,"SA.46258(2016/XA)","Ohranjanje in spodbujanje razvoja kmetijstva in podeželja v Občini Majšperk za programsko obdobje 2016-2020","Pravilnik o ohranjanju in spodbujanju razvoja kmetijstva in podeželja v Občini Majšperk za programsko obdobje 2016 – 2020","069"]
["Občina Makole",2242753000,"SA.45640(2016/XA)","Pomoč za ohranjanje in spodbujanje kmetijstva in podeželja v občini Makole za programsko obdobje 2016 - 2020","Pravilnik o ohranjanju in spodbujanju razvoja kmetijstva in podeželja v občini Makole za programsko obdobje 2015 – 2020","198"]
["Občina Markovci",1357492000,"ni priglašene sheme","ni priglašene sheme","ni priglašene sheme","168"]
["Občina Medvode",5874564000,"SA.43104(2015/XA)","Pomoči za ohranjanje in spodbujanje razvoja kmetijstva in podeželja v Občini Medvode za programsko obdobje 2015 – 2020\n","Pravilnik o ohranjanju in spodbujanju razvoja kmetijstva in podeželja v Občini Medvode za programsko obdobje 2015–2020","071"]
["Občina Mengeš",5880483000,"ni priglašene sheme","ni priglašene sheme","ni priglašene sheme","072"]
["Občina Metlika",5881374000,"SA.41979(2015/XA)","Podpore za ohranjanje in razvoj kmetijstva v občini Metlika za leta 2015-2020","Pravilnik o ohranjanju in spodbujanju razvoja kmetijstva in podeželja v Občini Metlika za programsko obdobje 2015 - 2020","073"]
["Občina Mežica",5883610000,"SA.44731(2016/XA)","Podpore za ohranjanje in razvoj kmetijstva in podeželja v občini Mežica za programsko obdobje 2016 - 2020","Pravilnik o ohranjanju in spodbujanju razvoja kmetijstva in podeželja v občini Mežica za programsko obdobje 2016 - 2020","074"]
["Občina Miklavž na Dravskem polju",1365614000,"SA.46371(2016/XA)","Dodeljevanje državnih pomoči za programe razvoja kmetijstva in podeželja v Občini Miklavž na Dravskem polju","Pravilnik o ohranjanju in spodbujanju razvoja kmetijstva in podeželja v občini Miklavž na Dravskem polju za programsko obdobje 2015 - 2020","169"]
["Občina Miren - Kostanjevica",5881838000,"SA.43225(2015/XA)","Podpore za ohranjanje in razvoj kmetijstva in podeželja v občini Miren-Kostanjevica za leta 2015-2020","Pravilnik o ohranjanju in spodbujanju razvoja kmetijstva in podeželja v Občini Miren-Kostanjevica za programsko obdobje 2015 - 2020","075"]
["Občina Mirna",2399164000,"SA.46057(2016/XA)","Ukrepi v podporo o ohranjanju in spodbujanju razvoja kmetijstva in podeželja v Občini Mirna za programsko obdobje 2015-2020","Pravilnik o ohranjanju in spodbujanju razvoja kmetijstva in podeželja v Občini Mirna za programsko obdobje 2015 – 2020","212"]
["Občina Mirna Peč",1357816000,"SA.42060(2015/XA)","Ukrepi v podporo ohranjanju in spodbujanju razvoja kmetijstva in podeželja v Občini Mirna Peč za programsko obdobje 2015 – 2020","Pravilnik o ohranjanju in spodbujanju razvoja kmetijstva in podeželja v Občini Mirna Peč za programsko obdobje 2015–2020","170"]
["Občina Mislinja",5883954000,"SA.42950(2015/XA) ","Podpore za ohranjanje in razvoj kmetijstva in podeželja v Občini Mislinja za programsko obdobje 2015 - 2020\n","Pravilnik o ohranjanju in spodbujanju razvoju kmetijstva in podeželja v občini Mislinja za programsko obdobje 2015 - 2020","076"]
["Občina Mokronog - Trebelno",2241170000,"SA.42713(2015/XA)","Ukrepi v podporo ohranjanju in spodbujanju razvoja kmetijstva in podeželja v Občini Mokronog-Trebelno za programsko obdobje 2015 – 2020","Pravilnik o ohranjanju in spodbujanju razvoja kmetijstva in podeželja v občini Mokronog-Trebelno za programsko obdobje 2015 - 2020","199"]
["Občina Moravče",5880505000,"SA.55435(2019/XA)","Podpore za ohranjanje in spodbujanje razvoja kmetijstva in podeželja v Občini Moravče za programsko obdobje 2019–2020","Pravilnik o ohranjanju in spodbujanju razvoja kmetijstva in podeželja v občini Moravče za programsko obdobje 2015-2020","077"]
["Občina Moravske Toplice",5883164000,"SA.45104(2016/XA)","Podpora programom ohranjanja in spodbujanja razvoja kmetijstva in podeželja v Občini Moravske Toplice za programsko obdobje 2016-2020","Pravilnik o ohranjanju in spodbujanju razvoja kmetijstva in podeželja v občini Moravske Toplice za programsko obdobje 2016 - 2020","078"]
["Občina Mozirje",5883849000,"SA.55226(2019/XA)","Pomoči za ohranjanje in razvoj kmetijstva in podeželja v Občini Mozirje za programsko obdobje 2019–2020","Pravilnik o ohranjanju in spodbujanju razvoja kmetijstva in podeželja v Občini Mozirje za programsko obdobje 2019–2020","079"]
["Občina Muta",5881706000,"SA.43262(2015/XA)","Pomoči za ohranjanje in spodbujanje razvoja kmetijstva in podeželja v občini Muta za programsko obdobje 2015-2020","Pravilnik o ohranjanju in spodbujanju razvoja kmetijstva in podeželja v občini Muta za programsko obdobje 2015-2020","081"]
["Občina Naklo",5874688000,"SA.54060(2019/XA)","Ukrepi za ohranjanje in spodbujanje razvoja kmetijstva in podeželja v Občini Naklo 2019–2020","Pravilnik o ohranjanju in spodbujanju razvoja kmetijstva in podeželja v Občini Naklo za programsko obdobje 2019–2020","082"]
["Občina Nazarje",5883822000,"SA.42909(2015/XA)","Ohranjanje in spodbujanje razvoja kmetijstva in podeželja v občini Nazarje za programsko obdobje 2015 - 2020","Pravilnik o ohranjanju in spodbujanju razvoja kmetijstva in podeželja  v občini Nazarje za programsko obdobje 2015 – 2020","083"]
["Občina Odranci",5874718000,"ni priglašene sheme","ni priglašene sheme","ni priglašene sheme","086"]
["Občina Oplotnica",1357506000,"SA.43264(2015/XA)","Državne pomoči za ohranjanje in razvoj kmetijstva in podeželja v občini Oplotnica za programsko obdobje 2015-2020","Pravilnik o dodeljevanju državnih pomoči, pomoči de minimis in izvajanju drugih ukrepov za ohranjanje in razvoj kmetijstva in podeželja v Občini Oplotnica za programsko obdobje 2015-2020","171"]
["Občina Ormož",5883687000,"SA.42913(2015/XA)","Podpore za ohranjanje in razvoj kmetijstva, gozdarstva  in podeželja v Občini Ormož za leta 2015-2020","Pravilnik o ohranjanju in spodbujanju razvoja kmetijstva in podeželja v občini Ormož  za programsko obdobje 2015-2020","087"]
["Občina Osilnica",5874220000,"ni priglašene sheme","ni priglašene sheme","ni priglašene sheme","088"]
["Občina Pesnica",5884098000,"SA.56687(2020/XA)","Dodeljevanje državnih pomoči za programe razvoja kmetijstva in podeželja v Občini Pesnica za leto 2020","Pravilnik o dodeljevanju državnih pomoči, pomoči de minimis in izvajanju drugih ukrepov za ohranjanje in razvoj kmetijstva in podeželja v Občini Pesnica za programsko obdobje 2019–2020","089"]
["Občina Piran",5883873000,"SA.42917(2015/XA)","Podpore k ohranjanju in spodbujanju razvoja kmetijstva in podeželja v občini Piran za programsko obdobje 2015 – 2020","Pravilnik o ohranjanju in spodbujanju razvoja kmetijstva in podeželja v Občini Piran za programsko obdobje 2015 - 2020","090"]
["Občina Pivka",5883563000,"SA.45357(2016/XA)","Državna pomoč za ohranjanje in spodbujanje razvoja kmetijstva in podeželja v občini Pivka za programsko obdobje 2016-2020","Pravilnik o ohranjanju in spodbujanju razvoja kmetijstva in podeželja v Občini Pivka za programsko obdobje 2016-2020","091"]
["Občina Podčetrtek",5883997000,"SA.42508(2015/XA)","Ohranjanje in spodbujanje razvoja kmetijstva in podeželja v Občini Podčetrtek za programsko obdobje 2015-2020","Pravilnik o ohranjanju in spodbujanju razvoja kmetijstva ter podeželja v občini Podčetrtek za programsko obdobje 2015-2020","092"]
["Občina Podlehnik",1358278000,"ni priglašene sheme","ni priglašene sheme","ni priglašene sheme","172"]
["Občina Podvelka",5881668000,"SA.52411(2018/XA)","Spodbujanje in ohranjanje razvoja kmetijstva in podeželja v Občini Podvelka za programsko obdobje 1. 1. 2019 – 31. 12. 2020","Pravilnik o ohranjanju in spodbujanju razvoja kmetijstva in podeželja v Občini Podvelka za programsko obdobje 1. 1. 2019 - 31. 12. 2020","093"]
["Občina Poljčane",2242745000,"SA.42138(2015/XA)","Pomoč za ohranjanje in spodbujanje kmetijstva in podeželja v občini Poljčane za programsko obdobje 2015 – 2020","Pravilnik o ohranjanju in spodbujanju razvoja kmetijstva in podeželja v Občini Poljčane za programsko obdobje 2015-2020","200"]
["Občina Polzela",1357603000,"SA.42963(2015/XA) ","Podpore za ohranjanje in razvoj kmetijstva v Občini Polzela za leta 2015-2020","Pravilnik o ohranjanju in spodbujanju razvoja kmetijstva in podeželja v Občini Polzela za programsko obdobje 2015 - 2020","173"]
["Občina Postojna",5883512000,"SA.42367(2015/XA) ","Državna pomoč za  ohranjanje in spodbujanje razvoja kmetijstva in podeželja v občini Postojna za programsko obdobje 2015 - 2020","Pravilnik o ohranjanju in spodbujanju razvoja kmetijstva in podeželja v Občini Postojna za programsko obdobje 2015–2020","094"]
["Občina Prebold",1357654000,"SA.42953(2015/XA) ","Podpore ohranjanju in spodbujanju razvoja kmetijstva in podeželja v občini Prebold za programsko obdobje 2015 – 2020","Pravilnik o ohranjanju in spodbujanju razvoja kmetijstva in podeželja v Občini Prebold za programsko obdobje 2015 - 2020","174"]
["Občina Preddvor",5874599000,"SA.43349(2015/XA)","Pomoči za ohranjanje in spodbujanje razvoja kmetijstva, gozdarstva in podeželja v Občini Preddvor","Pravilnik o dodelitvi pomoči za ohranjanje in spodbujanje razvoja kmetijstva, gozdarstva in podeželja v Občini Preddvor za programsko obdobje 2015 - 2020","095"]
["Občina Prevalje",1357719000,"SA.43345(2015/XA)","Ohranjanje in spodbujanje razvoja kmetijstva in podeželja v Občini Prevalje za programsko obdobje 2015 - 2020","Pravilnik o ohranjanju in spodbujanju razvoja kmetijstva in podeželja v Občini Prevalje za programsko obdobje 2015-2020","175"]
["Občina Puconci",5883237000,"SA.45486(2016/XA)","Podpore ohranjanju in spodbujanju razvoja kmetijstva in podeželja v občini Puconci za programsko obdobje 2016-2020","Pravilnik o ohranjanju in spodbujanju razvoja kmetijstva in podeželja v Občini Puconci za programsko obdobje 2015 – 2020","097"]
["Občina Rače - Fram",5883253000,"SA.43138(2015/XA) ","Dodeljevanje državnih pomoči za programe razvoja kmetijstva in podeželja  v občini Rače - Fram","Pravilnik o dodeljevanju državnih pomoči, pomoči de minimis in izvajanju drugih ukrepov za ohranjanje in razvoj  kmetijstva in  podeželja v občini Rače - Fram za programsko obdobje 2015 - 2020","098"]
["Občina Radeče",5874491000,"SA.42507(2015/XA)","Ohranjanje in spodbujanja razvoja kmetijstva in podeželja v občini Radeče","Pravilnik o ohranjanju in spodbujanju razvoja kmetijstva in podeželja v Občini Radeče za programsko obdobje 2015–2020","099"]
["Občina Radenci",5880297000,"SA.43263(2015/XA)","Ohranjanje in spodbujanje razvoja kmetijstva in podeželja v občini Radenci ","Pravilnik o ohranjanju in spodbujanju razvoja kmetijstva in podeželja v Občini Radenci za programsko obdobje 2015 – 2020","100"]
["Občina Radlje ob Dravi",5881811000,"ni priglašene sheme","ni priglašene sheme","ni priglašene sheme","101"]
["Občina Radovljica",5883466000,"SA.42433(2015/XA","Podpore programom razvoja podeželja v Občini Radovljica 2015-2020","Pravilnik o dodeljevanju pomoči za ohranjanje in spodbujanje razvoja kmetijstva in podeželja v Občini Radovljica za programsko obdobje 2015-2020","102"]
["Občina Ravne na Koroškem",5883628000,"SA.43002(2015/XA)","Podpore za ohranjanje in razvoj kmetijstva in podeželja v Občini Ravne na Koroškem za programsko obdobje 2015 - 2020","Pravilnik o ohranjanju in spodbujanju razvoja kmetijstva in podeželja v Občini Ravne na Koroškem za programsko obdobje 2015–2020","103"]
["Občina Razkrižje",1332163000,null,null,null,"176"]
["Občina Rečica ob Savinji",2255987000,"SA.45323(2016/XA)","Podpore za ohranjanje in razvoj kmetijstva v Občini Rečica ob Savinji za leta 2015 - 2020","Pravilnik o ohranjanju in spodbujanju razvoja kmetijstva in podeželja v Občini Rečica ob Savinji za programsko obdobje 2015 - 2020","209"]
["Občina Renče - Vogrsko",2203553000,"SA.46682(2016/XA)","Podpore za ohranjanje in spodbujanju razvoja kmetijstva v Občini Renče-Vogrsko za programsko obdobje 2017-2020","Pravilnik o ohranjanju in spodbujanju razvoja kmetijstva in podeželja v Občini Renče - Vogrsko za programsko obdobje 2016 - 2020","201"]
["Občina Ribnica",5883865000,"SA.43310(2015/XA)","Dodeljevanje pomoči za ohranjanje in spodbujanje razvoja podeželja v Občini Ribnica za programsko obdobje 2015 do 2020 ","Pravilnik o ohranjanju in spodbujanju razvoja podeželja v Občini Ribnica za programsko obdobje 2015 – 2020","104"]
["Občina Ribnica na Pohorju",1358324000,"SA.43352(2015/XA)","Pomoč za ohranjanje in spodbujanje razvoja kmetijstva in podeželja v občini Ribnica na Pohorju za programsko obdobje 2015 – 2020","Pravilnik o ohranjanju in spodbujanju razvoja kmetijstva in podeželja v občini Ribnica na Pohorju za programsko obdobje 2015 - 2020","177"]
["Občina Rogaška Slatina",5883946000,"SA.42509(2015/XA)","Ohranjanje in spodbujanje razvoja kmetijstva in podeželja v občini Rogaška Slatina za programsko obdobje 2015-2020 ","Pravilnik o ohranjanju in spodbujanju razvoja kmetijstva in podeželja v Občini Rogaška Slatina za programsko obdobje 2015–2020","106"]
["Občina Rogašovci",5883245000,"SA.45167(2016/XA)","Podpore ohranjanju in spodbujanju razvoja kmetijstva in podeželja v občini Rogašovci za programsko obdobje 2016 – 2020","Pravilnik o ohranjanju in spodbujanju razvoja kmetijstva in podeželja v Občini Rogašovci za programsko obdobje 2016–2020","105"]
["Občina Rogatec",5883938000,"SA.42550(2015/XA)","Dodeljevanje državnih pomoči za ohranjanje in spodbujanje razvoja kmetijstva in podeželja v občini Rogatec za programsko obdobje 2015 – 2020","Pravilnik o ohranjanju in spodbujanju razvoja kmetijstva in podeželja  v občini Rogatec za programsko obdobje 2015 – 2020","107"]
["Občina Ruše",5883571000,"ni priglašene sheme","ni priglašene sheme","ni priglašene sheme","108"]
["Občina Selnica ob Dravi",1357930000,"SA.43375(2015/XA)","Podpore ohranjanja in spodbujanja razvoja kmetijstva in podeželja v Občini Selnica ob Dravi za programsko obdobje 2015 - 2020","Pravilnik o ohranjanju in spodbujanju razvoja kmetijstva in podeželja v Občini Selnica ob Dravi za programsko obdobje 2015 – 2020","178"]
["Občina Semič",5880262000,"SA.42057(2015/XA)","Pomoči za ohranjanje in spodbujanje razvoja kmetijstva in podeželja v občini Semič","Pravilnik o ohranjanju in spodbujanju razvoja kmetijstva in podeželja v Občini Semič za programsko obdobje 2015–2020","109"]
["Občina Sevnica",5883008000,"SA.42058(2015/XA) ","Ohranjanje in spodbujanja razvoja kmetijstva in podeželja v občini Sevnica","Pravilnik o ohranjanju in spodbujanju razvoja kmetijstva in podeželja v Občini Sevnica za programsko obdobje 2015–2020","110"]
["Občina Sežana",5884047000,"SA.42678(2015/XA)","Pomoči za ohranjanje in razvoj kmetijstva in podeželja v Občini Sežana za leta 2015-2020","Pravilnik o ohranjanju in spodbujanju razvoja kmetijstva, gozdarstva in podeželja v občini Sežana za programsko obdobje 2015 – 2020","111"]
["Občina Slovenska Bistrica",5884250000,"SA.42715(2015/XA)","Podpore za ohranjanje in razvoj kmetijstva v Občini Slovenska Bistrica za leta 2015-2020","Pravilnik o dodeljevanju državnih pomoči, pomoči de minimis in izvajanju drugih ukrepov za ohranjanje in razvoj kmetijstva in podeželja v občini Slovenska Bistrica za programsko obdobje 2015 - 2020","113"]
["Občina Slovenske Konjice",5883814000,"SA.43289(2015/XA)","Podpore programom razvoja kmetijstva in podeželja v Občini Slovenske Konjice 2015 - 2020","Pravilnik o ohranjanju in spodbujanju razvoja kmetijstva in podeželja v občini Slovenske Konjice za programsko obdobje 2015 - 2020","114"]
["Občina Sodražica",1358154000,"ni priglašene sheme","ni priglašene sheme","ni priglašene sheme","179"]
["Občina Solčava",1365851000,"SA.42612(2015/XA)","Ohranjanje in spodbujanje razvoja kmetijstva in podeželja v občini Solčava za programsko obdobje 2015 - 2020","Pravilnik o ohranjanju in spodbujanju razvoja kmetijstva in podeželja v občini Solčava za programsko obdobje 2015 – 2020","180"]
["Občina Središče ob Dravi",2242788000,"SA.42983(2015/XA)","Podpore za ohranjanje in razvoj kmetijstva v občini Središče ob Dravi za programsko obdobje 2015-2020","Pravilnik o ohranjanju in spodbujanju razvoja kmetijstva in podeželja v občini Središče ob Dravi za programsko obdobje 2015 - 2020","202"]
["Občina Starše",5883199000,"SA.45547(2016/XA)","Dodeljevanje državnih pomoči za programe razvoja kmetijstva in podeželja v občini Starše za leta 2016-2020","Pravilniku o dodeljevanju državnih pomoči, pomoči de minimis in izvajanju drugih ukrepov za ohranjanje in razvoj kmetijstva in podeželja v občini Starše za programsko obdobje 2015 – 2020","115"]
["Občina Straža",2241145000,"SA.43153(2015/XA)","Ukrepi v podporo ohranjanju in spodbujanju razvoja kmetijstva in podeželja v Občini Straža za programsko obdobje 2015-2020","Pravilnik o ohranjanju in spodbujanju razvoja kmetijstva in podeželja v Občini Straža za programsko obdobje 2015-2020","203"]
["Občina Sveta Ana",1332074000,"ni priglašene sheme","ni priglašene sheme","ni priglašene sheme","181"]
["Občina Sveta Trojica v Slovenskih goricah",2242796000,"SA.43136(2015/XA)","Podpore za ohranjanje in razvoj kmetijstva v Občini Sveta Trojica v Slovenskih goricah za leta 2015-2020","Pravilnik o ohranjanju in spodbujanju razvoja kmetijstva in podeželja v Občini Sveta Trojica v Slovenskih goricah za programsko obdobje 2015 - 2020","204"]
["Občina Sveti Andraž v Slovenskih goricah",1358103000,"ni priglašene sheme","ni priglašene sheme","ni priglašene sheme","182"]
["Občina Sveti Jurij ob Ščavnici",5880319000,"SA.46870(2016/XA)","Ohranjanjen in spodbujanje razvoja kmetijstva in podeželja v občini Sveti Jurij ob Ščavnici","Pravilnik o ohranjanju in spodbujanju razvoja kmetijstva in podeželja v Občini Sveti Jurij ob Ščavnici","116"]
["Občina Sveti Jurij v Slovenskih goricah",2242877000,null,null,null,"210"]
["Občina Sveti Tomaž",2242761000,"SA.42234(2015/XA)","Finančne intervencije v kmetijstvu v občini Sveti Tomaž od leta 2015 do leta 2020","Pravilnik o ohranjanju in spodbujanju razvoja kmetijstva in podeželja v občini Sveti Tomaž za programsko obdobje 2015 – 2020","205"]
["Občina Šalovci",5883113000,"SA.46753(2016/XA)","Podpore ohranjanju in spodbujanju razvoja kmetijstva in podeželja v občini Šalovci za programsko obdobje 2016-2020","Pravilnik o ohranjanju in spodbujanju razvoja kmetijstva in podeželja v Občini Šalovci za programsko obdobje 2016–2020","033"]
["Občina Šempeter - Vrtojba",1358227000,"SA.42431(2015/XA)","Podpore za ohranjanje in razvoj kmetijstva v Občini Šempeter-Vrtojba za programsko obdobje 2015-2020","Pravilnik o ohranjanju in spodbujanju razvoja kmetijstva in podeželja v Občini Šempeter - Vrtojba za programsko obdobje 2015–2020","183"]
["Občina Šenčur",5874696000,"SA.43156(2015/XA)","Pomoči za ohranjanje in spodbujanje razvoja kmetijstva, gozdarstva in podeželja v Občini Šenčur","Pravilnik o dodelitvi pomoči za ohranjanje in spodbujanje razvoja kmetijstva, gozdarstva in podeželja v Občini Šenčur za programsko obdobje 2015 - 2020","117"]
["Občina Šentilj",5884209000,"SA.45582(2016/XA)","Ohranjanje in spodbujanje razvoja kmetijstva in podeželja v Občini Šentilj za programsko obdobje 2016 - 2020","Pravilnik o ohranjanju in spodbujanju razvoja kmetijstva in podeželja v Občini Šentilj za programsko obdobje 2016 - 2020","118"]
["Občina Šentjernej",5883334000,"SA.50916(2018/XA)","Ohranjanje in spodbujanje razvoja kmetijstva in podeželja v Občini Šentjernej za programsko obdobje 2018–2020","Pravilnik o ohranjanju in spodbujanju razvoja kmetijstva in podeželja v Občini Šentjernej za programsko obdobje 2017–2020","119"]
["Občina Šentjur",5884799000,"SA.42676(2015/XA) ","Podpore programom razvoja kmetijstva in podeželja v Občini Šentjur 2015-2020","Pravilnik o ohranjanju in spodbujanju razvoja kmetijstva in podeželja v Občini Šentjur za programsko obdobje 2015–2020","120"]
["Občina Šentrupert",2241153000,"SA.44068(2016/XA)","Ohranjanje in spodbujanje razvoja kmetijstva in podeželja v občini Šentrupert za programsko obdobje 2015 - 2020","Pravilnik o ohranjanju in spodbujanju razvoja kmetijstva in podeželja v Občini Šentrupert za programsko obdobje 2015–2020","211"]
["Občina Škocjan",5883296000,"SA.43240(2015/XA)","Podpore za ohranjanje in razvoj kmetijstva v občini Škocjan za leta 2015-2020","Pravilnik o ohranjanju in razvoju kmetijstva in podeželja v Občini Škocjan za programsko obdobje 2015-2020","121"]
["Občina Škofja Loka",5883318000,"SA.42616(2015/XA)","Podpore programom ohranjanja in spodbujanja razvoja kmetijstva in podeželja v občini Škofja Loka za programsko obdobje 2015-2020","Pravilnik o ohranjanju in spodbujanju razvoja kmetijstva in podeželja v občini Škofja Loka za programsko obdobje 2015 – 2020","122"]
["Občina Škofljica",5874602000,"SA.43311(2015/XA)","Podpora ukrepom razvoja kmetijstva in podeželja v Občini Škofljica za obdobje 2015 - 2020","Pravilnik o ohranjanju in spodbujanju razvoja kmetijstva in podeželja v Občini Škofljica za programsko obdobje 2015–2020","123"]
["Občina Šmarje pri Jelšah",5884012000,"SA.42110(2015/XA)","Podpore za ohranjanje in razvoj kmetijstva v občini Šmarje pri Jelšah za leta  2015-2020","Pravilnik o ohranjanju in spodbujanju razvoja kmetijstva in podeželja v Občini Šmarje pri Jelšah za programsko obdobje 2015–2020","124"]
["Občina Šmarješke Toplice",2241161000,"SA.42910(2015/XA)","Podpora ohranjanju in spodbujanju razvoja kmetijstva in podeželja v občini Šmarješke Toplice 2015-2020","Pravilnik o ohranjanju in spodbujanju razvoja kmetijstva in podeželja v občini Šmarješke Toplice za programsko obdobje 2015 - 2020","206"]
["Občina Šmartno ob Paki",5884276000,"SA.42505(2015/XA)","Ohranjanje in razvoj kmetijstva in podeželja v občini Šmartno ob Paki za programsko obdobje 2015 – 2020","Pravilnik o dodeljevanju pomoči za ohranjanje in razvoj kmetijstva in podeželja v občini Šmartno ob Paki  za programsko obdobje 2015 - 2020","125"]
["Občina Šmartno pri Litiji",1779737000,"SA.45519(2016/XA)","Podpore za ohranjanje in spodbujanje razvoja kmetijstva in podeželja v občini Šmartno pri Litiji za programsko obdobje 2016 - 2020","Pravilnik o ohranjanju in spodbujanju razvoja kmetijstva in podeželja v Občini Šmartno pri Litiji za programsko obdobje 2016–2020","194"]
["Občina Šoštanj",5884284000,"SA.42549(2015/XA)","Podpore za ohranjanje in razvoj kmetijstva v občini Šoštanj za leta 2015-2020","Pravilnik o dodeljevanju pomoči za ohranjanje in spodbujanje razvoja kmetijstva in podeželja v Občini Šoštanj za programsko obdobje 2015-2020","126"]
["Občina Štore",5880378000,"ni priglašene sheme","ni priglašene sheme","ni priglašene sheme","127"]
["Občina Tabor",1357727000,"SA.49617(2017/XA)","Podpore za ohranjanje in spodbujanje razvoja kmetijstva in podeželja v občini Tabor za programsko obdobje 2018–2020","Pravilnik o ohranjanju in spodbujanju razvoja kmetijstva in podeželja v Občini Tabor za programsko obdobje 2018–2020","184"]
["Občina Tišina",5883067000,"SA.46755(2016/XA)","Podpora za ohranjanje in razvoj kmetijstva v Občini Tišina za leta 2016-2020","Pravilnik o ohranjanju in spodbujanju razvoja kmetijstva in podeželja v Občini Tišina za programsko obdobje 2015–2020","010"]
["Občina Tolmin",5881455000,"SA.44997(2016/XA)","Dodeljevanje pomoči za ohranjanje in spodbujanje razvoja kmetijstva v občini Tolmin v obdobju 2016-2020","Pravilnik o dodeljevanju pomoči za ohranjanje in spodbujanje razvoja kmetijstva, gozdarstva in podeželja v občini Tolmin","128"]
["Občina Trbovlje",5882940000,"SA.51133(2018/XA)","Podpore ohranjanju in spodbujanju razvoja kmetijstva in podeželja v Občini Trbovlje za obdobje 2018–2020","Pravilnik o ohranjanju in spodbujanju razvoja kmetijstva in podeželja v Občini Trbovlje za obdobje 2018–2020","129"]
["Občina Trebnje",5882958000,"SA.42214(2015/XA) ","Podpore za ohranjanje in razvoj kmetijstva v Občini Trebnje za programsko obdobje 2015 - 2020","Pravilnik o ohranjanju in spodbujanju razvoja kmetijstva in podeželja v Občini Trebnje za programsko obdobje 2015–2020","130"]
["Občina Trnovska vas",1358057000,"ni priglašene sheme","ni priglašene sheme","ni priglašene sheme","185"]
["Občina Trzin",1358561000,"ni priglašene sheme","ni priglašene sheme","ni priglašene sheme","186"]
["Občina Tržič",5883547000,"SA.43242(2015/XA)","Podpore naložbam v kmetijstvu v občini Tržič 2015-2020","Pravilnik o ohranjanju in spodbujanju razvoja kmetijstva in podeželja v občini Tržič za programsko obdobje 2015 - 2020","131"]
["Občina Turnišče",5874700000,"ni priglašene sheme","ni priglašene sheme","ni priglašene sheme","132"]
["Občina Velika Polana",1332104000,"ni priglašene sheme","ni priglašene sheme","ni priglašene sheme","187"]
["Občina Velike Lašče",5874785000,"ni priglašene sheme","ni priglašene sheme","ni priglašene sheme","134"]
["Občina Veržej",1332171000,"SA.54141(2019/XA)","Podpora programom za ohranjanje in spodbujanje razvoja kmetijstva in podeželja v Občini Veržej v programskem obdobju 2019–2020","Pravilnik o ohranjanju in spodbujanju razvoja kmetijstva in podeželja v Občini Veržej za programsko obdobje 2019–2020","188"]
["Občina Videm",5883423000,"SA.51132(2018/XA)","Dodeljevanje državnih pomoči za programe razvoja kmetijstva in podeželja v Občini Videm za obdobje 2018–2020","Pravilnik o dodeljevanju državnih pomoči, pomoči de minimis in izvajanju drugih ukrepov za ohranjanje in razvoj kmetijstva in podeželja v Občini Videm za programsko obdobje 2018–2020","135"]
["Občina Vipava",5879922000,"SA.42716(2015/XA)","Subvencioniranje obrestne mere kreditov najetih za pospeševanje kmetijstva","Pravilnik o subvencioniranju obrestne mere kreditov najetih za pospeševanje in razvoj kmetijstva v Občini Vipava za programsko obdobje 2015–2020","136"]
["Občina Vitanje",5883768000,"SA.43373(2015/XA)","Podpore programom razvoja kmetijstva in podeželja v Občini Vitanje 2015 - 2020","Pravilnik o ohranjanju in spodbujanju kmetijstva in podeželja v Občini Vitanje za programsko obdobje 2015 – 2020","137"]
["Občina Vodice",5874637000,"SA.45016(2016/XA)","Ohranjanje in spodbujanje razvoja kmetijstva in podeželja v občini vodice za leta 2015–2020","Pravilnik o ohranjanju in spodbujanju razvoja kmetijstva in podeželja v občini Vodice za programsko obdobje 2015 -2020","138"]
["Občina Vojnik",5880386000,"SA.42444(2015/XA)","Ukrepi v podporo ohranjanju in spodbujanju razvoja podeželja v občini Vojnik za programsko obdobje 2015 – 2020","Pravilnik o ohranjanju in spodbujanju razvoja kmetijstva in podeželja v Občini Vojnik za programsko leto 2015-2020","139"]
["Občina Vransko",1357778000,"SA.53535(2019/XA)","Podpore za naložbe v kmetijstvu v Občini Vransko za programsko obdobje 2018–2020","Pravilnik o ohranjanju in spodbujanju razvoja kmetijstva in podeželja v občini Vransko za programsko obdobje 2018 - 2020","189"]
["Občina Vrhnika",5883407000,"ni priglašene sheme","ni priglašene sheme","ni priglašene sheme","140"]
["Občina Vuzenica",5881765000,"SA.42918(2015/XA)","Pomoči za ohranjanje in razvoj kmetijstva in podeželja v Občini Vuzenica za programsko obdobje 2015-2020","Pravilnik o ohranjanju in spodbujanju razvoja kmetijstva in podeželja v občini  Vuzenica za programsko obdobje 2015 - 2020","141"]
["Občina Zagorje ob Savi",5883890000,"SA.41724(2015/XA)","Podpore ohranjanju in spodbujanju razvoja kmetijstva in podeželja v občini Zagorje ob Savi 2015-2020","Pravilnika o ohranjanju in spodbujanju razvoja kmetijstva in podeţelja v Občini Zagorje ob Savi za programsko obdobje 2015-2020","142"]
["Občina Zavrč",5883377000,"ni priglašene sheme","ni priglašene sheme","ni priglašene sheme","143"]
["Občina Zreče",5883342000,"SA.43251(2015/XA)","Podpore ohranjanju in spodbujanju razvoja kmetijstva in podeželja v Občini Zreče za programsko obdobje 2015 – 2020","Pravilnik o ohranjanju in spodbujanju razvoja kmetijstva in podeželja v Občini Zreče za programsko obdobje  2015 – 2020","144"]
["Občina Žalec",5881544000,"SA.42266(2015/XA)","Ohranjanje in spodbujanje razvoja kmetijstva in podeželja v občini Žalec za programsko obdobje 2015 – 2020","Pravilnik o ohranjanju in spodbujanju razvoja kmetijstva in podeželja v Občini Žalec za programsko obdobje 2015–2020","190"]
["Občina Železniki",5883148000,"SA.42415(2015/XA) ","Podpore programom razvoja kmetijstva in podeželja v občini Železniki 2015 – 2020","Pravilnik o ohranjanju in spodbujanju razvoja kmetijstva in podeželja v Občini Železniki za programsko obdobje 2015–2020","146"]
["Občina Žetale",1357999000,"ni priglašene sheme","ni priglašene sheme","ni priglašene sheme","191"]
["Občina Žiri",5883202000,"SA.42267(2015/XA)","Podpore programom razvoja kmetijstva in podeželja v občini Žiri 2015-2020","Pravilnik o ohranjanju in spodbujanju razvoja kmetijstva in podeželja v Občini Žiri za programsko obdobje 2015–2020","147"]
["Občina Žirovnica",1332201000,"SA.42912(2015/XA)","Pomoči za ohranjanje in razvoj kmetijstva, gozdarstva in podeželja v Občini Žirovnica","Pravilnik o dodeljevanju pomoči za ohranjanje in razvoj kmetijstva, gozdarstva in podeželja v občini Žirovnica","192"]
["Občina Žužemberk",1358383000,"SA.42951(2015/XA) ","Ukrepi v podporo ohranjanju in spodbujanju razvoja podeželja v Občini Žužemberk za programsko obdobje 2015 – 2020","Pravilnik o ohranjanju in spodbujanju razvoja kmetijstva in podeželja v Občini Žužemberk za programsko obdobje 2015–2020","193"]
[]
[]
[]
[]
[null,null,null,null,null,"001"]
[null,null,null,null,null,"002"]
[null,null,null,null,null,"003"]
[null,null,null,null,null,"004"]
[null,null,null,null,null,"005"]
[null,null,null,null,null,"006"]
[null,null,null,null,null,"007"]
[null,null,null,null,null,"008"]
[null,null,null,null,null,"009"]
[null,null,null,null,null,"010"]
[null,null,null,null,null,"011"]
[null,null,null,null,null,"012"]
[null,null,null,null,null,"013"]
[null,null,null,null,null,"014"]
[null,null,null,null,null,"015"]
[null,null,null,null,null,"016"]
[null,null,null,null,null,"017"]
[null,null,null,null,null,"018"]
[null,null,null,null,null,"019"]
[null,null,null,null,null,"020"]
[null,null,null,null,null,"021"]
[null,null,null,null,null,"022"]
[null,null,null,null,null,"023"]
[null,null,null,null,null,"024"]
[null,null,null,null,null,"025"]
[null,null,null,null,null,"026"]
[null,null,null,null,null,"027"]
[null,null,null,null,null,"028"]
[null,null,null,null,null,"029"]
[null,null,null,null,null,"030"]
[null,null,null,null,null,"031"]
[null,null,null,null,null,"032"]
[null,null,null,null,null,"033"]
[null,null,null,null,null,"034"]
[null,null,null,null,null,"035"]
[null,null,null,null,null,"036"]
[null,null,null,null,null,"037"]
[null,null,null,null,null,"038"]
[null,null,null,null,null,"039"]
[null,null,null,null,null,"040"]
[null,null,null,null,null,"041"]
[null,null,null,null,null,"042"]
[null,null,null,null,null,"043"]
[null,null,null,null,null,"044"]
[null,null,null,null,null,"045"]
[null,null,null,null,null,"046"]
[null,null,null,null,null,"047"]
[null,null,null,null,null,"048"]
[null,null,null,null,null,"049"]
[null,null,null,null,null,"050"]
[null,null,null,null,null,"051"]
[null,null,null,null,null,"052"]
[null,null,null,null,null,"053"]
[null,null,null,null,null,"054"]
[null,null,null,null,null,"055"]
[null,null,null,null,null,"056"]
[null,null,null,null,null,"057"]
[null,null,null,null,null,"058"]
[null,null,null,null,null,"059"]
[null,null,null,null,null,"060"]
[null,null,null,null,null,"061"]
[null,null,null,null,null,"062"]
[null,null,null,null,null,"063"]
[null,null,null,null,null,"064"]
[null,null,null,null,null,"065"]
[null,null,null,null,null,"066"]
[null,null,null,null,null,"067"]
[null,null,null,null,null,"068"]
[null,null,null,null,null,"069"]
[null,null,null,null,null,"070"]
[null,null,null,null,null,"071"]
[null,null,null,null,null,"072"]
[null,null,null,null,null,"073"]
[null,null,null,null,null,"074"]
[null,null,null,null,null,"075"]
[null,null,null,null,null,"076"]
[null,null,null,null,null,"077"]
[null,null,null,null,null,"078"]
[null,null,null,null,null,"079"]
[null,null,null,null,null,"080"]
[null,null,null,null,null,"081"]
[null,null,null,null,null,"082"]
[null,null,null,null,null,"083"]
[null,null,null,null,null,"084"]
[null,null,null,null,null,"085"]
[null,null,null,null,null,"086"]
[null,null,null,null,null,"087"]
[null,null,null,null,null,"088"]
[null,null,null,null,null,"089"]
[null,null,null,null,null,"090"]
[null,null,null,null,null,"091"]
[null,null,null,null,null,"092"]
[null,null,null,null,null,"093"]
[null,null,null,null,null,"094"]
[null,null,null,null,null,"095"]
[null,null,null,null,null,"096"]
[null,null,null,null,null,"097"]
[null,null,null,null,null,"098"]
[null,null,null,null,null,"099"]
[null,null,null,null,null,"100"]
[null,null,null,null,null,"101"]
[null,null,null,null,null,"102"]
[null,null,null,null,null,"103"]
[null,null,null,null,null,"104"]
[null,null,null,null,null,"105"]
[null,null,null,null,null,"106"]
[null,null,null,null,null,"107"]
[null,null,null,null,null,"108"]
[null,null,null,null,null,"109"]
[null,null,null,null,null,"110"]
[null,null,null,null,null,"111"]
[null,null,null,null,null,"112"]
[null,null,null,null,null,"113"]
[null,null,null,null,null,"114"]
[null,null,null,null,null,"115"]
[null,null,null,null,null,"116"]
[null,null,null,null,null,"117"]
[null,null,null,null,null,"118"]
[null,null,null,null,null,"119"]
[null,null,null,null,null,"120"]
[null,null,null,null,null,"121"]
[null,null,null,null,null,"122"]
[null,null,null,null,null,"123"]
[null,null,null,null,null,"124"]
[null,null,null,null,null,"125"]
[null,null,null,null,null,"126"]
[null,null,null,null,null,"127"]
[null,null,null,null,null,"128"]
[null,null,null,null,null,"129"]
[null,null,null,null,null,"130"]
[null,null,null,null,null,"131"]
[null,null,null,null,null,"132"]
[null,null,null,null,null,"133"]
[null,null,null,null,null,"134"]
[null,null,null,null,null,"135"]
[null,null,null,null,null,"136"]
[null,null,null,null,null,"137"]
[null,null,null,null,null,"138"]
[null,null,null,null,null,"139"]
[null,null,null,null,null,"140"]
[null,null,null,null,null,"141"]
[null,null,null,null,null,"142"]
[null,null,null,null,null,"143"]
[null,null,null,null,null,"144"]
[null,null,null,null,null,"146"]
[null,null,null,null,null,"147"]
[null,null,null,null,null,"148"]
[null,null,null,null,null,"149"]
[null,null,null,null,null,"150"]
[null,null,null,null,null,"151"]
[null,null,null,null,null,"152"]
[null,null,null,null,null,"153"]
[null,null,null,null,null,"154"]
[null,null,null,null,null,"155"]
[null,null,null,null,null,"156"]
[null,null,null,null,null,"157"]
[null,null,null,null,null,"158"]
[null,null,null,null,null,"159"]
[null,null,null,null,null,"160"]
[null,null,null,null,null,"161"]
[null,null,null,null,null,"162"]
[null,null,null,null,null,"163"]
[null,null,null,null,null,"164"]
[null,null,null,null,null,"165"]
[null,null,null,null,null,"166"]
[null,null,null,null,null,"167"]
[null,null,null,null,null,"168"]
[null,null,null,null,null,"169"]
[null,null,null,null,null,"170"]
[null,null,null,null,null,"171"]
[null,null,null,null,null,"172"]
[null,null,null,null,null,"173"]
[null,null,null,null,null,"174"]
[null,null,null,null,null,"175"]
[null,null,null,null,null,"176"]
[null,null,null,null,null,"177"]
[null,null,null,null,null,"178"]
[null,null,null,null,null,"179"]
[null,null,null,null,null,"180"]
[null,null,null,null,null,"181"]
[null,null,null,null,null,"182"]
[null,null,null,null,null,"183"]
[null,null,null,null,null,"184"]
[null,null,null,null,null,"185"]
[null,null,null,null,null,"186"]
[null,null,null,null,null,"187"]
[null,null,null,null,null,"188"]
[null,null,null,null,null,"189"]
[null,null,null,null,null,"190"]
[null,null,null,null,null,"191"]
[null,null,null,null,null,"192"]
[null,null,null,null,null,"193"]
[null,null,null,null,null,"194"]
[null,null,null,null,null,"195"]
[null,null,null,null,null,"196"]
[null,null,null,null,null,"197"]
[null,null,null,null,null,"198"]
[null,null,null,null,null,"199"]
[null,null,null,null,null,"200"]
[null,null,null,null,null,"201"]
[null,null,null,null,null,"202"]
[null,null,null,null,null,"203"]
[null,null,null,null,null,"204"]
[null,null,null,null,null,"205"]
[null,null,null,null,null,"206"]
[null,null,null,null,null,"207"]
[null,null,null,null,null,"208"]
[null,null,null,null,null,"209"]
[null,null,null,null,null,"210"]
[null,null,null,null,null,"211"]
[null,null,null,null,null,"212"]
[null,null,null,null,null,"213"]